Transaction Date,Local Authority Department,BENEFICIARY,Purpose,Amount,Non Recoverable,Merchant Category
01-01-2023,Children and Young People,Rights & Equalities In Newham (Rein),Private Contractors Payment - Other,50000,0,VENDOR
01-01-2023,Inclusive Economy & Housing,Adam Khan Architects,"Maintenance - Equipment, Furniture And Materials",8526.5,0,COMMERCIAL SUPPLIER
01-01-2023,oneSource,Daisy Corporate Services Trading Ltd,Land Line Telephone Costs,6514.49,0,COMMERCIAL SUPPLIER
01-01-2023,oneSource,Daisy Corporate Services Trading Ltd,Land Line Telephone Costs,2198.08,0,COMMERCIAL SUPPLIER
01-01-2023,oneSource,Daisy Corporate Services Trading Ltd,Land Line Telephone Costs,12983.86,0,COMMERCIAL SUPPLIER
01-01-2023,Housing Revenue Account,Daisy Corporate Services Trading Ltd,Land Line Telephone Costs,3753.75,0,COMMERCIAL SUPPLIER
01-01-2023,oneSource - Non Shared,Royal Docks Management Authority Ltd,Facilities Management,5313,0,VENDOR
01-01-2023,oneSource,Bdi Securities,Security Services (Excluding Premises),981.5,0,COMMERCIAL SUPPLIER
01-01-2023,oneSource,Bdi Securities,Security Services (Excluding Premises),432,0,COMMERCIAL SUPPLIER
01-01-2023,Children and Young People,Resources for Autism,Professional Services - General,138614,0,COMMERCIAL SUPPLIER
01-01-2023,RMS,cer Financial Ltd,Agency Staff,360,0,COMMERCIAL SUPPLIER
01-01-2023,RMS,cer Financial Ltd,Agency Staff,360,0,COMMERCIAL SUPPLIER
01-01-2023,RMS,cer Financial Ltd,Agency Staff,360,0,COMMERCIAL SUPPLIER
01-01-2023,RMS,cer Financial Ltd,Agency Staff,360,0,COMMERCIAL SUPPLIER
01-01-2023,Environment and Sustainable Transport,Portakabin Ltd,Premises Hire - Facilities,2373.33,0,COMMERCIAL SUPPLIER
01-01-2023,Children and Young People,Miacis Media Consultancy Ltd,Design And Photographic Costs,550,0,COMMERCIAL SUPPLIER
01-01-2023,Dedicated Schools Budget,Personal Information - Redacted,Private Contractors Payment - Other,112879,0,COMMERCIAL SUPPLIER
01-01-2023,Children and Young People,Early Start Group Ltd,Private Contractors Payment - Other,51221,0,COMMERCIAL SUPPLIER
01-01-2023,Children and Young People,Personal Information - Redacted,Weekly Allowances - Private Contractors Payment,262.31,0,INDIVIDUALS
01-01-2023,Children and Young People,Personal Information - Redacted,Payment To Private Sector Landlords (Psl),450,0,INDIVIDUALS
02-01-2023,Environment and Sustainable Transport,R.A.M Fleet Solutions Ltd,"Purchase - Equipment, Furniture And Materials",2870,0,COMMERCIAL SUPPLIER
02-01-2023,RMS,Travis Perkins Trading Company Ltd,Building Alterations And Materials,55,0,COMMERCIAL SUPPLIER
02-01-2023,RMS,Travis Perkins Trading Company Ltd,Building Alterations And Materials,200,0,COMMERCIAL SUPPLIER
02-01-2023,oneSource,Royal Mail Group Plc,Postage And Courier Services,3356.96,0,COMMERCIAL SUPPLIER
02-01-2023,Children and Young People,Bettertogether Limited,Supported Other Accommodation - Private Contractors Payment,775,0,NON COMMERCIAL SUPPLIER
02-01-2023,Children and Young People,Bettertogether Limited,Supported Other Accommodation - Private Contractors Payment,775,0,NON COMMERCIAL SUPPLIER
02-01-2023,Children and Young People,Bettertogether Limited,Supported Other Accommodation - Private Contractors Payment,775,0,NON COMMERCIAL SUPPLIER
02-01-2023,Children and Young People,Bettertogether Limited,Supported Other Accommodation - Private Contractors Payment,775,0,NON COMMERCIAL SUPPLIER
02-01-2023,Children and Young People,Bettertogether Limited,Supported Other Accommodation - Private Contractors Payment,881,0,NON COMMERCIAL SUPPLIER
02-01-2023,Children and Young People,Bettertogether Limited,Supported Other Accommodation - Private Contractors Payment,881,0,NON COMMERCIAL SUPPLIER
02-01-2023,Children and Young People,Bettertogether Limited,Supported Other Accommodation - Private Contractors Payment,881,0,NON COMMERCIAL SUPPLIER
02-01-2023,Children and Young People,Bettertogether Limited,Supported Other Accommodation - Private Contractors Payment,881,0,NON COMMERCIAL SUPPLIER
02-01-2023,Adults & Health,Bettertogether Limited,Adult Placement Scheme - Private Contractors Payment,716,0,NON COMMERCIAL SUPPLIER
02-01-2023,Adults & Health,Bettertogether Limited,Adult Placement Scheme - Private Contractors Payment,716,0,NON COMMERCIAL SUPPLIER
02-01-2023,Adults & Health,Bettertogether Limited,Adult Placement Scheme - Private Contractors Payment,472,0,NON COMMERCIAL SUPPLIER
02-01-2023,Children and Young People,Bettertogether Limited,Supported Other Accommodation - Private Contractors Payment,400,0,NON COMMERCIAL SUPPLIER
02-01-2023,Children and Young People,Bettertogether Limited,Supported Other Accommodation - Private Contractors Payment,716,0,NON COMMERCIAL SUPPLIER
02-01-2023,Children and Young People,Bettertogether Limited,Supported Other Accommodation - Private Contractors Payment,716,0,NON COMMERCIAL SUPPLIER
02-01-2023,Adults & Health,Bettertogether Limited,Adult Placement Scheme - Private Contractors Payment,535,0,NON COMMERCIAL SUPPLIER
02-01-2023,Adults & Health,Bettertogether Limited,Adult Placement Scheme - Private Contractors Payment,535,0,NON COMMERCIAL SUPPLIER
02-01-2023,Adults & Health,Bettertogether Limited,Adult Placement Scheme - Private Contractors Payment,535,0,NON COMMERCIAL SUPPLIER
02-01-2023,Adults & Health,Bettertogether Limited,Adult Placement Scheme - Private Contractors Payment,535,0,NON COMMERCIAL SUPPLIER
02-01-2023,Adults & Health,Bettertogether Limited,Adult Placement Scheme - Private Contractors Payment,535,0,NON COMMERCIAL SUPPLIER
02-01-2023,Adults & Health,Bettertogether Limited,Adult Placement Scheme - Private Contractors Payment,535,0,NON COMMERCIAL SUPPLIER
02-01-2023,Adults & Health,Bettertogether Limited,Adult Placement Scheme - Private Contractors Payment,535,0,NON COMMERCIAL SUPPLIER
02-01-2023,Adults & Health,Bettertogether Limited,Adult Placement Scheme - Private Contractors Payment,535,0,NON COMMERCIAL SUPPLIER
02-01-2023,Adults & Health,Bettertogether Limited,Adult Placement Scheme - Private Contractors Payment,478.79,0,NON COMMERCIAL SUPPLIER
02-01-2023,Adults & Health,Bettertogether Limited,Adult Placement Scheme - Private Contractors Payment,478.79,0,NON COMMERCIAL SUPPLIER
02-01-2023,Adults & Health,Bettertogether Limited,Adult Placement Scheme - Private Contractors Payment,478.79,0,NON COMMERCIAL SUPPLIER
02-01-2023,Adults & Health,Bettertogether Limited,Adult Placement Scheme - Private Contractors Payment,478.79,0,NON COMMERCIAL SUPPLIER
02-01-2023,Adults & Health,Bettertogether Limited,Adult Placement Scheme - Private Contractors Payment,418,0,NON COMMERCIAL SUPPLIER
02-01-2023,Adults & Health,Bettertogether Limited,Adult Placement Scheme - Private Contractors Payment,418,0,NON COMMERCIAL SUPPLIER
02-01-2023,Adults & Health,Bettertogether Limited,Adult Placement Scheme - Private Contractors Payment,418,0,NON COMMERCIAL SUPPLIER
02-01-2023,Adults & Health,Bettertogether Limited,Adult Placement Scheme - Private Contractors Payment,418,0,NON COMMERCIAL SUPPLIER
02-01-2023,Adults & Health,Bettertogether Limited,Adult Placement Scheme - Private Contractors Payment,535,0,NON COMMERCIAL SUPPLIER
02-01-2023,Adults & Health,Bettertogether Limited,Adult Placement Scheme - Private Contractors Payment,535,0,NON COMMERCIAL SUPPLIER
02-01-2023,Adults & Health,Bettertogether Limited,Adult Placement Scheme - Private Contractors Payment,535,0,NON COMMERCIAL SUPPLIER
02-01-2023,Adults & Health,Bettertogether Limited,Adult Placement Scheme - Private Contractors Payment,535,0,NON COMMERCIAL SUPPLIER
02-01-2023,Adults & Health,Bettertogether Limited,Adult Placement Scheme - Private Contractors Payment,535,0,NON COMMERCIAL SUPPLIER
02-01-2023,Adults & Health,Bettertogether Limited,Adult Placement Scheme - Private Contractors Payment,535,0,NON COMMERCIAL SUPPLIER
02-01-2023,Adults & Health,Bettertogether Limited,Adult Placement Scheme - Private Contractors Payment,535,0,NON COMMERCIAL SUPPLIER
02-01-2023,Adults & Health,Bettertogether Limited,Adult Placement Scheme - Private Contractors Payment,535,0,NON COMMERCIAL SUPPLIER
02-01-2023,Adults & Health,Bettertogether Limited,Adult Placement Scheme - Private Contractors Payment,476,0,NON COMMERCIAL SUPPLIER
02-01-2023,Adults & Health,Bettertogether Limited,Adult Placement Scheme - Private Contractors Payment,476,0,NON COMMERCIAL SUPPLIER
02-01-2023,Adults & Health,Bettertogether Limited,Adult Placement Scheme - Private Contractors Payment,476,0,NON COMMERCIAL SUPPLIER
02-01-2023,Adults & Health,Bettertogether Limited,Adult Placement Scheme - Private Contractors Payment,476,0,NON COMMERCIAL SUPPLIER
02-01-2023,Adults & Health,Bettertogether Limited,Adult Placement Scheme - Private Contractors Payment,535,0,NON COMMERCIAL SUPPLIER
02-01-2023,Adults & Health,Bettertogether Limited,Adult Placement Scheme - Private Contractors Payment,535,0,NON COMMERCIAL SUPPLIER
02-01-2023,Adults & Health,Bettertogether Limited,Adult Placement Scheme - Private Contractors Payment,535,0,NON COMMERCIAL SUPPLIER
02-01-2023,Adults & Health,Bettertogether Limited,Adult Placement Scheme - Private Contractors Payment,535,0,NON COMMERCIAL SUPPLIER
02-01-2023,Adults & Health,Bettertogether Limited,Adult Placement Scheme - Private Contractors Payment,418,0,NON COMMERCIAL SUPPLIER
02-01-2023,Adults & Health,Bettertogether Limited,Adult Placement Scheme - Private Contractors Payment,418,0,NON COMMERCIAL SUPPLIER
02-01-2023,Adults & Health,Bettertogether Limited,Adult Placement Scheme - Private Contractors Payment,418,0,NON COMMERCIAL SUPPLIER
02-01-2023,Adults & Health,Bettertogether Limited,Adult Placement Scheme - Private Contractors Payment,418,0,NON COMMERCIAL SUPPLIER
02-01-2023,Adults & Health,Bettertogether Limited,Adult Placement Scheme - Private Contractors Payment,100,0,NON COMMERCIAL SUPPLIER
02-01-2023,Adults & Health,Bettertogether Limited,Adult Placement Scheme - Private Contractors Payment,680,0,NON COMMERCIAL SUPPLIER
02-01-2023,Adults & Health,Bettertogether Limited,Adult Placement Scheme - Private Contractors Payment,680,0,NON COMMERCIAL SUPPLIER
02-01-2023,Adults & Health,Bettertogether Limited,Adult Placement Scheme - Private Contractors Payment,680,0,NON COMMERCIAL SUPPLIER
02-01-2023,Adults & Health,Bettertogether Limited,Adult Placement Scheme - Private Contractors Payment,476,0,NON COMMERCIAL SUPPLIER
02-01-2023,Adults & Health,Bettertogether Limited,Adult Placement Scheme - Private Contractors Payment,476,0,NON COMMERCIAL SUPPLIER
02-01-2023,Adults & Health,Bettertogether Limited,Adult Placement Scheme - Private Contractors Payment,476,0,NON COMMERCIAL SUPPLIER
02-01-2023,Adults & Health,Bettertogether Limited,Adult Placement Scheme - Private Contractors Payment,476,0,NON COMMERCIAL SUPPLIER
02-01-2023,Adults & Health,Bettertogether Limited,Adult Placement Scheme - Private Contractors Payment,747,0,NON COMMERCIAL SUPPLIER
02-01-2023,Adults & Health,Bettertogether Limited,Adult Placement Scheme - Private Contractors Payment,747,0,NON COMMERCIAL SUPPLIER
02-01-2023,Adults & Health,Bettertogether Limited,Adult Placement Scheme - Private Contractors Payment,747,0,NON COMMERCIAL SUPPLIER
02-01-2023,Adults & Health,Bettertogether Limited,Adult Placement Scheme - Private Contractors Payment,747,0,NON COMMERCIAL SUPPLIER
02-01-2023,Adults & Health,Bettertogether Limited,Adult Placement Scheme - Private Contractors Payment,189.82,0,NON COMMERCIAL SUPPLIER
02-01-2023,Adults & Health,Bettertogether Limited,Daycare - Private Contractors Payment,86.4,0,NON COMMERCIAL SUPPLIER
02-01-2023,Adults & Health,Bettertogether Limited,Adult Placement Scheme - Private Contractors Payment,862.06,0,NON COMMERCIAL SUPPLIER
02-01-2023,Adults & Health,Bettertogether Limited,Daycare - Private Contractors Payment,86.4,0,NON COMMERCIAL SUPPLIER
02-01-2023,Adults & Health,Bettertogether Limited,Daycare - Private Contractors Payment,86.4,0,NON COMMERCIAL SUPPLIER
02-01-2023,Adults & Health,Bettertogether Limited,Adult Placement Scheme - Private Contractors Payment,862.06,0,NON COMMERCIAL SUPPLIER
02-01-2023,Adults & Health,Bettertogether Limited,Adult Placement Scheme - Private Contractors Payment,862.06,0,NON COMMERCIAL SUPPLIER
02-01-2023,Adults & Health,Bettertogether Limited,Daycare - Private Contractors Payment,86.4,0,NON COMMERCIAL SUPPLIER
02-01-2023,Adults & Health,Bettertogether Limited,Adult Placement Scheme - Private Contractors Payment,476,0,NON COMMERCIAL SUPPLIER
02-01-2023,Adults & Health,Bettertogether Limited,Adult Placement Scheme - Private Contractors Payment,476,0,NON COMMERCIAL SUPPLIER
02-01-2023,Adults & Health,Bettertogether Limited,Adult Placement Scheme - Private Contractors Payment,476,0,NON COMMERCIAL SUPPLIER
02-01-2023,Adults & Health,Bettertogether Limited,Adult Placement Scheme - Private Contractors Payment,476,0,NON COMMERCIAL SUPPLIER
02-01-2023,Adults & Health,Bettertogether Limited,Adult Placement Scheme - Private Contractors Payment,476,0,NON COMMERCIAL SUPPLIER
02-01-2023,Adults & Health,Bettertogether Limited,Adult Placement Scheme - Private Contractors Payment,476,0,NON COMMERCIAL SUPPLIER
02-01-2023,Adults & Health,Bettertogether Limited,Adult Placement Scheme - Private Contractors Payment,476,0,NON COMMERCIAL SUPPLIER
02-01-2023,Adults & Health,Bettertogether Limited,Adult Placement Scheme - Private Contractors Payment,476,0,NON COMMERCIAL SUPPLIER
02-01-2023,Adults & Health,Bettertogether Limited,Adult Placement Scheme - Private Contractors Payment,476,0,NON COMMERCIAL SUPPLIER
02-01-2023,Adults & Health,Bettertogether Limited,Adult Placement Scheme - Private Contractors Payment,476,0,NON COMMERCIAL SUPPLIER
02-01-2023,Adults & Health,Bettertogether Limited,Adult Placement Scheme - Private Contractors Payment,476,0,NON COMMERCIAL SUPPLIER
02-01-2023,Adults & Health,Bettertogether Limited,Adult Placement Scheme - Private Contractors Payment,476,0,NON COMMERCIAL SUPPLIER
02-01-2023,Adults & Health,Bettertogether Limited,Adult Placement Scheme - Private Contractors Payment,812,0,NON COMMERCIAL SUPPLIER
02-01-2023,Adults & Health,Bettertogether Limited,Adult Placement Scheme - Private Contractors Payment,812,0,NON COMMERCIAL SUPPLIER
02-01-2023,Adults & Health,Bettertogether Limited,Adult Placement Scheme - Private Contractors Payment,812,0,NON COMMERCIAL SUPPLIER
02-01-2023,Adults & Health,Bettertogether Limited,Adult Placement Scheme - Private Contractors Payment,812,0,NON COMMERCIAL SUPPLIER
02-01-2023,Adults & Health,Bettertogether Limited,Adult Placement Scheme - Private Contractors Payment,694,0,NON COMMERCIAL SUPPLIER
02-01-2023,Adults & Health,Bettertogether Limited,Adult Placement Scheme - Private Contractors Payment,694,0,NON COMMERCIAL SUPPLIER
02-01-2023,Adults & Health,Bettertogether Limited,Adult Placement Scheme - Private Contractors Payment,694,0,NON COMMERCIAL SUPPLIER
02-01-2023,Adults & Health,Bettertogether Limited,Adult Placement Scheme - Private Contractors Payment,694,0,NON COMMERCIAL SUPPLIER
02-01-2023,Adults & Health,Bettertogether Limited,Adult Placement Scheme - Private Contractors Payment,476,0,NON COMMERCIAL SUPPLIER
02-01-2023,Adults & Health,Bettertogether Limited,Adult Placement Scheme - Private Contractors Payment,476,0,NON COMMERCIAL SUPPLIER
02-01-2023,Adults & Health,Bettertogether Limited,Adult Placement Scheme - Private Contractors Payment,476,0,NON COMMERCIAL SUPPLIER
02-01-2023,Adults & Health,Bettertogether Limited,Adult Placement Scheme - Private Contractors Payment,476,0,NON COMMERCIAL SUPPLIER
02-01-2023,Adults & Health,Bettertogether Limited,Adult Placement Scheme - Private Contractors Payment,747,0,NON COMMERCIAL SUPPLIER
02-01-2023,Adults & Health,Bettertogether Limited,Adult Placement Scheme - Private Contractors Payment,747,0,NON COMMERCIAL SUPPLIER
02-01-2023,Adults & Health,Bettertogether Limited,Adult Placement Scheme - Private Contractors Payment,747,0,NON COMMERCIAL SUPPLIER
02-01-2023,Adults & Health,Bettertogether Limited,Adult Placement Scheme - Private Contractors Payment,747,0,NON COMMERCIAL SUPPLIER
02-01-2023,Adults & Health,Bettertogether Limited,Adult Placement Scheme - Private Contractors Payment,588,0,NON COMMERCIAL SUPPLIER
02-01-2023,Adults & Health,Bettertogether Limited,Adult Placement Scheme - Private Contractors Payment,588,0,NON COMMERCIAL SUPPLIER
02-01-2023,Adults & Health,Bettertogether Limited,Adult Placement Scheme - Private Contractors Payment,588,0,NON COMMERCIAL SUPPLIER
02-01-2023,Adults & Health,Bettertogether Limited,Adult Placement Scheme - Private Contractors Payment,588,0,NON COMMERCIAL SUPPLIER
02-01-2023,Adults & Health,Bettertogether Limited,Adult Placement Scheme - Private Contractors Payment,665,0,NON COMMERCIAL SUPPLIER
02-01-2023,Adults & Health,Bettertogether Limited,Adult Placement Scheme - Private Contractors Payment,665,0,NON COMMERCIAL SUPPLIER
02-01-2023,Adults & Health,Bettertogether Limited,Adult Placement Scheme - Private Contractors Payment,665,0,NON COMMERCIAL SUPPLIER
02-01-2023,Adults & Health,Bettertogether Limited,Adult Placement Scheme - Private Contractors Payment,665,0,NON COMMERCIAL SUPPLIER
02-01-2023,Adults & Health,Bettertogether Limited,Adult Placement Scheme - Private Contractors Payment,588,0,NON COMMERCIAL SUPPLIER
02-01-2023,Adults & Health,Bettertogether Limited,Adult Placement Scheme - Private Contractors Payment,588,0,NON COMMERCIAL SUPPLIER
02-01-2023,Adults & Health,Bettertogether Limited,Adult Placement Scheme - Private Contractors Payment,588,0,NON COMMERCIAL SUPPLIER
02-01-2023,Adults & Health,Bettertogether Limited,Adult Placement Scheme - Private Contractors Payment,588,0,NON COMMERCIAL SUPPLIER
02-01-2023,Adults & Health,Bettertogether Limited,Adult Placement Scheme - Private Contractors Payment,696,0,NON COMMERCIAL SUPPLIER
02-01-2023,Adults & Health,Bettertogether Limited,Adult Placement Scheme - Private Contractors Payment,696,0,NON COMMERCIAL SUPPLIER
02-01-2023,Adults & Health,Bettertogether Limited,Adult Placement Scheme - Private Contractors Payment,696,0,NON COMMERCIAL SUPPLIER
02-01-2023,Adults & Health,Bettertogether Limited,Adult Placement Scheme - Private Contractors Payment,696,0,NON COMMERCIAL SUPPLIER
02-01-2023,Adults & Health,Bettertogether Limited,Adult Placement Scheme - Private Contractors Payment,336.2,0,NON COMMERCIAL SUPPLIER
02-01-2023,Adults & Health,Bettertogether Limited,Adult Placement Scheme - Private Contractors Payment,542.32,0,NON COMMERCIAL SUPPLIER
02-01-2023,Adults & Health,Bettertogether Limited,Adult Placement Scheme - Private Contractors Payment,542.32,0,NON COMMERCIAL SUPPLIER
02-01-2023,Adults & Health,Bettertogether Limited,Adult Placement Scheme - Private Contractors Payment,542.32,0,NON COMMERCIAL SUPPLIER
02-01-2023,Adults & Health,Bettertogether Limited,Adult Placement Scheme - Private Contractors Payment,476,0,NON COMMERCIAL SUPPLIER
02-01-2023,Adults & Health,Bettertogether Limited,Adult Placement Scheme - Private Contractors Payment,476,0,NON COMMERCIAL SUPPLIER
02-01-2023,Adults & Health,Bettertogether Limited,Adult Placement Scheme - Private Contractors Payment,476,0,NON COMMERCIAL SUPPLIER
02-01-2023,Adults & Health,Bettertogether Limited,Adult Placement Scheme - Private Contractors Payment,476,0,NON COMMERCIAL SUPPLIER
02-01-2023,Adults & Health,Bettertogether Limited,Adult Placement Scheme - Private Contractors Payment,358,0,NON COMMERCIAL SUPPLIER
02-01-2023,Adults & Health,Bettertogether Limited,Adult Placement Scheme - Private Contractors Payment,594,0,NON COMMERCIAL SUPPLIER
02-01-2023,Adults & Health,Bettertogether Limited,Adult Placement Scheme - Private Contractors Payment,594,0,NON COMMERCIAL SUPPLIER
02-01-2023,Adults & Health,Bettertogether Limited,Adult Placement Scheme - Private Contractors Payment,594,0,NON COMMERCIAL SUPPLIER
02-01-2023,Adults & Health,Bettertogether Limited,Adult Placement Scheme - Private Contractors Payment,782,0,NON COMMERCIAL SUPPLIER
02-01-2023,Adults & Health,Bettertogether Limited,Adult Placement Scheme - Private Contractors Payment,782,0,NON COMMERCIAL SUPPLIER
02-01-2023,Adults & Health,Bettertogether Limited,Adult Placement Scheme - Private Contractors Payment,782,0,NON COMMERCIAL SUPPLIER
02-01-2023,Adults & Health,Bettertogether Limited,Adult Placement Scheme - Private Contractors Payment,782,0,NON COMMERCIAL SUPPLIER
02-01-2023,Adults & Health,Bettertogether Limited,Adult Placement Scheme - Private Contractors Payment,516,0,NON COMMERCIAL SUPPLIER
02-01-2023,Adults & Health,Bettertogether Limited,Adult Placement Scheme - Private Contractors Payment,812,0,NON COMMERCIAL SUPPLIER
02-01-2023,Adults & Health,Bettertogether Limited,Adult Placement Scheme - Private Contractors Payment,812,0,NON COMMERCIAL SUPPLIER
02-01-2023,Adults & Health,Bettertogether Limited,Adult Placement Scheme - Private Contractors Payment,535,0,NON COMMERCIAL SUPPLIER
02-01-2023,Adults & Health,Bettertogether Limited,Adult Placement Scheme - Private Contractors Payment,535,0,NON COMMERCIAL SUPPLIER
02-01-2023,Adults & Health,Bettertogether Limited,Adult Placement Scheme - Private Contractors Payment,535,0,NON COMMERCIAL SUPPLIER
02-01-2023,Adults & Health,Bettertogether Limited,Adult Placement Scheme - Private Contractors Payment,535,0,NON COMMERCIAL SUPPLIER
02-01-2023,Adults & Health,Bettertogether Limited,Adult Placement Scheme - Private Contractors Payment,535,0,NON COMMERCIAL SUPPLIER
02-01-2023,Adults & Health,Bettertogether Limited,Adult Placement Scheme - Private Contractors Payment,535,0,NON COMMERCIAL SUPPLIER
02-01-2023,Adults & Health,Bettertogether Limited,Adult Placement Scheme - Private Contractors Payment,535,0,NON COMMERCIAL SUPPLIER
02-01-2023,Adults & Health,Bettertogether Limited,Adult Placement Scheme - Private Contractors Payment,535,0,NON COMMERCIAL SUPPLIER
02-01-2023,Adults & Health,Bettertogether Limited,Adult Placement Scheme - Private Contractors Payment,535,0,NON COMMERCIAL SUPPLIER
02-01-2023,Adults & Health,Bettertogether Limited,Adult Placement Scheme - Private Contractors Payment,535,0,NON COMMERCIAL SUPPLIER
02-01-2023,Adults & Health,Bettertogether Limited,Adult Placement Scheme - Private Contractors Payment,535,0,NON COMMERCIAL SUPPLIER
02-01-2023,Adults & Health,Bettertogether Limited,Adult Placement Scheme - Private Contractors Payment,535,0,NON COMMERCIAL SUPPLIER
02-01-2023,Adults & Health,Bettertogether Limited,Daycare - Private Contractors Payment,86.4,0,NON COMMERCIAL SUPPLIER
02-01-2023,Adults & Health,Bettertogether Limited,Daycare - Private Contractors Payment,86.4,0,NON COMMERCIAL SUPPLIER
02-01-2023,Adults & Health,Bettertogether Limited,Adult Placement Scheme - Private Contractors Payment,574,0,NON COMMERCIAL SUPPLIER
02-01-2023,Adults & Health,Bettertogether Limited,Adult Placement Scheme - Private Contractors Payment,574,0,NON COMMERCIAL SUPPLIER
02-01-2023,Adults & Health,Bettertogether Limited,Adult Placement Scheme - Private Contractors Payment,418,0,NON COMMERCIAL SUPPLIER
02-01-2023,Adults & Health,Bettertogether Limited,Daycare - Private Contractors Payment,67.2,0,NON COMMERCIAL SUPPLIER
02-01-2023,Adults & Health,Bettertogether Limited,Adult Placement Scheme - Private Contractors Payment,574,0,NON COMMERCIAL SUPPLIER
02-01-2023,Adults & Health,Bettertogether Limited,Adult Placement Scheme - Private Contractors Payment,747,0,NON COMMERCIAL SUPPLIER
02-01-2023,Adults & Health,Bettertogether Limited,Adult Placement Scheme - Private Contractors Payment,747,0,NON COMMERCIAL SUPPLIER
02-01-2023,Adults & Health,Bettertogether Limited,Adult Placement Scheme - Private Contractors Payment,747,0,NON COMMERCIAL SUPPLIER
02-01-2023,Adults & Health,Bettertogether Limited,Adult Placement Scheme - Private Contractors Payment,747,0,NON COMMERCIAL SUPPLIER
02-01-2023,Adults & Health,Bettertogether Limited,Adult Placement Scheme - Private Contractors Payment,588,0,NON COMMERCIAL SUPPLIER
02-01-2023,Adults & Health,Bettertogether Limited,Adult Placement Scheme - Private Contractors Payment,588,0,NON COMMERCIAL SUPPLIER
02-01-2023,Adults & Health,Bettertogether Limited,Adult Placement Scheme - Private Contractors Payment,588,0,NON COMMERCIAL SUPPLIER
02-01-2023,Adults & Health,Bettertogether Limited,Adult Placement Scheme - Private Contractors Payment,588,0,NON COMMERCIAL SUPPLIER
02-01-2023,Adults & Health,Bettertogether Limited,Adult Placement Scheme - Private Contractors Payment,529,0,NON COMMERCIAL SUPPLIER
02-01-2023,Adults & Health,Bettertogether Limited,Adult Placement Scheme - Private Contractors Payment,529,0,NON COMMERCIAL SUPPLIER
02-01-2023,Adults & Health,Bettertogether Limited,Adult Placement Scheme - Private Contractors Payment,529,0,NON COMMERCIAL SUPPLIER
02-01-2023,Adults & Health,Bettertogether Limited,Adult Placement Scheme - Private Contractors Payment,509,0,NON COMMERCIAL SUPPLIER
02-01-2023,Adults & Health,Bettertogether Limited,Daycare - Private Contractors Payment,172.8,0,NON COMMERCIAL SUPPLIER
02-01-2023,Adults & Health,Bettertogether Limited,Daycare - Private Contractors Payment,81.6,0,NON COMMERCIAL SUPPLIER
02-01-2023,Adults & Health,Bettertogether Limited,Daycare - Private Contractors Payment,172.8,0,NON COMMERCIAL SUPPLIER
02-01-2023,Adults & Health,Bettertogether Limited,Adult Placement Scheme - Private Contractors Payment,588,0,NON COMMERCIAL SUPPLIER
02-01-2023,Adults & Health,Bettertogether Limited,Adult Placement Scheme - Private Contractors Payment,588,0,NON COMMERCIAL SUPPLIER
02-01-2023,Adults & Health,Bettertogether Limited,Daycare - Private Contractors Payment,172.8,0,NON COMMERCIAL SUPPLIER
02-01-2023,Adults & Health,Bettertogether Limited,Adult Placement Scheme - Private Contractors Payment,588,0,NON COMMERCIAL SUPPLIER
02-01-2023,Adults & Health,Bettertogether Limited,Adult Placement Scheme - Private Contractors Payment,588,0,NON COMMERCIAL SUPPLIER
02-01-2023,Adults & Health,Bettertogether Limited,Adult Placement Scheme - Private Contractors Payment,153.4,0,NON COMMERCIAL SUPPLIER
02-01-2023,Adults & Health,Bettertogether Limited,Adult Placement Scheme - Private Contractors Payment,662.2,0,NON COMMERCIAL SUPPLIER
02-01-2023,Adults & Health,Bettertogether Limited,Adult Placement Scheme - Private Contractors Payment,662.2,0,NON COMMERCIAL SUPPLIER
02-01-2023,Adults & Health,Bettertogether Limited,Adult Placement Scheme - Private Contractors Payment,662.2,0,NON COMMERCIAL SUPPLIER
02-01-2023,Adults & Health,Bettertogether Limited,Adult Placement Scheme - Private Contractors Payment,476,0,NON COMMERCIAL SUPPLIER
02-01-2023,Adults & Health,Bettertogether Limited,Adult Placement Scheme - Private Contractors Payment,476,0,NON COMMERCIAL SUPPLIER
02-01-2023,Adults & Health,Bettertogether Limited,Adult Placement Scheme - Private Contractors Payment,476,0,NON COMMERCIAL SUPPLIER
02-01-2023,Adults & Health,Bettertogether Limited,Adult Placement Scheme - Private Contractors Payment,476,0,NON COMMERCIAL SUPPLIER
02-01-2023,Adults & Health,Bettertogether Limited,Adult Placement Scheme - Private Contractors Payment,535,0,NON COMMERCIAL SUPPLIER
02-01-2023,Adults & Health,Bettertogether Limited,Adult Placement Scheme - Private Contractors Payment,535,0,NON COMMERCIAL SUPPLIER
02-01-2023,Adults & Health,Bettertogether Limited,Adult Placement Scheme - Private Contractors Payment,535,0,NON COMMERCIAL SUPPLIER
02-01-2023,Adults & Health,Bettertogether Limited,Adult Placement Scheme - Private Contractors Payment,535,0,NON COMMERCIAL SUPPLIER
02-01-2023,Adults & Health,Bettertogether Limited,Adult Placement Scheme - Private Contractors Payment,535,0,NON COMMERCIAL SUPPLIER
02-01-2023,Adults & Health,Bettertogether Limited,Adult Placement Scheme - Private Contractors Payment,535,0,NON COMMERCIAL SUPPLIER
02-01-2023,Adults & Health,Bettertogether Limited,Adult Placement Scheme - Private Contractors Payment,535,0,NON COMMERCIAL SUPPLIER
02-01-2023,Adults & Health,Bettertogether Limited,Adult Placement Scheme - Private Contractors Payment,535,0,NON COMMERCIAL SUPPLIER
02-01-2023,Adults & Health,Bettertogether Limited,Adult Placement Scheme - Private Contractors Payment,535,0,NON COMMERCIAL SUPPLIER
02-01-2023,Adults & Health,Bettertogether Limited,Adult Placement Scheme - Private Contractors Payment,535,0,NON COMMERCIAL SUPPLIER
02-01-2023,Adults & Health,Bettertogether Limited,Adult Placement Scheme - Private Contractors Payment,535,0,NON COMMERCIAL SUPPLIER
02-01-2023,Adults & Health,Bettertogether Limited,Adult Placement Scheme - Private Contractors Payment,535,0,NON COMMERCIAL SUPPLIER
02-01-2023,Adults & Health,Bettertogether Limited,Adult Placement Scheme - Private Contractors Payment,655,0,NON COMMERCIAL SUPPLIER
02-01-2023,Adults & Health,Bettertogether Limited,Adult Placement Scheme - Private Contractors Payment,655,0,NON COMMERCIAL SUPPLIER
02-01-2023,Adults & Health,Bettertogether Limited,Adult Placement Scheme - Private Contractors Payment,655,0,NON COMMERCIAL SUPPLIER
02-01-2023,Adults & Health,Bettertogether Limited,Adult Placement Scheme - Private Contractors Payment,655,0,NON COMMERCIAL SUPPLIER
02-01-2023,Marketing,Wellbeing & Wisdom Works,Events,300,0,COMMERCIAL SUPPLIER
02-01-2023,Resources,Personal Information - Redacted,"Books, Publications And Resources",283,0,Employee
02-01-2023,Dedicated Schools Budget,Personal Information - Redacted,Professional Services - General,1289.17,0,COMMERCIAL SUPPLIER
03-01-2023,Children and Young People,Personal Information - Redacted,Payment To Other Local Authorities,723.1,0,INDIVIDUALS
03-01-2023,Environment and Sustainable Transport,Sully Form Ltd,"Maintenance - Equipment, Furniture And Materials",5268.12,0,VENDOR
03-01-2023,Adults & Health,Independence Brokerage Services CIC,Consultancy Fees,1522.84,0,COMMERCIAL SUPPLIER
03-01-2023,Adults & Health,3HA Care Services,Home Care - Private Contractors Payment,180.6,0,COMMERCIAL SUPPLIER
03-01-2023,Adults & Health,3HA Care Services,Home Care - Private Contractors Payment,180.6,0,COMMERCIAL SUPPLIER
03-01-2023,Adults & Health,3HA Care Services,Home Care - Private Contractors Payment,180.6,0,COMMERCIAL SUPPLIER
03-01-2023,Adults & Health,3HA Care Services,Home Care - Private Contractors Payment,180.6,0,COMMERCIAL SUPPLIER
03-01-2023,Housing Revenue Account,CTR Triangle Ltd,Professional Services - General,90560,0,VENDOR
03-01-2023,Dedicated Schools Budget,Capel Manor College,Professional Services - General,9240.96,0,COMMERCIAL SUPPLIER
03-01-2023,Children and Young People,Goldline Cars Ltd,Client Transport,735,0,COMMERCIAL SUPPLIER
03-01-2023,Children and Young People,Goldline Cars Ltd,Client Transport,450,0,COMMERCIAL SUPPLIER
03-01-2023,Children and Young People,Goldline Cars Ltd,Client Transport,940,0,COMMERCIAL SUPPLIER
03-01-2023,Children and Young People,Goldline Cars Ltd,Client Transport,1080,0,COMMERCIAL SUPPLIER
03-01-2023,Children and Young People,Goldline Cars Ltd,Client Transport,450,0,COMMERCIAL SUPPLIER
03-01-2023,Dedicated Schools Budget,Personal Information - Redacted,Private Contractors Payment - Other,1374,0,COMMERCIAL SUPPLIER
03-01-2023,Dedicated Schools Budget,Personal Information - Redacted,Private Contractors Payment - Other,1374,0,COMMERCIAL SUPPLIER
03-01-2023,Adults & Health,Eastway Care Ltd,Daycare - Private Contractors Payment,570.9,0,COMMERCIAL SUPPLIER
03-01-2023,Adults & Health,Eastway Care Ltd,Daycare - Private Contractors Payment,570.9,0,COMMERCIAL SUPPLIER
03-01-2023,Adults & Health,Eastway Care Ltd,Daycare - Private Contractors Payment,568.26,0,COMMERCIAL SUPPLIER
03-01-2023,Adults & Health,Eastway Care Ltd,Daycare - Private Contractors Payment,570.9,0,COMMERCIAL SUPPLIER
03-01-2023,Adults & Health,Caronne Care Ltd,Home Care - Private Contractors Payment,71.85,0,NON COMMERCIAL SUPPLIER
03-01-2023,Adults & Health,Caronne Care Ltd,Home Care - Private Contractors Payment,91.01,0,NON COMMERCIAL SUPPLIER
03-01-2023,Adults & Health,Caronne Care Ltd,Home Care - Private Contractors Payment,167.65,0,NON COMMERCIAL SUPPLIER
03-01-2023,Adults & Health,Caronne Care Ltd,Home Care - Private Contractors Payment,234.71,0,NON COMMERCIAL SUPPLIER
03-01-2023,Adults & Health,Caronne Care Ltd,Home Care - Private Contractors Payment,19.16,0,NON COMMERCIAL SUPPLIER
03-01-2023,Adults & Health,Caronne Care Ltd,Home Care - Private Contractors Payment,134.12,0,NON COMMERCIAL SUPPLIER
03-01-2023,Adults & Health,Caronne Care Ltd,Home Care - Private Contractors Payment,19.16,0,NON COMMERCIAL SUPPLIER
03-01-2023,Adults & Health,Caronne Care Ltd,Home Care - Private Contractors Payment,9.58,0,NON COMMERCIAL SUPPLIER
03-01-2023,Adults & Health,Caronne Care Ltd,Home Care - Private Contractors Payment,47.9,0,NON COMMERCIAL SUPPLIER
03-01-2023,Adults & Health,Caronne Care Ltd,Home Care - Private Contractors Payment,234.71,0,NON COMMERCIAL SUPPLIER
03-01-2023,Adults & Health,Caronne Care Ltd,Home Care - Private Contractors Payment,469.42,0,NON COMMERCIAL SUPPLIER
03-01-2023,Adults & Health,Caronne Care Ltd,Home Care - Private Contractors Payment,234.71,0,NON COMMERCIAL SUPPLIER
03-01-2023,Adults & Health,Caronne Care Ltd,Home Care - Private Contractors Payment,67.06,0,NON COMMERCIAL SUPPLIER
03-01-2023,Adults & Health,Caronne Care Ltd,Home Care - Private Contractors Payment,301.77,0,NON COMMERCIAL SUPPLIER
03-01-2023,Adults & Health,Caronne Care Ltd,Daycare - Private Contractors Payment,19.16,0,NON COMMERCIAL SUPPLIER
03-01-2023,Adults & Health,Caronne Care Ltd,Home Care - Private Contractors Payment,100.59,0,NON COMMERCIAL SUPPLIER
03-01-2023,Adults & Health,Caronne Care Ltd,Daycare - Private Contractors Payment,57.48,0,NON COMMERCIAL SUPPLIER
03-01-2023,Adults & Health,Caronne Care Ltd,Home Care - Private Contractors Payment,19.16,0,NON COMMERCIAL SUPPLIER
03-01-2023,Adults & Health,Caronne Care Ltd,Respite Care - Private Contractors Payment,57.48,0,NON COMMERCIAL SUPPLIER
03-01-2023,Adults & Health,Caronne Care Ltd,Daycare - Private Contractors Payment,38.32,0,NON COMMERCIAL SUPPLIER
03-01-2023,Adults & Health,Caronne Care Ltd,Home Care - Private Contractors Payment,402.36,0,NON COMMERCIAL SUPPLIER
03-01-2023,Adults & Health,Caronne Care Ltd,Home Care - Private Contractors Payment,167.65,0,NON COMMERCIAL SUPPLIER
03-01-2023,Adults & Health,Caronne Care Ltd,Home Care - Private Contractors Payment,47.9,0,NON COMMERCIAL SUPPLIER
03-01-2023,Adults & Health,Caronne Care Ltd,Home Care - Private Contractors Payment,234.71,0,NON COMMERCIAL SUPPLIER
03-01-2023,Adults & Health,Caronne Care Ltd,Daycare - Private Contractors Payment,19.16,0,NON COMMERCIAL SUPPLIER
03-01-2023,Adults & Health,Caronne Care Ltd,Home Care - Private Contractors Payment,234.71,0,NON COMMERCIAL SUPPLIER
03-01-2023,Adults & Health,Caronne Care Ltd,Home Care - Private Contractors Payment,38.32,0,NON COMMERCIAL SUPPLIER
03-01-2023,Adults & Health,Caronne Care Ltd,Reablement,234.71,0,NON COMMERCIAL SUPPLIER
03-01-2023,Adults & Health,Caronne Care Ltd,Daycare - Private Contractors Payment,38.32,0,NON COMMERCIAL SUPPLIER
03-01-2023,Adults & Health,Caronne Care Ltd,Home Care - Private Contractors Payment,167.65,0,NON COMMERCIAL SUPPLIER
03-01-2023,Adults & Health,Caronne Care Ltd,Home Care - Private Contractors Payment,162.86,0,NON COMMERCIAL SUPPLIER
03-01-2023,Adults & Health,Caronne Care Ltd,Home Care - Private Contractors Payment,234.71,0,NON COMMERCIAL SUPPLIER
03-01-2023,Adults & Health,Caronne Care Ltd,Home Care - Private Contractors Payment,402.36,0,NON COMMERCIAL SUPPLIER
03-01-2023,Adults & Health,Caronne Care Ltd,Home Care - Private Contractors Payment,301.77,0,NON COMMERCIAL SUPPLIER
03-01-2023,Adults & Health,Caronne Care Ltd,Home Care - Private Contractors Payment,167.65,0,NON COMMERCIAL SUPPLIER
03-01-2023,Adults & Health,Caronne Care Ltd,Home Care - Private Contractors Payment,129.33,0,NON COMMERCIAL SUPPLIER
03-01-2023,Adults & Health,Caronne Care Ltd,Home Care - Private Contractors Payment,134.12,0,NON COMMERCIAL SUPPLIER
03-01-2023,Adults & Health,Caronne Care Ltd,Respite Care - Private Contractors Payment,57.48,0,NON COMMERCIAL SUPPLIER
03-01-2023,Adults & Health,Caronne Care Ltd,Home Care - Private Contractors Payment,9.58,0,NON COMMERCIAL SUPPLIER
03-01-2023,Adults & Health,Caronne Care Ltd,Daycare - Private Contractors Payment,57.48,0,NON COMMERCIAL SUPPLIER
03-01-2023,Adults & Health,Caronne Care Ltd,Home Care - Private Contractors Payment,100.59,0,NON COMMERCIAL SUPPLIER
03-01-2023,Adults & Health,Caronne Care Ltd,Home Care - Private Contractors Payment,234.71,0,NON COMMERCIAL SUPPLIER
03-01-2023,Adults & Health,Caronne Care Ltd,Respite Care - Private Contractors Payment,57.48,0,NON COMMERCIAL SUPPLIER
03-01-2023,Adults & Health,Caronne Care Ltd,Home Care - Private Contractors Payment,143.7,0,NON COMMERCIAL SUPPLIER
03-01-2023,Adults & Health,Caronne Care Ltd,Daycare - Private Contractors Payment,38.32,0,NON COMMERCIAL SUPPLIER
03-01-2023,Adults & Health,Caronne Care Ltd,Home Care - Private Contractors Payment,28.74,0,NON COMMERCIAL SUPPLIER
03-01-2023,Adults & Health,Caronne Care Ltd,Reablement,28.74,0,NON COMMERCIAL SUPPLIER
03-01-2023,Adults & Health,Caronne Care Ltd,Home Care - Private Contractors Payment,38.32,0,NON COMMERCIAL SUPPLIER
03-01-2023,Adults & Health,Caronne Care Ltd,Home Care - Private Contractors Payment,19.16,0,NON COMMERCIAL SUPPLIER
03-01-2023,Adults & Health,Caronne Care Ltd,Home Care - Private Contractors Payment,383.2,0,NON COMMERCIAL SUPPLIER
03-01-2023,Adults & Health,Caronne Care Ltd,Home Care - Private Contractors Payment,143.7,0,NON COMMERCIAL SUPPLIER
03-01-2023,Adults & Health,Caronne Care Ltd,Home Care - Private Contractors Payment,301.77,0,NON COMMERCIAL SUPPLIER
03-01-2023,Adults & Health,Caronne Care Ltd,Daycare - Private Contractors Payment,38.32,0,NON COMMERCIAL SUPPLIER
03-01-2023,Adults & Health,Caronne Care Ltd,Home Care - Private Contractors Payment,459.84,0,NON COMMERCIAL SUPPLIER
03-01-2023,Adults & Health,Caronne Care Ltd,Home Care - Private Contractors Payment,19.16,0,NON COMMERCIAL SUPPLIER
03-01-2023,Adults & Health,Caronne Care Ltd,Home Care - Private Contractors Payment,550.85,0,NON COMMERCIAL SUPPLIER
03-01-2023,Adults & Health,Caronne Care Ltd,Home Care - Private Contractors Payment,134.12,0,NON COMMERCIAL SUPPLIER
03-01-2023,Adults & Health,Caronne Care Ltd,Home Care - Private Contractors Payment,28.74,0,NON COMMERCIAL SUPPLIER
03-01-2023,Adults & Health,Caronne Care Ltd,Home Care - Private Contractors Payment,4.79,0,NON COMMERCIAL SUPPLIER
03-01-2023,Adults & Health,Caronne Care Ltd,Home Care - Private Contractors Payment,234.71,0,NON COMMERCIAL SUPPLIER
03-01-2023,Adults & Health,Caronne Care Ltd,Daycare - Private Contractors Payment,57.48,0,NON COMMERCIAL SUPPLIER
03-01-2023,Adults & Health,Caronne Care Ltd,Home Care - Private Contractors Payment,9.58,0,NON COMMERCIAL SUPPLIER
03-01-2023,Adults & Health,Caronne Care Ltd,Home Care - Private Contractors Payment,105.38,0,NON COMMERCIAL SUPPLIER
03-01-2023,Adults & Health,Caronne Care Ltd,Reablement,234.71,0,NON COMMERCIAL SUPPLIER
03-01-2023,Adults & Health,Caronne Care Ltd,Home Care - Private Contractors Payment,38.32,0,NON COMMERCIAL SUPPLIER
03-01-2023,Adults & Health,Caronne Care Ltd,Reablement,95.8,0,NON COMMERCIAL SUPPLIER
03-01-2023,Adults & Health,Caronne Care Ltd,Daycare - Private Contractors Payment,19.16,0,NON COMMERCIAL SUPPLIER
03-01-2023,Adults & Health,Caronne Care Ltd,Home Care - Private Contractors Payment,38.32,0,NON COMMERCIAL SUPPLIER
03-01-2023,Adults & Health,Caronne Care Ltd,Home Care - Private Contractors Payment,100.59,0,NON COMMERCIAL SUPPLIER
03-01-2023,Adults & Health,Caronne Care Ltd,Reablement,28.74,0,NON COMMERCIAL SUPPLIER
03-01-2023,Adults & Health,Caronne Care Ltd,Home Care - Private Contractors Payment,570.01,0,NON COMMERCIAL SUPPLIER
03-01-2023,Adults & Health,Caronne Care Ltd,Reablement,234.71,0,NON COMMERCIAL SUPPLIER
03-01-2023,Adults & Health,Caronne Care Ltd,Daycare - Private Contractors Payment,38.32,0,NON COMMERCIAL SUPPLIER
03-01-2023,Adults & Health,Caronne Care Ltd,Respite Care - Private Contractors Payment,57.48,0,NON COMMERCIAL SUPPLIER
03-01-2023,Adults & Health,Caronne Care Ltd,Home Care - Private Contractors Payment,301.77,0,NON COMMERCIAL SUPPLIER
03-01-2023,Adults & Health,Caronne Care Ltd,Daycare - Private Contractors Payment,57.48,0,NON COMMERCIAL SUPPLIER
03-01-2023,Adults & Health,Caronne Care Ltd,Home Care - Private Contractors Payment,38.32,0,NON COMMERCIAL SUPPLIER
03-01-2023,Adults & Health,Caronne Care Ltd,Home Care - Private Contractors Payment,19.16,0,NON COMMERCIAL SUPPLIER
03-01-2023,Adults & Health,Caronne Care Ltd,Home Care - Private Contractors Payment,47.9,0,NON COMMERCIAL SUPPLIER
03-01-2023,Adults & Health,Caronne Care Ltd,Home Care - Private Contractors Payment,38.32,0,NON COMMERCIAL SUPPLIER
03-01-2023,Adults & Health,Caronne Care Ltd,Home Care - Private Contractors Payment,167.65,0,NON COMMERCIAL SUPPLIER
03-01-2023,Adults & Health,Caronne Care Ltd,Home Care - Private Contractors Payment,134.12,0,NON COMMERCIAL SUPPLIER
03-01-2023,Adults & Health,Caronne Care Ltd,Home Care - Private Contractors Payment,301.77,0,NON COMMERCIAL SUPPLIER
03-01-2023,Adults & Health,Caronne Care Ltd,Home Care - Private Contractors Payment,469.42,0,NON COMMERCIAL SUPPLIER
03-01-2023,Adults & Health,Caronne Care Ltd,Home Care - Private Contractors Payment,67.06,0,NON COMMERCIAL SUPPLIER
03-01-2023,Adults & Health,Caronne Care Ltd,Reablement,134.12,0,NON COMMERCIAL SUPPLIER
03-01-2023,Adults & Health,Caronne Care Ltd,Home Care - Private Contractors Payment,19.16,0,NON COMMERCIAL SUPPLIER
03-01-2023,Adults & Health,Caronne Care Ltd,Home Care - Private Contractors Payment,134.12,0,NON COMMERCIAL SUPPLIER
03-01-2023,Adults & Health,Caronne Care Ltd,Reablement,19.16,0,NON COMMERCIAL SUPPLIER
03-01-2023,Adults & Health,Caronne Care Ltd,Home Care - Private Contractors Payment,71.85,0,NON COMMERCIAL SUPPLIER
03-01-2023,Adults & Health,Caronne Care Ltd,Home Care - Private Contractors Payment,19.16,0,NON COMMERCIAL SUPPLIER
03-01-2023,Adults & Health,Caronne Care Ltd,Daycare - Private Contractors Payment,38.32,0,NON COMMERCIAL SUPPLIER
03-01-2023,Adults & Health,Caronne Care Ltd,Home Care - Private Contractors Payment,100.59,0,NON COMMERCIAL SUPPLIER
03-01-2023,Adults & Health,Caronne Care Ltd,Home Care - Private Contractors Payment,301.77,0,NON COMMERCIAL SUPPLIER
03-01-2023,Adults & Health,Caronne Care Ltd,Daycare - Private Contractors Payment,57.48,0,NON COMMERCIAL SUPPLIER
03-01-2023,Adults & Health,Caronne Care Ltd,Home Care - Private Contractors Payment,407.15,0,NON COMMERCIAL SUPPLIER
03-01-2023,Adults & Health,Caronne Care Ltd,Home Care - Private Contractors Payment,421.52,0,NON COMMERCIAL SUPPLIER
03-01-2023,Adults & Health,Caronne Care Ltd,Daycare - Private Contractors Payment,19.16,0,NON COMMERCIAL SUPPLIER
03-01-2023,Adults & Health,Caronne Care Ltd,Home Care - Private Contractors Payment,134.12,0,NON COMMERCIAL SUPPLIER
03-01-2023,Adults & Health,Caronne Care Ltd,Daycare - Private Contractors Payment,38.32,0,NON COMMERCIAL SUPPLIER
03-01-2023,Adults & Health,Caronne Care Ltd,Home Care - Private Contractors Payment,100.59,0,NON COMMERCIAL SUPPLIER
03-01-2023,Adults & Health,Caronne Care Ltd,Home Care - Private Contractors Payment,38.32,0,NON COMMERCIAL SUPPLIER
03-01-2023,Adults & Health,Caronne Care Ltd,Home Care - Private Contractors Payment,124.54,0,NON COMMERCIAL SUPPLIER
03-01-2023,Adults & Health,Caronne Care Ltd,Home Care - Private Contractors Payment,249.08,0,NON COMMERCIAL SUPPLIER
03-01-2023,Adults & Health,Caronne Care Ltd,Reablement,67.06,0,NON COMMERCIAL SUPPLIER
03-01-2023,Adults & Health,Caronne Care Ltd,Home Care - Private Contractors Payment,167.65,0,NON COMMERCIAL SUPPLIER
03-01-2023,Adults & Health,Caronne Care Ltd,Home Care - Private Contractors Payment,81.43,0,NON COMMERCIAL SUPPLIER
03-01-2023,Adults & Health,Caronne Care Ltd,Home Care - Private Contractors Payment,38.32,0,NON COMMERCIAL SUPPLIER
03-01-2023,Adults & Health,Caronne Care Ltd,Home Care - Private Contractors Payment,402.36,0,NON COMMERCIAL SUPPLIER
03-01-2023,Adults & Health,Caronne Care Ltd,Daycare - Private Contractors Payment,38.32,0,NON COMMERCIAL SUPPLIER
03-01-2023,Adults & Health,Caronne Care Ltd,Home Care - Private Contractors Payment,134.12,0,NON COMMERCIAL SUPPLIER
03-01-2023,Adults & Health,Caronne Care Ltd,Home Care - Private Contractors Payment,14.37,0,NON COMMERCIAL SUPPLIER
03-01-2023,Adults & Health,Caronne Care Ltd,Home Care - Private Contractors Payment,9.58,0,NON COMMERCIAL SUPPLIER
03-01-2023,Adults & Health,Caronne Care Ltd,Home Care - Private Contractors Payment,119.75,0,NON COMMERCIAL SUPPLIER
03-01-2023,Adults & Health,Caronne Care Ltd,Home Care - Private Contractors Payment,469.42,0,NON COMMERCIAL SUPPLIER
03-01-2023,Adults & Health,Caronne Care Ltd,Home Care - Private Contractors Payment,71.85,0,NON COMMERCIAL SUPPLIER
03-01-2023,Adults & Health,Caronne Care Ltd,Home Care - Private Contractors Payment,19.16,0,NON COMMERCIAL SUPPLIER
03-01-2023,Adults & Health,Caronne Care Ltd,Reablement,134.12,0,NON COMMERCIAL SUPPLIER
03-01-2023,Adults & Health,Caronne Care Ltd,Home Care - Private Contractors Payment,38.32,0,NON COMMERCIAL SUPPLIER
03-01-2023,Adults & Health,Caronne Care Ltd,Reablement,234.71,0,NON COMMERCIAL SUPPLIER
03-01-2023,Adults & Health,Caronne Care Ltd,Home Care - Private Contractors Payment,134.12,0,NON COMMERCIAL SUPPLIER
03-01-2023,Adults & Health,Caronne Care Ltd,Home Care - Private Contractors Payment,38.32,0,NON COMMERCIAL SUPPLIER
03-01-2023,Adults & Health,Caronne Care Ltd,Home Care - Private Contractors Payment,234.71,0,NON COMMERCIAL SUPPLIER
03-01-2023,Adults & Health,Caronne Care Ltd,Home Care - Private Contractors Payment,167.65,0,NON COMMERCIAL SUPPLIER
03-01-2023,Adults & Health,Caronne Care Ltd,Home Care - Private Contractors Payment,570.01,0,NON COMMERCIAL SUPPLIER
03-01-2023,Adults & Health,Caronne Care Ltd,Home Care - Private Contractors Payment,67.06,0,NON COMMERCIAL SUPPLIER
03-01-2023,Adults & Health,Caronne Care Ltd,Daycare - Private Contractors Payment,19.16,0,NON COMMERCIAL SUPPLIER
03-01-2023,Adults & Health,Caronne Care Ltd,Home Care - Private Contractors Payment,19.16,0,NON COMMERCIAL SUPPLIER
03-01-2023,Adults & Health,Caronne Care Ltd,Home Care - Private Contractors Payment,301.77,0,NON COMMERCIAL SUPPLIER
03-01-2023,Adults & Health,Caronne Care Ltd,Reablement,67.06,0,NON COMMERCIAL SUPPLIER
03-01-2023,Adults & Health,Caronne Care Ltd,Home Care - Private Contractors Payment,301.77,0,NON COMMERCIAL SUPPLIER
03-01-2023,Adults & Health,Caronne Care Ltd,Home Care - Private Contractors Payment,134.12,0,NON COMMERCIAL SUPPLIER
03-01-2023,Adults & Health,Caronne Care Ltd,Home Care - Private Contractors Payment,167.65,0,NON COMMERCIAL SUPPLIER
03-01-2023,Inclusive Economy & Housing,15Billion,Ict Maintenance And Support,23501.33,0,COMMERCIAL SUPPLIER
03-01-2023,Inclusive Economy & Housing,15Billion,Ict Maintenance And Support,16786.67,0,COMMERCIAL SUPPLIER
03-01-2023,Resources,Crusader Training Services,Professional Services - General,800,0,COMMERCIAL SUPPLIER
03-01-2023,Adults & Health,Bio Luminuex Health Care Ltd,Home Care - Private Contractors Payment,19.16,0,VENDOR
03-01-2023,Adults & Health,Bio Luminuex Health Care Ltd,Home Care - Private Contractors Payment,268.24,0,VENDOR
03-01-2023,Adults & Health,Bio Luminuex Health Care Ltd,Home Care - Private Contractors Payment,100.59,0,VENDOR
03-01-2023,Adults & Health,Bio Luminuex Health Care Ltd,Daycare - Private Contractors Payment,38.32,0,VENDOR
03-01-2023,Adults & Health,Bio Luminuex Health Care Ltd,Home Care - Private Contractors Payment,201.18,0,VENDOR
03-01-2023,Adults & Health,Bio Luminuex Health Care Ltd,Home Care - Private Contractors Payment,498.16,0,VENDOR
03-01-2023,Adults & Health,Bio Luminuex Health Care Ltd,Home Care - Private Contractors Payment,100.59,0,VENDOR
03-01-2023,Adults & Health,Bio Luminuex Health Care Ltd,Daycare - Private Contractors Payment,76.64,0,VENDOR
03-01-2023,Adults & Health,Bio Luminuex Health Care Ltd,Home Care - Private Contractors Payment,301.77,0,VENDOR
03-01-2023,Adults & Health,Bio Luminuex Health Care Ltd,Home Care - Private Contractors Payment,234.71,0,VENDOR
03-01-2023,Adults & Health,Bio Luminuex Health Care Ltd,Home Care - Private Contractors Payment,38.32,0,VENDOR
03-01-2023,Adults & Health,Bio Luminuex Health Care Ltd,Home Care - Private Contractors Payment,335.3,0,VENDOR
03-01-2023,Adults & Health,Bio Luminuex Health Care Ltd,Home Care - Private Contractors Payment,167.65,0,VENDOR
03-01-2023,Adults & Health,Bio Luminuex Health Care Ltd,Home Care - Private Contractors Payment,167.65,0,VENDOR
03-01-2023,Adults & Health,Bio Luminuex Health Care Ltd,Home Care - Private Contractors Payment,234.71,0,VENDOR
03-01-2023,Adults & Health,Bio Luminuex Health Care Ltd,Daycare - Private Contractors Payment,191.6,0,VENDOR
03-01-2023,Adults & Health,Bio Luminuex Health Care Ltd,Home Care - Private Contractors Payment,167.65,0,VENDOR
03-01-2023,Adults & Health,Bio Luminuex Health Care Ltd,Home Care - Private Contractors Payment,234.71,0,VENDOR
03-01-2023,Adults & Health,Bio Luminuex Health Care Ltd,Daycare - Private Contractors Payment,76.64,0,VENDOR
03-01-2023,Adults & Health,Bio Luminuex Health Care Ltd,Home Care - Private Contractors Payment,19.16,0,VENDOR
03-01-2023,Adults & Health,Bio Luminuex Health Care Ltd,Home Care - Private Contractors Payment,234.71,0,VENDOR
03-01-2023,Adults & Health,Bio Luminuex Health Care Ltd,Home Care - Private Contractors Payment,570.01,0,VENDOR
03-01-2023,Adults & Health,Bio Luminuex Health Care Ltd,Home Care - Private Contractors Payment,335.3,0,VENDOR
03-01-2023,Adults & Health,Bio Luminuex Health Care Ltd,Home Care - Private Contractors Payment,28.74,0,VENDOR
03-01-2023,Adults & Health,Bio Luminuex Health Care Ltd,Home Care - Private Contractors Payment,19.16,0,VENDOR
03-01-2023,Adults & Health,Bio Luminuex Health Care Ltd,Home Care - Private Contractors Payment,234.71,0,VENDOR
03-01-2023,Adults & Health,Bio Luminuex Health Care Ltd,Home Care - Private Contractors Payment,100.59,0,VENDOR
03-01-2023,Adults & Health,Bio Luminuex Health Care Ltd,Daycare - Private Contractors Payment,38.32,0,VENDOR
03-01-2023,Adults & Health,Bio Luminuex Health Care Ltd,Daycare - Private Contractors Payment,38.32,0,VENDOR
03-01-2023,Adults & Health,Bio Luminuex Health Care Ltd,Home Care - Private Contractors Payment,28.74,0,VENDOR
03-01-2023,Adults & Health,Bio Luminuex Health Care Ltd,Home Care - Private Contractors Payment,38.32,0,VENDOR
03-01-2023,Adults & Health,Bio Luminuex Health Care Ltd,Home Care - Private Contractors Payment,301.77,0,VENDOR
03-01-2023,Adults & Health,Bio Luminuex Health Care Ltd,Home Care - Private Contractors Payment,368.83,0,VENDOR
03-01-2023,Adults & Health,Bio Luminuex Health Care Ltd,Home Care - Private Contractors Payment,570.01,0,VENDOR
03-01-2023,Adults & Health,Bio Luminuex Health Care Ltd,Home Care - Private Contractors Payment,335.3,0,VENDOR
03-01-2023,Adults & Health,Bio Luminuex Health Care Ltd,Home Care - Private Contractors Payment,134.12,0,VENDOR
03-01-2023,Adults & Health,Bio Luminuex Health Care Ltd,Daycare - Private Contractors Payment,57.48,0,VENDOR
03-01-2023,Adults & Health,Bio Luminuex Health Care Ltd,Home Care - Private Contractors Payment,134.12,0,VENDOR
03-01-2023,Adults & Health,Bio Luminuex Health Care Ltd,Home Care - Private Contractors Payment,570.01,0,VENDOR
03-01-2023,Adults & Health,Bio Luminuex Health Care Ltd,Home Care - Private Contractors Payment,301.77,0,VENDOR
03-01-2023,Adults & Health,Bio Luminuex Health Care Ltd,Home Care - Private Contractors Payment,19.16,0,VENDOR
03-01-2023,Adults & Health,Bio Luminuex Health Care Ltd,Home Care - Private Contractors Payment,201.18,0,VENDOR
03-01-2023,Adults & Health,Bio Luminuex Health Care Ltd,Home Care - Private Contractors Payment,570.01,0,VENDOR
03-01-2023,Adults & Health,Bio Luminuex Health Care Ltd,Home Care - Private Contractors Payment,536.48,0,VENDOR
03-01-2023,Adults & Health,Bio Luminuex Health Care Ltd,Home Care - Private Contractors Payment,57.48,0,VENDOR
03-01-2023,Adults & Health,Bio Luminuex Health Care Ltd,Reablement,67.06,0,VENDOR
03-01-2023,Adults & Health,Bio Luminuex Health Care Ltd,Home Care - Private Contractors Payment,100.59,0,VENDOR
03-01-2023,Adults & Health,Bio Luminuex Health Care Ltd,Home Care - Private Contractors Payment,201.18,0,VENDOR
03-01-2023,Adults & Health,Bio Luminuex Health Care Ltd,Daycare - Private Contractors Payment,38.32,0,VENDOR
03-01-2023,Adults & Health,Bio Luminuex Health Care Ltd,Home Care - Private Contractors Payment,182.02,0,VENDOR
03-01-2023,Adults & Health,Bio Luminuex Health Care Ltd,Home Care - Private Contractors Payment,57.48,0,VENDOR
03-01-2023,Adults & Health,Bio Luminuex Health Care Ltd,Reablement,172.44,0,VENDOR
03-01-2023,Adults & Health,Bio Luminuex Health Care Ltd,Home Care - Private Contractors Payment,143.7,0,VENDOR
03-01-2023,Adults & Health,Bio Luminuex Health Care Ltd,Home Care - Private Contractors Payment,100.59,0,VENDOR
03-01-2023,Adults & Health,Bio Luminuex Health Care Ltd,Home Care - Private Contractors Payment,19.16,0,VENDOR
03-01-2023,Adults & Health,Bio Luminuex Health Care Ltd,Home Care - Private Contractors Payment,229.92,0,VENDOR
03-01-2023,Adults & Health,Bio Luminuex Health Care Ltd,Reablement,124.54,0,VENDOR
03-01-2023,Adults & Health,Bio Luminuex Health Care Ltd,Daycare - Private Contractors Payment,95.8,0,VENDOR
03-01-2023,Adults & Health,Bio Luminuex Health Care Ltd,Home Care - Private Contractors Payment,268.24,0,VENDOR
03-01-2023,Adults & Health,Bio Luminuex Health Care Ltd,Respite Care - Private Contractors Payment,76.64,0,VENDOR
03-01-2023,Adults & Health,Bio Luminuex Health Care Ltd,Home Care - Private Contractors Payment,234.71,0,VENDOR
03-01-2023,Adults & Health,Bio Luminuex Health Care Ltd,Home Care - Private Contractors Payment,86.22,0,VENDOR
03-01-2023,Adults & Health,Bio Luminuex Health Care Ltd,Home Care - Private Contractors Payment,402.36,0,VENDOR
03-01-2023,Adults & Health,Bio Luminuex Health Care Ltd,Home Care - Private Contractors Payment,28.74,0,VENDOR
03-01-2023,Adults & Health,Bio Luminuex Health Care Ltd,Home Care - Private Contractors Payment,19.16,0,VENDOR
03-01-2023,Adults & Health,Bio Luminuex Health Care Ltd,Home Care - Private Contractors Payment,100.59,0,VENDOR
03-01-2023,Adults & Health,Bio Luminuex Health Care Ltd,Home Care - Private Contractors Payment,402.36,0,VENDOR
03-01-2023,Adults & Health,Bio Luminuex Health Care Ltd,Daycare - Private Contractors Payment,134.12,0,VENDOR
03-01-2023,Adults & Health,Bio Luminuex Health Care Ltd,Home Care - Private Contractors Payment,19.16,0,VENDOR
03-01-2023,Adults & Health,Bio Luminuex Health Care Ltd,Home Care - Private Contractors Payment,19.16,0,VENDOR
03-01-2023,Adults & Health,Bio Luminuex Health Care Ltd,Daycare - Private Contractors Payment,134.12,0,VENDOR
03-01-2023,Adults & Health,Bio Luminuex Health Care Ltd,Home Care - Private Contractors Payment,38.32,0,VENDOR
03-01-2023,Adults & Health,Bio Luminuex Health Care Ltd,Daycare - Private Contractors Payment,38.32,0,VENDOR
03-01-2023,Adults & Health,Bio Luminuex Health Care Ltd,Daycare - Private Contractors Payment,47.9,0,VENDOR
03-01-2023,Adults & Health,Bio Luminuex Health Care Ltd,Home Care - Private Contractors Payment,234.71,0,VENDOR
03-01-2023,Adults & Health,Bio Luminuex Health Care Ltd,Respite Care - Private Contractors Payment,114.96,0,VENDOR
03-01-2023,Adults & Health,Bio Luminuex Health Care Ltd,Home Care - Private Contractors Payment,603.54,0,VENDOR
03-01-2023,Adults & Health,Bio Luminuex Health Care Ltd,Home Care - Private Contractors Payment,57.48,0,VENDOR
03-01-2023,Adults & Health,Bio Luminuex Health Care Ltd,Home Care - Private Contractors Payment,301.77,0,VENDOR
03-01-2023,Adults & Health,Bio Luminuex Health Care Ltd,Respite Care - Private Contractors Payment,76.64,0,VENDOR
03-01-2023,Adults & Health,Bio Luminuex Health Care Ltd,Home Care - Private Contractors Payment,603.54,0,VENDOR
03-01-2023,Adults & Health,Bio Luminuex Health Care Ltd,Home Care - Private Contractors Payment,392.78,0,VENDOR
03-01-2023,Adults & Health,Bio Luminuex Health Care Ltd,Home Care - Private Contractors Payment,234.71,0,VENDOR
03-01-2023,Adults & Health,Bio Luminuex Health Care Ltd,Home Care - Private Contractors Payment,100.59,0,VENDOR
03-01-2023,Adults & Health,Bio Luminuex Health Care Ltd,Home Care - Private Contractors Payment,435.89,0,VENDOR
03-01-2023,Adults & Health,Bio Luminuex Health Care Ltd,Respite Care - Private Contractors Payment,57.48,0,VENDOR
03-01-2023,Adults & Health,Bio Luminuex Health Care Ltd,Home Care - Private Contractors Payment,368.83,0,VENDOR
03-01-2023,Adults & Health,Bio Luminuex Health Care Ltd,Home Care - Private Contractors Payment,28.74,0,VENDOR
03-01-2023,Adults & Health,Bio Luminuex Health Care Ltd,Home Care - Private Contractors Payment,28.74,0,VENDOR
03-01-2023,Adults & Health,Bio Luminuex Health Care Ltd,Home Care - Private Contractors Payment,301.77,0,VENDOR
03-01-2023,Adults & Health,Bio Luminuex Health Care Ltd,Respite Care - Private Contractors Payment,134.12,0,VENDOR
03-01-2023,Adults & Health,Bio Luminuex Health Care Ltd,Home Care - Private Contractors Payment,603.54,0,VENDOR
03-01-2023,Adults & Health,Bio Luminuex Health Care Ltd,Home Care - Private Contractors Payment,167.65,0,VENDOR
03-01-2023,Adults & Health,Bio Luminuex Health Care Ltd,Home Care - Private Contractors Payment,268.24,0,VENDOR
03-01-2023,Adults & Health,Bio Luminuex Health Care Ltd,Home Care - Private Contractors Payment,469.42,0,VENDOR
03-01-2023,Adults & Health,Bio Luminuex Health Care Ltd,Home Care - Private Contractors Payment,368.83,0,VENDOR
03-01-2023,Adults & Health,Bio Luminuex Health Care Ltd,Reablement,67.06,0,VENDOR
03-01-2023,Adults & Health,Bio Luminuex Health Care Ltd,Daycare - Private Contractors Payment,76.64,0,VENDOR
03-01-2023,Adults & Health,Bio Luminuex Health Care Ltd,Home Care - Private Contractors Payment,19.16,0,VENDOR
03-01-2023,Adults & Health,Bio Luminuex Health Care Ltd,Daycare - Private Contractors Payment,76.64,0,VENDOR
03-01-2023,Adults & Health,Bio Luminuex Health Care Ltd,Home Care - Private Contractors Payment,100.59,0,VENDOR
03-01-2023,Adults & Health,Bio Luminuex Health Care Ltd,Home Care - Private Contractors Payment,603.54,0,VENDOR
03-01-2023,Adults & Health,Bio Luminuex Health Care Ltd,Home Care - Private Contractors Payment,19.16,0,VENDOR
03-01-2023,Adults & Health,Bio Luminuex Health Care Ltd,Daycare - Private Contractors Payment,134.12,0,VENDOR
03-01-2023,Adults & Health,Bio Luminuex Health Care Ltd,Home Care - Private Contractors Payment,368.83,0,VENDOR
03-01-2023,Adults & Health,Bio Luminuex Health Care Ltd,Home Care - Private Contractors Payment,167.65,0,VENDOR
03-01-2023,Adults & Health,Bio Luminuex Health Care Ltd,Home Care - Private Contractors Payment,28.74,0,VENDOR
03-01-2023,Adults & Health,Bio Luminuex Health Care Ltd,Respite Care - Private Contractors Payment,114.96,0,VENDOR
03-01-2023,Adults & Health,Bio Luminuex Health Care Ltd,Home Care - Private Contractors Payment,570.01,0,VENDOR
03-01-2023,Adults & Health,Bio Luminuex Health Care Ltd,Home Care - Private Contractors Payment,570.01,0,VENDOR
03-01-2023,Adults & Health,Bio Luminuex Health Care Ltd,Home Care - Private Contractors Payment,301.77,0,VENDOR
03-01-2023,Adults & Health,Bio Luminuex Health Care Ltd,Home Care - Private Contractors Payment,38.32,0,VENDOR
03-01-2023,Adults & Health,Bio Luminuex Health Care Ltd,Daycare - Private Contractors Payment,38.32,0,VENDOR
03-01-2023,Adults & Health,Bio Luminuex Health Care Ltd,Home Care - Private Contractors Payment,57.48,0,VENDOR
03-01-2023,Adults & Health,Bio Luminuex Health Care Ltd,Home Care - Private Contractors Payment,469.42,0,VENDOR
03-01-2023,Adults & Health,Bio Luminuex Health Care Ltd,Home Care - Private Contractors Payment,234.71,0,VENDOR
03-01-2023,Adults & Health,Bio Luminuex Health Care Ltd,Home Care - Private Contractors Payment,19.16,0,VENDOR
03-01-2023,Adults & Health,Bio Luminuex Health Care Ltd,Home Care - Private Contractors Payment,114.96,0,VENDOR
03-01-2023,Adults & Health,Bio Luminuex Health Care Ltd,Home Care - Private Contractors Payment,19.16,0,VENDOR
03-01-2023,Adults & Health,Bio Luminuex Health Care Ltd,Daycare - Private Contractors Payment,38.32,0,VENDOR
03-01-2023,Adults & Health,Bio Luminuex Health Care Ltd,Home Care - Private Contractors Payment,28.74,0,VENDOR
03-01-2023,Adults & Health,Bio Luminuex Health Care Ltd,Daycare - Private Contractors Payment,95.8,0,VENDOR
03-01-2023,Adults & Health,Bio Luminuex Health Care Ltd,Home Care - Private Contractors Payment,201.18,0,VENDOR
03-01-2023,Adults & Health,Bio Luminuex Health Care Ltd,Home Care - Private Contractors Payment,19.16,0,VENDOR
03-01-2023,Adults & Health,Bio Luminuex Health Care Ltd,Home Care - Private Contractors Payment,76.64,0,VENDOR
03-01-2023,Adults & Health,Bio Luminuex Health Care Ltd,Home Care - Private Contractors Payment,335.3,0,VENDOR
03-01-2023,Adults & Health,Bio Luminuex Health Care Ltd,Home Care - Private Contractors Payment,234.71,0,VENDOR
03-01-2023,Adults & Health,Bio Luminuex Health Care Ltd,Home Care - Private Contractors Payment,301.77,0,VENDOR
03-01-2023,Adults & Health,Bio Luminuex Health Care Ltd,Home Care - Private Contractors Payment,100.59,0,VENDOR
03-01-2023,Adults & Health,Bio Luminuex Health Care Ltd,Daycare - Private Contractors Payment,38.32,0,VENDOR
03-01-2023,Adults & Health,Bio Luminuex Health Care Ltd,Home Care - Private Contractors Payment,57.48,0,VENDOR
03-01-2023,Adults & Health,Bio Luminuex Health Care Ltd,Home Care - Private Contractors Payment,670.6,0,VENDOR
03-01-2023,Adults & Health,Bio Luminuex Health Care Ltd,Home Care - Private Contractors Payment,167.65,0,VENDOR
03-01-2023,Adults & Health,Bio Luminuex Health Care Ltd,Reablement,4.79,0,VENDOR
03-01-2023,Adults & Health,Bio Luminuex Health Care Ltd,Home Care - Private Contractors Payment,38.32,0,VENDOR
03-01-2023,Adults & Health,Bio Luminuex Health Care Ltd,Home Care - Private Contractors Payment,19.16,0,VENDOR
03-01-2023,Adults & Health,Bio Luminuex Health Care Ltd,Daycare - Private Contractors Payment,76.64,0,VENDOR
03-01-2023,Adults & Health,Bio Luminuex Health Care Ltd,Home Care - Private Contractors Payment,162.86,0,VENDOR
03-01-2023,Adults & Health,Bio Luminuex Health Care Ltd,Home Care - Private Contractors Payment,100.59,0,VENDOR
03-01-2023,Adults & Health,Bio Luminuex Health Care Ltd,Home Care - Private Contractors Payment,570.01,0,VENDOR
03-01-2023,Adults & Health,Bio Luminuex Health Care Ltd,Daycare - Private Contractors Payment,38.32,0,VENDOR
03-01-2023,Adults & Health,Bio Luminuex Health Care Ltd,Daycare - Private Contractors Payment,33.53,0,VENDOR
03-01-2023,Adults & Health,Bio Luminuex Health Care Ltd,Home Care - Private Contractors Payment,19.16,0,VENDOR
03-01-2023,Adults & Health,Bio Luminuex Health Care Ltd,Home Care - Private Contractors Payment,234.71,0,VENDOR
03-01-2023,Adults & Health,Bio Luminuex Health Care Ltd,Home Care - Private Contractors Payment,234.71,0,VENDOR
03-01-2023,Adults & Health,Bio Luminuex Health Care Ltd,Home Care - Private Contractors Payment,134.12,0,VENDOR
03-01-2023,Adults & Health,Bio Luminuex Health Care Ltd,Home Care - Private Contractors Payment,67.06,0,VENDOR
03-01-2023,Adults & Health,Bio Luminuex Health Care Ltd,Home Care - Private Contractors Payment,570.01,0,VENDOR
03-01-2023,Adults & Health,Bio Luminuex Health Care Ltd,Daycare - Private Contractors Payment,134.12,0,VENDOR
03-01-2023,Adults & Health,Bio Luminuex Health Care Ltd,Home Care - Private Contractors Payment,167.65,0,VENDOR
03-01-2023,Adults & Health,Bio Luminuex Health Care Ltd,Home Care - Private Contractors Payment,167.65,0,VENDOR
03-01-2023,Adults & Health,Bio Luminuex Health Care Ltd,Home Care - Private Contractors Payment,119.75,0,VENDOR
03-01-2023,Adults & Health,Bio Luminuex Health Care Ltd,Home Care - Private Contractors Payment,268.24,0,VENDOR
03-01-2023,Adults & Health,Bio Luminuex Health Care Ltd,Daycare - Private Contractors Payment,191.6,0,VENDOR
03-01-2023,Adults & Health,Bio Luminuex Health Care Ltd,Home Care - Private Contractors Payment,67.06,0,VENDOR
03-01-2023,Adults & Health,Bio Luminuex Health Care Ltd,Home Care - Private Contractors Payment,301.77,0,VENDOR
03-01-2023,Adults & Health,Bio Luminuex Health Care Ltd,Home Care - Private Contractors Payment,234.71,0,VENDOR
03-01-2023,Adults & Health,Bio Luminuex Health Care Ltd,Home Care - Private Contractors Payment,100.59,0,VENDOR
03-01-2023,Adults & Health,Bio Luminuex Health Care Ltd,Daycare - Private Contractors Payment,38.32,0,VENDOR
03-01-2023,Adults & Health,Bio Luminuex Health Care Ltd,Respite Care - Private Contractors Payment,43.11,0,VENDOR
03-01-2023,Adults & Health,Bio Luminuex Health Care Ltd,Home Care - Private Contractors Payment,335.3,0,VENDOR
03-01-2023,Adults & Health,Bio Luminuex Health Care Ltd,Home Care - Private Contractors Payment,603.54,0,VENDOR
03-01-2023,Adults & Health,Bio Luminuex Health Care Ltd,Home Care - Private Contractors Payment,201.18,0,VENDOR
03-01-2023,Adults & Health,Bio Luminuex Health Care Ltd,Home Care - Private Contractors Payment,469.42,0,VENDOR
03-01-2023,Adults & Health,Bio Luminuex Health Care Ltd,Home Care - Private Contractors Payment,301.77,0,VENDOR
03-01-2023,Adults & Health,Bio Luminuex Health Care Ltd,Home Care - Private Contractors Payment,19.16,0,VENDOR
03-01-2023,Adults & Health,Bio Luminuex Health Care Ltd,Home Care - Private Contractors Payment,167.65,0,VENDOR
03-01-2023,Adults & Health,Bio Luminuex Health Care Ltd,Home Care - Private Contractors Payment,234.71,0,VENDOR
03-01-2023,Adults & Health,Bio Luminuex Health Care Ltd,Home Care - Private Contractors Payment,100.59,0,VENDOR
03-01-2023,Adults & Health,Bio Luminuex Health Care Ltd,Home Care - Private Contractors Payment,19.16,0,VENDOR
03-01-2023,Adults & Health,Bio Luminuex Health Care Ltd,Home Care - Private Contractors Payment,292.19,0,VENDOR
03-01-2023,Adults & Health,Bio Luminuex Health Care Ltd,Home Care - Private Contractors Payment,804.72,0,VENDOR
03-01-2023,Adults & Health,Bio Luminuex Health Care Ltd,Home Care - Private Contractors Payment,268.24,0,VENDOR
03-01-2023,Adults & Health,Bio Luminuex Health Care Ltd,Daycare - Private Contractors Payment,19.16,0,VENDOR
03-01-2023,Adults & Health,Bio Luminuex Health Care Ltd,Home Care - Private Contractors Payment,38.32,0,VENDOR
03-01-2023,Adults & Health,Bio Luminuex Health Care Ltd,Home Care - Private Contractors Payment,368.83,0,VENDOR
03-01-2023,Adults & Health,Bio Luminuex Health Care Ltd,Daycare - Private Contractors Payment,38.32,0,VENDOR
03-01-2023,Adults & Health,Bio Luminuex Health Care Ltd,Home Care - Private Contractors Payment,301.77,0,VENDOR
03-01-2023,Adults & Health,Bio Luminuex Health Care Ltd,Home Care - Private Contractors Payment,19.16,0,VENDOR
03-01-2023,Adults & Health,Bio Luminuex Health Care Ltd,Home Care - Private Contractors Payment,804.72,0,VENDOR
03-01-2023,Adults & Health,Bio Luminuex Health Care Ltd,Home Care - Private Contractors Payment,143.7,0,VENDOR
03-01-2023,Adults & Health,Bio Luminuex Health Care Ltd,Home Care - Private Contractors Payment,19.16,0,VENDOR
03-01-2023,Adults & Health,Bio Luminuex Health Care Ltd,Home Care - Private Contractors Payment,19.16,0,VENDOR
03-01-2023,Adults & Health,Bio Luminuex Health Care Ltd,Home Care - Private Contractors Payment,14.37,0,VENDOR
03-01-2023,Adults & Health,Bio Luminuex Health Care Ltd,Home Care - Private Contractors Payment,76.64,0,VENDOR
03-01-2023,Adults & Health,Bio Luminuex Health Care Ltd,Home Care - Private Contractors Payment,38.32,0,VENDOR
03-01-2023,Adults & Health,Bio Luminuex Health Care Ltd,Daycare - Private Contractors Payment,47.9,0,VENDOR
03-01-2023,Adults & Health,Bio Luminuex Health Care Ltd,Home Care - Private Contractors Payment,335.3,0,VENDOR
03-01-2023,Adults & Health,Bio Luminuex Health Care Ltd,Home Care - Private Contractors Payment,570.01,0,VENDOR
03-01-2023,Adults & Health,Bio Luminuex Health Care Ltd,Home Care - Private Contractors Payment,335.3,0,VENDOR
03-01-2023,Adults & Health,Bio Luminuex Health Care Ltd,Home Care - Private Contractors Payment,771.19,0,VENDOR
03-01-2023,Adults & Health,Bio Luminuex Health Care Ltd,Daycare - Private Contractors Payment,498.16,0,VENDOR
03-01-2023,Adults & Health,Bio Luminuex Health Care Ltd,Home Care - Private Contractors Payment,19.16,0,VENDOR
03-01-2023,Adults & Health,Bio Luminuex Health Care Ltd,Home Care - Private Contractors Payment,268.24,0,VENDOR
03-01-2023,Adults & Health,Bio Luminuex Health Care Ltd,Daycare - Private Contractors Payment,38.32,0,VENDOR
03-01-2023,Adults & Health,Bio Luminuex Health Care Ltd,Home Care - Private Contractors Payment,234.71,0,VENDOR
03-01-2023,Adults & Health,Bio Luminuex Health Care Ltd,Home Care - Private Contractors Payment,301.77,0,VENDOR
03-01-2023,Adults & Health,Bio Luminuex Health Care Ltd,Home Care - Private Contractors Payment,134.12,0,VENDOR
03-01-2023,Adults & Health,Bio Luminuex Health Care Ltd,Home Care - Private Contractors Payment,134.12,0,VENDOR
03-01-2023,Adults & Health,Bio Luminuex Health Care Ltd,Home Care - Private Contractors Payment,771.19,0,VENDOR
03-01-2023,Adults & Health,Bio Luminuex Health Care Ltd,Home Care - Private Contractors Payment,172.44,0,VENDOR
03-01-2023,Adults & Health,Bio Luminuex Health Care Ltd,Daycare - Private Contractors Payment,28.74,0,VENDOR
03-01-2023,Adults & Health,Bio Luminuex Health Care Ltd,Home Care - Private Contractors Payment,234.71,0,VENDOR
03-01-2023,Adults & Health,Bio Luminuex Health Care Ltd,Daycare - Private Contractors Payment,28.74,0,VENDOR
03-01-2023,Adults & Health,Bio Luminuex Health Care Ltd,Home Care - Private Contractors Payment,301.77,0,VENDOR
03-01-2023,Adults & Health,Bio Luminuex Health Care Ltd,Home Care - Private Contractors Payment,229.92,0,VENDOR
03-01-2023,Adults & Health,Bio Luminuex Health Care Ltd,Home Care - Private Contractors Payment,100.59,0,VENDOR
03-01-2023,Adults & Health,Bio Luminuex Health Care Ltd,Home Care - Private Contractors Payment,301.77,0,VENDOR
03-01-2023,Adults & Health,Bio Luminuex Health Care Ltd,Home Care - Private Contractors Payment,301.77,0,VENDOR
03-01-2023,Adults & Health,Bio Luminuex Health Care Ltd,Home Care - Private Contractors Payment,167.65,0,VENDOR
03-01-2023,Adults & Health,Bio Luminuex Health Care Ltd,Home Care - Private Contractors Payment,19.16,0,VENDOR
03-01-2023,Adults & Health,Bio Luminuex Health Care Ltd,Daycare - Private Contractors Payment,28.74,0,VENDOR
03-01-2023,Adults & Health,Bio Luminuex Health Care Ltd,Home Care - Private Contractors Payment,28.74,0,VENDOR
03-01-2023,Adults & Health,Bio Luminuex Health Care Ltd,Home Care - Private Contractors Payment,498.16,0,VENDOR
03-01-2023,Adults & Health,Bio Luminuex Health Care Ltd,Home Care - Private Contractors Payment,19.16,0,VENDOR
03-01-2023,Adults & Health,Bio Luminuex Health Care Ltd,Home Care - Private Contractors Payment,19.16,0,VENDOR
03-01-2023,Adults & Health,Bio Luminuex Health Care Ltd,Home Care - Private Contractors Payment,603.54,0,VENDOR
03-01-2023,Adults & Health,Bio Luminuex Health Care Ltd,Home Care - Private Contractors Payment,38.32,0,VENDOR
03-01-2023,Adults & Health,Bio Luminuex Health Care Ltd,Home Care - Private Contractors Payment,603.54,0,VENDOR
03-01-2023,Adults & Health,Bio Luminuex Health Care Ltd,Home Care - Private Contractors Payment,469.42,0,VENDOR
03-01-2023,Adults & Health,Bio Luminuex Health Care Ltd,Home Care - Private Contractors Payment,38.32,0,VENDOR
03-01-2023,Adults & Health,Bio Luminuex Health Care Ltd,Home Care - Private Contractors Payment,225.13,0,VENDOR
03-01-2023,Adults & Health,Bio Luminuex Health Care Ltd,Home Care - Private Contractors Payment,19.16,0,VENDOR
03-01-2023,Adults & Health,Bio Luminuex Health Care Ltd,Reablement,71.85,0,VENDOR
03-01-2023,Adults & Health,Bio Luminuex Health Care Ltd,Home Care - Private Contractors Payment,301.77,0,VENDOR
03-01-2023,Adults & Health,Bio Luminuex Health Care Ltd,Home Care - Private Contractors Payment,301.77,0,VENDOR
03-01-2023,Adults & Health,Bio Luminuex Health Care Ltd,Home Care - Private Contractors Payment,134.12,0,VENDOR
03-01-2023,Adults & Health,Bio Luminuex Health Care Ltd,Home Care - Private Contractors Payment,603.54,0,VENDOR
03-01-2023,Adults & Health,Bio Luminuex Health Care Ltd,Daycare - Private Contractors Payment,33.53,0,VENDOR
03-01-2023,Adults & Health,Bio Luminuex Health Care Ltd,Home Care - Private Contractors Payment,301.77,0,VENDOR
03-01-2023,Adults & Health,Bio Luminuex Health Care Ltd,Home Care - Private Contractors Payment,100.59,0,VENDOR
03-01-2023,Adults & Health,Bio Luminuex Health Care Ltd,Home Care - Private Contractors Payment,498.16,0,VENDOR
03-01-2023,Adults & Health,Bio Luminuex Health Care Ltd,Home Care - Private Contractors Payment,234.71,0,VENDOR
03-01-2023,Adults & Health,Bio Luminuex Health Care Ltd,Home Care - Private Contractors Payment,201.18,0,VENDOR
03-01-2023,Adults & Health,Bio Luminuex Health Care Ltd,Home Care - Private Contractors Payment,670.6,0,VENDOR
03-01-2023,Adults & Health,Bio Luminuex Health Care Ltd,Home Care - Private Contractors Payment,19.16,0,VENDOR
03-01-2023,Adults & Health,Bio Luminuex Health Care Ltd,Daycare - Private Contractors Payment,76.64,0,VENDOR
03-01-2023,Adults & Health,Bio Luminuex Health Care Ltd,Home Care - Private Contractors Payment,220.34,0,VENDOR
03-01-2023,Adults & Health,Bio Luminuex Health Care Ltd,Home Care - Private Contractors Payment,67.06,0,VENDOR
03-01-2023,Adults & Health,Bio Luminuex Health Care Ltd,Daycare - Private Contractors Payment,201.18,0,VENDOR
03-01-2023,Adults & Health,Bio Luminuex Health Care Ltd,Home Care - Private Contractors Payment,234.71,0,VENDOR
03-01-2023,Adults & Health,Bio Luminuex Health Care Ltd,Home Care - Private Contractors Payment,100.59,0,VENDOR
03-01-2023,Adults & Health,Bio Luminuex Health Care Ltd,Home Care - Private Contractors Payment,268.24,0,VENDOR
03-01-2023,Adults & Health,Bio Luminuex Health Care Ltd,Reablement,229.92,0,VENDOR
03-01-2023,Adults & Health,Bio Luminuex Health Care Ltd,Home Care - Private Contractors Payment,67.06,0,VENDOR
03-01-2023,Adults & Health,Bio Luminuex Health Care Ltd,Daycare - Private Contractors Payment,76.64,0,VENDOR
03-01-2023,Adults & Health,Bio Luminuex Health Care Ltd,Home Care - Private Contractors Payment,570.01,0,VENDOR
03-01-2023,Adults & Health,Bio Luminuex Health Care Ltd,Home Care - Private Contractors Payment,201.18,0,VENDOR
03-01-2023,Adults & Health,Bio Luminuex Health Care Ltd,Home Care - Private Contractors Payment,234.71,0,VENDOR
03-01-2023,Adults & Health,Bio Luminuex Health Care Ltd,Respite Care - Private Contractors Payment,28.74,0,VENDOR
03-01-2023,Adults & Health,Bio Luminuex Health Care Ltd,Home Care - Private Contractors Payment,603.54,0,VENDOR
03-01-2023,Adults & Health,Bio Luminuex Health Care Ltd,Home Care - Private Contractors Payment,100.59,0,VENDOR
03-01-2023,Adults & Health,Bio Luminuex Health Care Ltd,Home Care - Private Contractors Payment,100.59,0,VENDOR
03-01-2023,Adults & Health,Bio Luminuex Health Care Ltd,Home Care - Private Contractors Payment,603.54,0,VENDOR
03-01-2023,Adults & Health,Bio Luminuex Health Care Ltd,Home Care - Private Contractors Payment,201.18,0,VENDOR
03-01-2023,Adults & Health,Bio Luminuex Health Care Ltd,Home Care - Private Contractors Payment,268.24,0,VENDOR
03-01-2023,Adults & Health,Bio Luminuex Health Care Ltd,Daycare - Private Contractors Payment,95.8,0,VENDOR
03-01-2023,Adults & Health,Bio Luminuex Health Care Ltd,Home Care - Private Contractors Payment,19.16,0,VENDOR
03-01-2023,Adults & Health,Bio Luminuex Health Care Ltd,Daycare - Private Contractors Payment,28.74,0,VENDOR
03-01-2023,Adults & Health,Bio Luminuex Health Care Ltd,Daycare - Private Contractors Payment,28.74,0,VENDOR
03-01-2023,Adults & Health,Bio Luminuex Health Care Ltd,Home Care - Private Contractors Payment,325.72,0,VENDOR
03-01-2023,Adults & Health,Bio Luminuex Health Care Ltd,Daycare - Private Contractors Payment,57.48,0,VENDOR
03-01-2023,Adults & Health,Bio Luminuex Health Care Ltd,Reablement,229.92,0,VENDOR
03-01-2023,Adults & Health,Bio Luminuex Health Care Ltd,Home Care - Private Contractors Payment,469.42,0,VENDOR
03-01-2023,Adults & Health,Bio Luminuex Health Care Ltd,Home Care - Private Contractors Payment,134.12,0,VENDOR
03-01-2023,Adults & Health,Bio Luminuex Health Care Ltd,Daycare - Private Contractors Payment,134.12,0,VENDOR
03-01-2023,Adults & Health,Bio Luminuex Health Care Ltd,Daycare - Private Contractors Payment,134.12,0,VENDOR
03-01-2023,Adults & Health,Bio Luminuex Health Care Ltd,Home Care - Private Contractors Payment,38.32,0,VENDOR
03-01-2023,Adults & Health,Bio Luminuex Health Care Ltd,Home Care - Private Contractors Payment,19.16,0,VENDOR
03-01-2023,Adults & Health,Bio Luminuex Health Care Ltd,Home Care - Private Contractors Payment,201.18,0,VENDOR
03-01-2023,Adults & Health,Bio Luminuex Health Care Ltd,Reablement,71.85,0,VENDOR
03-01-2023,Adults & Health,Bio Luminuex Health Care Ltd,Home Care - Private Contractors Payment,167.65,0,VENDOR
03-01-2023,Adults & Health,Bio Luminuex Health Care Ltd,Home Care - Private Contractors Payment,100.59,0,VENDOR
03-01-2023,Adults & Health,Bio Luminuex Health Care Ltd,Daycare - Private Contractors Payment,38.32,0,VENDOR
03-01-2023,Adults & Health,Bio Luminuex Health Care Ltd,Home Care - Private Contractors Payment,38.32,0,VENDOR
03-01-2023,Adults & Health,Bio Luminuex Health Care Ltd,Home Care - Private Contractors Payment,301.77,0,VENDOR
03-01-2023,Adults & Health,Bio Luminuex Health Care Ltd,Home Care - Private Contractors Payment,268.24,0,VENDOR
03-01-2023,Adults & Health,Bio Luminuex Health Care Ltd,Home Care - Private Contractors Payment,239.5,0,VENDOR
03-01-2023,Adults & Health,Bio Luminuex Health Care Ltd,Home Care - Private Contractors Payment,234.71,0,VENDOR
03-01-2023,Adults & Health,Bio Luminuex Health Care Ltd,Home Care - Private Contractors Payment,19.16,0,VENDOR
03-01-2023,Adults & Health,Bio Luminuex Health Care Ltd,Home Care - Private Contractors Payment,402.36,0,VENDOR
03-01-2023,Adults & Health,Bio Luminuex Health Care Ltd,Home Care - Private Contractors Payment,402.36,0,VENDOR
03-01-2023,Adults & Health,Bio Luminuex Health Care Ltd,Home Care - Private Contractors Payment,143.7,0,VENDOR
03-01-2023,Adults & Health,Bio Luminuex Health Care Ltd,Home Care - Private Contractors Payment,570.01,0,VENDOR
03-01-2023,Adults & Health,Bio Luminuex Health Care Ltd,Home Care - Private Contractors Payment,172.44,0,VENDOR
03-01-2023,Adults & Health,Bio Luminuex Health Care Ltd,Home Care - Private Contractors Payment,234.71,0,VENDOR
03-01-2023,Adults & Health,Bio Luminuex Health Care Ltd,Home Care - Private Contractors Payment,201.18,0,VENDOR
03-01-2023,Adults & Health,Bio Luminuex Health Care Ltd,Home Care - Private Contractors Payment,167.65,0,VENDOR
03-01-2023,Adults & Health,Bio Luminuex Health Care Ltd,Home Care - Private Contractors Payment,301.77,0,VENDOR
03-01-2023,Adults & Health,Bio Luminuex Health Care Ltd,Home Care - Private Contractors Payment,95.8,0,VENDOR
03-01-2023,Adults & Health,Bio Luminuex Health Care Ltd,Home Care - Private Contractors Payment,143.36,0,VENDOR
03-01-2023,Adults & Health,Bio Luminuex Health Care Ltd,Daycare - Private Contractors Payment,38.32,0,VENDOR
03-01-2023,Adults & Health,Bio Luminuex Health Care Ltd,Home Care - Private Contractors Payment,134.12,0,VENDOR
03-01-2023,Adults & Health,Bio Luminuex Health Care Ltd,Home Care - Private Contractors Payment,43.11,0,VENDOR
03-01-2023,Adults & Health,Bio Luminuex Health Care Ltd,Home Care - Private Contractors Payment,167.65,0,VENDOR
03-01-2023,Adults & Health,Bio Luminuex Health Care Ltd,Home Care - Private Contractors Payment,167.65,0,VENDOR
03-01-2023,Adults & Health,Bio Luminuex Health Care Ltd,Home Care - Private Contractors Payment,268.24,0,VENDOR
03-01-2023,Adults & Health,Bio Luminuex Health Care Ltd,Home Care - Private Contractors Payment,19.16,0,VENDOR
03-01-2023,Adults & Health,Bio Luminuex Health Care Ltd,Home Care - Private Contractors Payment,19.16,0,VENDOR
03-01-2023,Adults & Health,Bio Luminuex Health Care Ltd,Home Care - Private Contractors Payment,469.42,0,VENDOR
03-01-2023,Adults & Health,Bio Luminuex Health Care Ltd,Home Care - Private Contractors Payment,201.18,0,VENDOR
03-01-2023,Adults & Health,Bio Luminuex Health Care Ltd,Home Care - Private Contractors Payment,19.16,0,VENDOR
03-01-2023,Adults & Health,Bio Luminuex Health Care Ltd,Daycare - Private Contractors Payment,38.32,0,VENDOR
03-01-2023,Adults & Health,Bio Luminuex Health Care Ltd,Home Care - Private Contractors Payment,234.71,0,VENDOR
03-01-2023,Adults & Health,Bio Luminuex Health Care Ltd,Home Care - Private Contractors Payment,134.12,0,VENDOR
03-01-2023,Adults & Health,Bio Luminuex Health Care Ltd,Home Care - Private Contractors Payment,301.77,0,VENDOR
03-01-2023,Adults & Health,Bio Luminuex Health Care Ltd,Daycare - Private Contractors Payment,38.32,0,VENDOR
03-01-2023,Adults & Health,Bio Luminuex Health Care Ltd,Home Care - Private Contractors Payment,100.59,0,VENDOR
03-01-2023,Adults & Health,Bio Luminuex Health Care Ltd,Home Care - Private Contractors Payment,234.71,0,VENDOR
03-01-2023,Adults & Health,Bio Luminuex Health Care Ltd,Home Care - Private Contractors Payment,167.65,0,VENDOR
03-01-2023,Adults & Health,Bio Luminuex Health Care Ltd,Daycare - Private Contractors Payment,114.96,0,VENDOR
03-01-2023,Adults & Health,Bio Luminuex Health Care Ltd,Home Care - Private Contractors Payment,268.24,0,VENDOR
03-01-2023,Adults & Health,Bio Luminuex Health Care Ltd,Daycare - Private Contractors Payment,57.48,0,VENDOR
03-01-2023,Adults & Health,Bio Luminuex Health Care Ltd,Home Care - Private Contractors Payment,134.12,0,VENDOR
03-01-2023,Adults & Health,Bio Luminuex Health Care Ltd,Home Care - Private Contractors Payment,603.54,0,VENDOR
03-01-2023,Adults & Health,Bio Luminuex Health Care Ltd,Home Care - Private Contractors Payment,234.71,0,VENDOR
03-01-2023,Adults & Health,Bio Luminuex Health Care Ltd,Home Care - Private Contractors Payment,100.59,0,VENDOR
03-01-2023,Adults & Health,Bio Luminuex Health Care Ltd,Home Care - Private Contractors Payment,225.13,0,VENDOR
03-01-2023,Adults & Health,Bio Luminuex Health Care Ltd,Home Care - Private Contractors Payment,704.13,0,VENDOR
03-01-2023,Adults & Health,Bio Luminuex Health Care Ltd,Home Care - Private Contractors Payment,19.16,0,VENDOR
03-01-2023,Adults & Health,Bio Luminuex Health Care Ltd,Home Care - Private Contractors Payment,38.32,0,VENDOR
03-01-2023,Adults & Health,Bio Luminuex Health Care Ltd,Home Care - Private Contractors Payment,402.36,0,VENDOR
03-01-2023,Adults & Health,Bio Luminuex Health Care Ltd,Home Care - Private Contractors Payment,234.71,0,VENDOR
03-01-2023,Adults & Health,Bio Luminuex Health Care Ltd,Daycare - Private Contractors Payment,114.96,0,VENDOR
03-01-2023,Adults & Health,Bio Luminuex Health Care Ltd,Home Care - Private Contractors Payment,167.65,0,VENDOR
03-01-2023,Adults & Health,Bio Luminuex Health Care Ltd,Home Care - Private Contractors Payment,172.44,0,VENDOR
03-01-2023,Adults & Health,Bio Luminuex Health Care Ltd,Home Care - Private Contractors Payment,301.77,0,VENDOR
03-01-2023,Adults & Health,Bio Luminuex Health Care Ltd,Daycare - Private Contractors Payment,19.16,0,VENDOR
03-01-2023,Adults & Health,Bio Luminuex Health Care Ltd,Home Care - Private Contractors Payment,134.12,0,VENDOR
03-01-2023,Adults & Health,Bio Luminuex Health Care Ltd,Daycare - Private Contractors Payment,114.96,0,VENDOR
03-01-2023,Adults & Health,Bio Luminuex Health Care Ltd,Home Care - Private Contractors Payment,234.71,0,VENDOR
03-01-2023,Adults & Health,Bio Luminuex Health Care Ltd,Home Care - Private Contractors Payment,119.75,0,VENDOR
03-01-2023,Adults & Health,Bio Luminuex Health Care Ltd,Reablement,105.38,0,VENDOR
03-01-2023,Adults & Health,Bio Luminuex Health Care Ltd,Home Care - Private Contractors Payment,301.77,0,VENDOR
03-01-2023,Adults & Health,Bio Luminuex Health Care Ltd,Home Care - Private Contractors Payment,167.65,0,VENDOR
03-01-2023,Adults & Health,Bio Luminuex Health Care Ltd,Home Care - Private Contractors Payment,38.32,0,VENDOR
03-01-2023,Adults & Health,Bio Luminuex Health Care Ltd,Home Care - Private Contractors Payment,268.24,0,VENDOR
03-01-2023,Adults & Health,Bio Luminuex Health Care Ltd,Home Care - Private Contractors Payment,570.01,0,VENDOR
03-01-2023,Adults & Health,Bio Luminuex Health Care Ltd,Daycare - Private Contractors Payment,191.6,0,VENDOR
03-01-2023,Adults & Health,Bio Luminuex Health Care Ltd,Home Care - Private Contractors Payment,14.37,0,VENDOR
03-01-2023,Adults & Health,Bio Luminuex Health Care Ltd,Home Care - Private Contractors Payment,704.13,0,VENDOR
03-01-2023,Adults & Health,Bio Luminuex Health Care Ltd,Home Care - Private Contractors Payment,19.16,0,VENDOR
03-01-2023,Adults & Health,Bio Luminuex Health Care Ltd,Daycare - Private Contractors Payment,57.48,0,VENDOR
03-01-2023,Adults & Health,Bio Luminuex Health Care Ltd,Home Care - Private Contractors Payment,268.24,0,VENDOR
03-01-2023,Adults & Health,Bio Luminuex Health Care Ltd,Home Care - Private Contractors Payment,201.18,0,VENDOR
03-01-2023,Adults & Health,Bio Luminuex Health Care Ltd,Home Care - Private Contractors Payment,19.16,0,VENDOR
03-01-2023,Adults & Health,Bio Luminuex Health Care Ltd,Home Care - Private Contractors Payment,19.16,0,VENDOR
03-01-2023,Adults & Health,Bio Luminuex Health Care Ltd,Home Care - Private Contractors Payment,268.24,0,VENDOR
03-01-2023,Adults & Health,Bio Luminuex Health Care Ltd,Home Care - Private Contractors Payment,19.16,0,VENDOR
03-01-2023,Adults & Health,Bio Luminuex Health Care Ltd,Home Care - Private Contractors Payment,100.59,0,VENDOR
03-01-2023,Adults & Health,Bio Luminuex Health Care Ltd,Home Care - Private Contractors Payment,603.54,0,VENDOR
03-01-2023,Adults & Health,Bio Luminuex Health Care Ltd,Daycare - Private Contractors Payment,38.32,0,VENDOR
03-01-2023,Adults & Health,Bio Luminuex Health Care Ltd,Home Care - Private Contractors Payment,301.77,0,VENDOR
03-01-2023,Adults & Health,Bio Luminuex Health Care Ltd,Home Care - Private Contractors Payment,67.06,0,VENDOR
03-01-2023,Adults & Health,Bio Luminuex Health Care Ltd,Home Care - Private Contractors Payment,14.37,0,VENDOR
03-01-2023,Adults & Health,Bio Luminuex Health Care Ltd,Home Care - Private Contractors Payment,67.06,0,VENDOR
03-01-2023,Adults & Health,Bio Luminuex Health Care Ltd,Home Care - Private Contractors Payment,38.32,0,VENDOR
03-01-2023,Adults & Health,Bio Luminuex Health Care Ltd,Home Care - Private Contractors Payment,234.71,0,VENDOR
03-01-2023,Adults & Health,Bio Luminuex Health Care Ltd,Daycare - Private Contractors Payment,76.64,0,VENDOR
03-01-2023,Adults & Health,Bio Luminuex Health Care Ltd,Daycare - Private Contractors Payment,153.28,0,VENDOR
03-01-2023,Adults & Health,Bio Luminuex Health Care Ltd,Daycare - Private Contractors Payment,67.06,0,VENDOR
03-01-2023,Adults & Health,Bio Luminuex Health Care Ltd,Home Care - Private Contractors Payment,100.59,0,VENDOR
03-01-2023,Adults & Health,Bio Luminuex Health Care Ltd,Home Care - Private Contractors Payment,234.71,0,VENDOR
03-01-2023,Adults & Health,Bio Luminuex Health Care Ltd,Home Care - Private Contractors Payment,57.48,0,VENDOR
03-01-2023,Adults & Health,Bio Luminuex Health Care Ltd,Home Care - Private Contractors Payment,201.18,0,VENDOR
03-01-2023,Adults & Health,Bio Luminuex Health Care Ltd,Home Care - Private Contractors Payment,19.16,0,VENDOR
03-01-2023,Adults & Health,Bio Luminuex Health Care Ltd,Home Care - Private Contractors Payment,301.77,0,VENDOR
03-01-2023,Adults & Health,Bio Luminuex Health Care Ltd,Home Care - Private Contractors Payment,368.83,0,VENDOR
03-01-2023,Adults & Health,Bio Luminuex Health Care Ltd,Home Care - Private Contractors Payment,134.12,0,VENDOR
03-01-2023,Adults & Health,Bio Luminuex Health Care Ltd,Home Care - Private Contractors Payment,368.83,0,VENDOR
03-01-2023,Adults & Health,Bio Luminuex Health Care Ltd,Home Care - Private Contractors Payment,38.32,0,VENDOR
03-01-2023,Adults & Health,Bio Luminuex Health Care Ltd,Home Care - Private Contractors Payment,301.77,0,VENDOR
03-01-2023,Adults & Health,Bio Luminuex Health Care Ltd,Home Care - Private Contractors Payment,167.65,0,VENDOR
03-01-2023,Adults & Health,Bio Luminuex Health Care Ltd,Home Care - Private Contractors Payment,368.83,0,VENDOR
03-01-2023,Adults & Health,Bio Luminuex Health Care Ltd,Home Care - Private Contractors Payment,498.16,0,VENDOR
03-01-2023,Adults & Health,Bio Luminuex Health Care Ltd,Home Care - Private Contractors Payment,201.18,0,VENDOR
03-01-2023,Adults & Health,Bio Luminuex Health Care Ltd,Home Care - Private Contractors Payment,368.83,0,VENDOR
03-01-2023,Adults & Health,Bio Luminuex Health Care Ltd,Home Care - Private Contractors Payment,100.59,0,VENDOR
03-01-2023,Adults & Health,Bio Luminuex Health Care Ltd,Home Care - Private Contractors Payment,131.04,0,VENDOR
03-01-2023,Adults & Health,Bio Luminuex Health Care Ltd,Home Care - Private Contractors Payment,134.12,0,VENDOR
03-01-2023,Adults & Health,Bio Luminuex Health Care Ltd,Home Care - Private Contractors Payment,570.01,0,VENDOR
03-01-2023,Adults & Health,Bio Luminuex Health Care Ltd,Home Care - Private Contractors Payment,167.65,0,VENDOR
03-01-2023,Adults & Health,Bio Luminuex Health Care Ltd,Home Care - Private Contractors Payment,314.27,0,VENDOR
03-01-2023,Adults & Health,Bio Luminuex Health Care Ltd,Home Care - Private Contractors Payment,143.7,0,VENDOR
03-01-2023,Adults & Health,Bio Luminuex Health Care Ltd,Home Care - Private Contractors Payment,100.59,0,VENDOR
03-01-2023,Adults & Health,Bio Luminuex Health Care Ltd,Home Care - Private Contractors Payment,301.77,0,VENDOR
03-01-2023,Adults & Health,Bio Luminuex Health Care Ltd,Home Care - Private Contractors Payment,19.16,0,VENDOR
03-01-2023,Adults & Health,Bio Luminuex Health Care Ltd,Home Care - Private Contractors Payment,100.59,0,VENDOR
03-01-2023,Adults & Health,Bio Luminuex Health Care Ltd,Home Care - Private Contractors Payment,201.18,0,VENDOR
03-01-2023,Adults & Health,Bio Luminuex Health Care Ltd,Daycare - Private Contractors Payment,19.16,0,VENDOR
03-01-2023,Adults & Health,Bio Luminuex Health Care Ltd,Home Care - Private Contractors Payment,570.01,0,VENDOR
03-01-2023,Adults & Health,Bio Luminuex Health Care Ltd,Home Care - Private Contractors Payment,301.77,0,VENDOR
03-01-2023,Adults & Health,Bio Luminuex Health Care Ltd,Home Care - Private Contractors Payment,239.5,0,VENDOR
03-01-2023,Adults & Health,Bio Luminuex Health Care Ltd,Home Care - Private Contractors Payment,368.83,0,VENDOR
03-01-2023,Adults & Health,Bio Luminuex Health Care Ltd,Home Care - Private Contractors Payment,129.33,0,VENDOR
03-01-2023,Adults & Health,Bio Luminuex Health Care Ltd,Home Care - Private Contractors Payment,301.77,0,VENDOR
03-01-2023,Adults & Health,Bio Luminuex Health Care Ltd,Daycare - Private Contractors Payment,47.9,0,VENDOR
03-01-2023,Adults & Health,Bio Luminuex Health Care Ltd,Home Care - Private Contractors Payment,680.18,0,VENDOR
03-01-2023,Adults & Health,Bio Luminuex Health Care Ltd,Home Care - Private Contractors Payment,234.71,0,VENDOR
03-01-2023,Adults & Health,Bio Luminuex Health Care Ltd,Home Care - Private Contractors Payment,167.65,0,VENDOR
03-01-2023,Adults & Health,Bio Luminuex Health Care Ltd,Home Care - Private Contractors Payment,114.96,0,VENDOR
03-01-2023,Adults & Health,Bio Luminuex Health Care Ltd,Home Care - Private Contractors Payment,76.64,0,VENDOR
03-01-2023,Adults & Health,Bio Luminuex Health Care Ltd,Home Care - Private Contractors Payment,301.77,0,VENDOR
03-01-2023,Adults & Health,Bio Luminuex Health Care Ltd,Home Care - Private Contractors Payment,19.16,0,VENDOR
03-01-2023,Adults & Health,Bio Luminuex Health Care Ltd,Home Care - Private Contractors Payment,19.16,0,VENDOR
03-01-2023,Adults & Health,Bio Luminuex Health Care Ltd,Home Care - Private Contractors Payment,368.83,0,VENDOR
03-01-2023,Adults & Health,Bio Luminuex Health Care Ltd,Home Care - Private Contractors Payment,19.16,0,VENDOR
03-01-2023,Adults & Health,Bio Luminuex Health Care Ltd,Home Care - Private Contractors Payment,670.6,0,VENDOR
03-01-2023,Adults & Health,Bio Luminuex Health Care Ltd,Daycare - Private Contractors Payment,201.18,0,VENDOR
03-01-2023,Adults & Health,Bio Luminuex Health Care Ltd,Respite Care - Private Contractors Payment,134.12,0,VENDOR
03-01-2023,Adults & Health,Bio Luminuex Health Care Ltd,Reablement,47.9,0,VENDOR
03-01-2023,Adults & Health,Bio Luminuex Health Care Ltd,Home Care - Private Contractors Payment,603.54,0,VENDOR
03-01-2023,Adults & Health,Bio Luminuex Health Care Ltd,Home Care - Private Contractors Payment,19.16,0,VENDOR
03-01-2023,Adults & Health,Bio Luminuex Health Care Ltd,Home Care - Private Contractors Payment,603.54,0,VENDOR
03-01-2023,Adults & Health,Bio Luminuex Health Care Ltd,Home Care - Private Contractors Payment,435.89,0,VENDOR
03-01-2023,Adults & Health,Bio Luminuex Health Care Ltd,Home Care - Private Contractors Payment,536.48,0,VENDOR
03-01-2023,Adults & Health,Bio Luminuex Health Care Ltd,Daycare - Private Contractors Payment,134.12,0,VENDOR
03-01-2023,Adults & Health,Bio Luminuex Health Care Ltd,Respite Care - Private Contractors Payment,76.64,0,VENDOR
03-01-2023,Adults & Health,Bio Luminuex Health Care Ltd,Home Care - Private Contractors Payment,19.16,0,VENDOR
03-01-2023,Adults & Health,Bio Luminuex Health Care Ltd,Home Care - Private Contractors Payment,167.65,0,VENDOR
03-01-2023,Adults & Health,Bio Luminuex Health Care Ltd,Home Care - Private Contractors Payment,114.96,0,VENDOR
03-01-2023,Adults & Health,Bio Luminuex Health Care Ltd,Home Care - Private Contractors Payment,201.18,0,VENDOR
03-01-2023,Adults & Health,Bio Luminuex Health Care Ltd,Home Care - Private Contractors Payment,100.59,0,VENDOR
03-01-2023,Adults & Health,Bio Luminuex Health Care Ltd,Home Care - Private Contractors Payment,603.54,0,VENDOR
03-01-2023,Adults & Health,Bio Luminuex Health Care Ltd,Home Care - Private Contractors Payment,100.59,0,VENDOR
03-01-2023,Adults & Health,Bio Luminuex Health Care Ltd,Home Care - Private Contractors Payment,301.77,0,VENDOR
03-01-2023,Adults & Health,Bio Luminuex Health Care Ltd,Home Care - Private Contractors Payment,704.13,0,VENDOR
03-01-2023,Adults & Health,Bio Luminuex Health Care Ltd,Home Care - Private Contractors Payment,239.5,0,VENDOR
03-01-2023,Adults & Health,Bio Luminuex Health Care Ltd,Reablement,229.92,0,VENDOR
03-01-2023,Adults & Health,Bio Luminuex Health Care Ltd,Home Care - Private Contractors Payment,570.01,0,VENDOR
03-01-2023,Adults & Health,Bio Luminuex Health Care Ltd,Home Care - Private Contractors Payment,335.3,0,VENDOR
03-01-2023,Adults & Health,Bio Luminuex Health Care Ltd,Home Care - Private Contractors Payment,167.65,0,VENDOR
03-01-2023,Adults & Health,Bio Luminuex Health Care Ltd,Home Care - Private Contractors Payment,100.59,0,VENDOR
03-01-2023,Adults & Health,Bio Luminuex Health Care Ltd,Home Care - Private Contractors Payment,28.74,0,VENDOR
03-01-2023,Adults & Health,Bio Luminuex Health Care Ltd,Home Care - Private Contractors Payment,570.01,0,VENDOR
03-01-2023,Adults & Health,Bio Luminuex Health Care Ltd,Home Care - Private Contractors Payment,368.83,0,VENDOR
03-01-2023,Adults & Health,Bio Luminuex Health Care Ltd,Daycare - Private Contractors Payment,38.32,0,VENDOR
03-01-2023,Adults & Health,Bio Luminuex Health Care Ltd,Home Care - Private Contractors Payment,19.16,0,VENDOR
03-01-2023,Adults & Health,Bio Luminuex Health Care Ltd,Home Care - Private Contractors Payment,19.16,0,VENDOR
03-01-2023,Adults & Health,Bio Luminuex Health Care Ltd,Home Care - Private Contractors Payment,100.59,0,VENDOR
03-01-2023,Adults & Health,Bio Luminuex Health Care Ltd,Home Care - Private Contractors Payment,19.16,0,VENDOR
03-01-2023,Adults & Health,Bio Luminuex Health Care Ltd,Home Care - Private Contractors Payment,167.65,0,VENDOR
03-01-2023,Adults & Health,Bio Luminuex Health Care Ltd,Home Care - Private Contractors Payment,201.18,0,VENDOR
03-01-2023,Adults & Health,Bio Luminuex Health Care Ltd,Home Care - Private Contractors Payment,38.32,0,VENDOR
03-01-2023,Adults & Health,Bio Luminuex Health Care Ltd,Home Care - Private Contractors Payment,143.7,0,VENDOR
03-01-2023,Adults & Health,Bio Luminuex Health Care Ltd,Home Care - Private Contractors Payment,301.77,0,VENDOR
03-01-2023,Adults & Health,Bio Luminuex Health Care Ltd,Home Care - Private Contractors Payment,402.36,0,VENDOR
03-01-2023,Adults & Health,Bio Luminuex Health Care Ltd,Home Care - Private Contractors Payment,28.74,0,VENDOR
03-01-2023,Adults & Health,Bio Luminuex Health Care Ltd,Daycare - Private Contractors Payment,57.48,0,VENDOR
03-01-2023,Adults & Health,Bio Luminuex Health Care Ltd,Home Care - Private Contractors Payment,368.83,0,VENDOR
03-01-2023,Adults & Health,Bio Luminuex Health Care Ltd,Home Care - Private Contractors Payment,570.01,0,VENDOR
03-01-2023,Adults & Health,Bio Luminuex Health Care Ltd,Respite Care - Private Contractors Payment,114.96,0,VENDOR
03-01-2023,Adults & Health,Bio Luminuex Health Care Ltd,Home Care - Private Contractors Payment,570.01,0,VENDOR
03-01-2023,Adults & Health,Bio Luminuex Health Care Ltd,Home Care - Private Contractors Payment,201.18,0,VENDOR
03-01-2023,Adults & Health,Bio Luminuex Health Care Ltd,Home Care - Private Contractors Payment,402.36,0,VENDOR
03-01-2023,Adults & Health,Bio Luminuex Health Care Ltd,Home Care - Private Contractors Payment,234.71,0,VENDOR
03-01-2023,Adults & Health,Bio Luminuex Health Care Ltd,Home Care - Private Contractors Payment,19.16,0,VENDOR
03-01-2023,Adults & Health,Bio Luminuex Health Care Ltd,Home Care - Private Contractors Payment,234.71,0,VENDOR
03-01-2023,Adults & Health,Bio Luminuex Health Care Ltd,Home Care - Private Contractors Payment,234.71,0,VENDOR
03-01-2023,Adults & Health,Bio Luminuex Health Care Ltd,Home Care - Private Contractors Payment,234.71,0,VENDOR
03-01-2023,Adults & Health,Bio Luminuex Health Care Ltd,Home Care - Private Contractors Payment,335.3,0,VENDOR
03-01-2023,Adults & Health,Bio Luminuex Health Care Ltd,Home Care - Private Contractors Payment,100.59,0,VENDOR
03-01-2023,Adults & Health,Bio Luminuex Health Care Ltd,Home Care - Private Contractors Payment,38.32,0,VENDOR
03-01-2023,Adults & Health,Bio Luminuex Health Care Ltd,Home Care - Private Contractors Payment,268.24,0,VENDOR
03-01-2023,Adults & Health,Bio Luminuex Health Care Ltd,Daycare - Private Contractors Payment,57.48,0,VENDOR
03-01-2023,Adults & Health,Bio Luminuex Health Care Ltd,Home Care - Private Contractors Payment,368.83,0,VENDOR
03-01-2023,Adults & Health,Bio Luminuex Health Care Ltd,Home Care - Private Contractors Payment,268.24,0,VENDOR
03-01-2023,Adults & Health,Bio Luminuex Health Care Ltd,Home Care - Private Contractors Payment,19.16,0,VENDOR
03-01-2023,Adults & Health,Bio Luminuex Health Care Ltd,Home Care - Private Contractors Payment,134.12,0,VENDOR
03-01-2023,Adults & Health,Bio Luminuex Health Care Ltd,Home Care - Private Contractors Payment,172.44,0,VENDOR
03-01-2023,Adults & Health,Bio Luminuex Health Care Ltd,Home Care - Private Contractors Payment,167.65,0,VENDOR
03-01-2023,Adults & Health,Bio Luminuex Health Care Ltd,Daycare - Private Contractors Payment,19.16,0,VENDOR
03-01-2023,Adults & Health,Bio Luminuex Health Care Ltd,Home Care - Private Contractors Payment,19.16,0,VENDOR
03-01-2023,Adults & Health,Bio Luminuex Health Care Ltd,Home Care - Private Contractors Payment,134.12,0,VENDOR
03-01-2023,Adults & Health,Bio Luminuex Health Care Ltd,Daycare - Private Contractors Payment,95.8,0,VENDOR
03-01-2023,Adults & Health,Bio Luminuex Health Care Ltd,Home Care - Private Contractors Payment,234.71,0,VENDOR
03-01-2023,Adults & Health,Bio Luminuex Health Care Ltd,Home Care - Private Contractors Payment,134.12,0,VENDOR
03-01-2023,Adults & Health,Bio Luminuex Health Care Ltd,Home Care - Private Contractors Payment,469.42,0,VENDOR
03-01-2023,Adults & Health,Bio Luminuex Health Care Ltd,Home Care - Private Contractors Payment,167.65,0,VENDOR
03-01-2023,Adults & Health,Bio Luminuex Health Care Ltd,Reablement,95.8,0,VENDOR
03-01-2023,Adults & Health,Bio Luminuex Health Care Ltd,Home Care - Private Contractors Payment,134.12,0,VENDOR
03-01-2023,Adults & Health,Bio Luminuex Health Care Ltd,Daycare - Private Contractors Payment,38.32,0,VENDOR
03-01-2023,Adults & Health,Bio Luminuex Health Care Ltd,Home Care - Private Contractors Payment,38.32,0,VENDOR
03-01-2023,Adults & Health,Bio Luminuex Health Care Ltd,Home Care - Private Contractors Payment,301.77,0,VENDOR
03-01-2023,Adults & Health,Bio Luminuex Health Care Ltd,Home Care - Private Contractors Payment,57.48,0,VENDOR
03-01-2023,Adults & Health,Bio Luminuex Health Care Ltd,Home Care - Private Contractors Payment,325.72,0,VENDOR
03-01-2023,Adults & Health,Bio Luminuex Health Care Ltd,Home Care - Private Contractors Payment,114.96,0,VENDOR
03-01-2023,Adults & Health,Bio Luminuex Health Care Ltd,Home Care - Private Contractors Payment,19.16,0,VENDOR
03-01-2023,Adults & Health,Bio Luminuex Health Care Ltd,Home Care - Private Contractors Payment,201.18,0,VENDOR
03-01-2023,Adults & Health,Bio Luminuex Health Care Ltd,Home Care - Private Contractors Payment,19.16,0,VENDOR
03-01-2023,Adults & Health,Bio Luminuex Health Care Ltd,Home Care - Private Contractors Payment,167.65,0,VENDOR
03-01-2023,Adults & Health,Bio Luminuex Health Care Ltd,Home Care - Private Contractors Payment,234.71,0,VENDOR
03-01-2023,Adults & Health,Bio Luminuex Health Care Ltd,Home Care - Private Contractors Payment,114.96,0,VENDOR
03-01-2023,Adults & Health,Bio Luminuex Health Care Ltd,Home Care - Private Contractors Payment,19.16,0,VENDOR
03-01-2023,Adults & Health,Bio Luminuex Health Care Ltd,Home Care - Private Contractors Payment,167.65,0,VENDOR
03-01-2023,Adults & Health,Bio Luminuex Health Care Ltd,Home Care - Private Contractors Payment,301.77,0,VENDOR
03-01-2023,Adults & Health,Bio Luminuex Health Care Ltd,Home Care - Private Contractors Payment,234.71,0,VENDOR
03-01-2023,Adults & Health,Bio Luminuex Health Care Ltd,Home Care - Private Contractors Payment,704.13,0,VENDOR
03-01-2023,Adults & Health,Bio Luminuex Health Care Ltd,Home Care - Private Contractors Payment,570.01,0,VENDOR
03-01-2023,Adults & Health,Bio Luminuex Health Care Ltd,Daycare - Private Contractors Payment,57.48,0,VENDOR
03-01-2023,Adults & Health,Bio Luminuex Health Care Ltd,Home Care - Private Contractors Payment,134.12,0,VENDOR
03-01-2023,Adults & Health,Bio Luminuex Health Care Ltd,Home Care - Private Contractors Payment,603.54,0,VENDOR
03-01-2023,Adults & Health,Bio Luminuex Health Care Ltd,Daycare - Private Contractors Payment,19.16,0,VENDOR
03-01-2023,Adults & Health,Bio Luminuex Health Care Ltd,Home Care - Private Contractors Payment,19.16,0,VENDOR
03-01-2023,Adults & Health,Bio Luminuex Health Care Ltd,Daycare - Private Contractors Payment,28.74,0,VENDOR
03-01-2023,Adults & Health,Bio Luminuex Health Care Ltd,Home Care - Private Contractors Payment,603.54,0,VENDOR
03-01-2023,Adults & Health,Bio Luminuex Health Care Ltd,Home Care - Private Contractors Payment,301.77,0,VENDOR
03-01-2023,Adults & Health,Bio Luminuex Health Care Ltd,Daycare - Private Contractors Payment,28.74,0,VENDOR
03-01-2023,Adults & Health,Bio Luminuex Health Care Ltd,Home Care - Private Contractors Payment,201.18,0,VENDOR
03-01-2023,Adults & Health,Bio Luminuex Health Care Ltd,Home Care - Private Contractors Payment,19.16,0,VENDOR
03-01-2023,Adults & Health,Bio Luminuex Health Care Ltd,Home Care - Private Contractors Payment,603.54,0,VENDOR
03-01-2023,Adults & Health,Bio Luminuex Health Care Ltd,Home Care - Private Contractors Payment,603.54,0,VENDOR
03-01-2023,Adults & Health,Bio Luminuex Health Care Ltd,Home Care - Private Contractors Payment,234.71,0,VENDOR
03-01-2023,Adults & Health,Bio Luminuex Health Care Ltd,Home Care - Private Contractors Payment,234.71,0,VENDOR
03-01-2023,Adults & Health,Bio Luminuex Health Care Ltd,Home Care - Private Contractors Payment,81.43,0,VENDOR
03-01-2023,Adults & Health,Bio Luminuex Health Care Ltd,Home Care - Private Contractors Payment,234.71,0,VENDOR
03-01-2023,Adults & Health,Bio Luminuex Health Care Ltd,Home Care - Private Contractors Payment,603.54,0,VENDOR
03-01-2023,Adults & Health,Bio Luminuex Health Care Ltd,Home Care - Private Contractors Payment,19.16,0,VENDOR
03-01-2023,Adults & Health,Bio Luminuex Health Care Ltd,Home Care - Private Contractors Payment,301.77,0,VENDOR
03-01-2023,Adults & Health,Bio Luminuex Health Care Ltd,Home Care - Private Contractors Payment,301.77,0,VENDOR
03-01-2023,Adults & Health,Bio Luminuex Health Care Ltd,Home Care - Private Contractors Payment,435.89,0,VENDOR
03-01-2023,Adults & Health,Bio Luminuex Health Care Ltd,Home Care - Private Contractors Payment,19.16,0,VENDOR
03-01-2023,Adults & Health,Bio Luminuex Health Care Ltd,Home Care - Private Contractors Payment,368.83,0,VENDOR
03-01-2023,Adults & Health,Bio Luminuex Health Care Ltd,Home Care - Private Contractors Payment,282.61,0,VENDOR
03-01-2023,Adults & Health,Bio Luminuex Health Care Ltd,Home Care - Private Contractors Payment,301.77,0,VENDOR
03-01-2023,Adults & Health,Bio Luminuex Health Care Ltd,Home Care - Private Contractors Payment,28.74,0,VENDOR
03-01-2023,Adults & Health,Bio Luminuex Health Care Ltd,Home Care - Private Contractors Payment,234.71,0,VENDOR
03-01-2023,Adults & Health,Bio Luminuex Health Care Ltd,Home Care - Private Contractors Payment,704.13,0,VENDOR
03-01-2023,Adults & Health,Bio Luminuex Health Care Ltd,Home Care - Private Contractors Payment,234.71,0,VENDOR
03-01-2023,Adults & Health,Bio Luminuex Health Care Ltd,Home Care - Private Contractors Payment,771.19,0,VENDOR
03-01-2023,Adults & Health,Bio Luminuex Health Care Ltd,Home Care - Private Contractors Payment,134.12,0,VENDOR
03-01-2023,Adults & Health,Bio Luminuex Health Care Ltd,Home Care - Private Contractors Payment,201.18,0,VENDOR
03-01-2023,Adults & Health,Bio Luminuex Health Care Ltd,Home Care - Private Contractors Payment,134.12,0,VENDOR
03-01-2023,Adults & Health,Bio Luminuex Health Care Ltd,Home Care - Private Contractors Payment,201.18,0,VENDOR
03-01-2023,Adults & Health,Bio Luminuex Health Care Ltd,Home Care - Private Contractors Payment,134.12,0,VENDOR
03-01-2023,Adults & Health,Bio Luminuex Health Care Ltd,Home Care - Private Contractors Payment,28.74,0,VENDOR
03-01-2023,Adults & Health,Bio Luminuex Health Care Ltd,Home Care - Private Contractors Payment,134.12,0,VENDOR
03-01-2023,Adults & Health,Bio Luminuex Health Care Ltd,Home Care - Private Contractors Payment,19.16,0,VENDOR
03-01-2023,Adults & Health,Bio Luminuex Health Care Ltd,Home Care - Private Contractors Payment,402.36,0,VENDOR
03-01-2023,Adults & Health,Bio Luminuex Health Care Ltd,Home Care - Private Contractors Payment,114.96,0,VENDOR
03-01-2023,Adults & Health,Bio Luminuex Health Care Ltd,Daycare - Private Contractors Payment,38.32,0,VENDOR
03-01-2023,Adults & Health,Bio Luminuex Health Care Ltd,Home Care - Private Contractors Payment,603.54,0,VENDOR
03-01-2023,Adults & Health,Bio Luminuex Health Care Ltd,Home Care - Private Contractors Payment,43.11,0,VENDOR
03-01-2023,Adults & Health,Bio Luminuex Health Care Ltd,Home Care - Private Contractors Payment,57.48,0,VENDOR
03-01-2023,Adults & Health,Bio Luminuex Health Care Ltd,Daycare - Private Contractors Payment,28.74,0,VENDOR
03-01-2023,Adults & Health,Bio Luminuex Health Care Ltd,Home Care - Private Contractors Payment,19.16,0,VENDOR
03-01-2023,Adults & Health,Bio Luminuex Health Care Ltd,Home Care - Private Contractors Payment,100.59,0,VENDOR
03-01-2023,Adults & Health,Bio Luminuex Health Care Ltd,Daycare - Private Contractors Payment,76.64,0,VENDOR
03-01-2023,Adults & Health,Bio Luminuex Health Care Ltd,Daycare - Private Contractors Payment,57.48,0,VENDOR
03-01-2023,Adults & Health,Bio Luminuex Health Care Ltd,Home Care - Private Contractors Payment,301.77,0,VENDOR
03-01-2023,Adults & Health,Bio Luminuex Health Care Ltd,Home Care - Private Contractors Payment,268.24,0,VENDOR
03-01-2023,Adults & Health,Bio Luminuex Health Care Ltd,Daycare - Private Contractors Payment,38.32,0,VENDOR
03-01-2023,Adults & Health,Bio Luminuex Health Care Ltd,Respite Care - Private Contractors Payment,143.7,0,VENDOR
03-01-2023,Adults & Health,Bio Luminuex Health Care Ltd,Home Care - Private Contractors Payment,570.01,0,VENDOR
03-01-2023,Adults & Health,Bio Luminuex Health Care Ltd,Home Care - Private Contractors Payment,201.18,0,VENDOR
03-01-2023,Adults & Health,Bio Luminuex Health Care Ltd,Home Care - Private Contractors Payment,234.71,0,VENDOR
03-01-2023,Adults & Health,Bio Luminuex Health Care Ltd,Home Care - Private Contractors Payment,167.65,0,VENDOR
03-01-2023,Adults & Health,Bio Luminuex Health Care Ltd,Home Care - Private Contractors Payment,134.12,0,VENDOR
03-01-2023,Adults & Health,Bio Luminuex Health Care Ltd,Home Care - Private Contractors Payment,570.01,0,VENDOR
03-01-2023,Adults & Health,Bio Luminuex Health Care Ltd,Daycare - Private Contractors Payment,57.48,0,VENDOR
03-01-2023,Adults & Health,Bio Luminuex Health Care Ltd,Home Care - Private Contractors Payment,19.16,0,VENDOR
03-01-2023,Adults & Health,Bio Luminuex Health Care Ltd,Home Care - Private Contractors Payment,167.65,0,VENDOR
03-01-2023,Adults & Health,Bio Luminuex Health Care Ltd,Home Care - Private Contractors Payment,234.71,0,VENDOR
03-01-2023,Adults & Health,Bio Luminuex Health Care Ltd,Home Care - Private Contractors Payment,167.65,0,VENDOR
03-01-2023,Adults & Health,Bio Luminuex Health Care Ltd,Home Care - Private Contractors Payment,134.12,0,VENDOR
03-01-2023,Adults & Health,Bio Luminuex Health Care Ltd,Home Care - Private Contractors Payment,100.59,0,VENDOR
03-01-2023,Adults & Health,Bio Luminuex Health Care Ltd,Home Care - Private Contractors Payment,143.7,0,VENDOR
03-01-2023,Adults & Health,Bio Luminuex Health Care Ltd,Home Care - Private Contractors Payment,38.32,0,VENDOR
03-01-2023,Adults & Health,Bio Luminuex Health Care Ltd,Daycare - Private Contractors Payment,19.16,0,VENDOR
03-01-2023,Adults & Health,Bio Luminuex Health Care Ltd,Home Care - Private Contractors Payment,95.8,0,VENDOR
03-01-2023,Adults & Health,Bio Luminuex Health Care Ltd,Daycare - Private Contractors Payment,201.18,0,VENDOR
03-01-2023,Adults & Health,Bio Luminuex Health Care Ltd,Home Care - Private Contractors Payment,804.72,0,VENDOR
03-01-2023,Adults & Health,Bio Luminuex Health Care Ltd,Home Care - Private Contractors Payment,502.95,0,VENDOR
03-01-2023,Adults & Health,Bio Luminuex Health Care Ltd,Daycare - Private Contractors Payment,114.96,0,VENDOR
03-01-2023,Adults & Health,Bio Luminuex Health Care Ltd,Home Care - Private Contractors Payment,19.16,0,VENDOR
03-01-2023,Adults & Health,Bio Luminuex Health Care Ltd,Home Care - Private Contractors Payment,234.71,0,VENDOR
03-01-2023,Adults & Health,Bio Luminuex Health Care Ltd,Home Care - Private Contractors Payment,134.12,0,VENDOR
03-01-2023,Adults & Health,Bio Luminuex Health Care Ltd,Home Care - Private Contractors Payment,67.06,0,VENDOR
03-01-2023,Adults & Health,Bio Luminuex Health Care Ltd,Daycare - Private Contractors Payment,76.64,0,VENDOR
03-01-2023,Adults & Health,Bio Luminuex Health Care Ltd,Home Care - Private Contractors Payment,134.12,0,VENDOR
03-01-2023,Adults & Health,Bio Luminuex Health Care Ltd,Home Care - Private Contractors Payment,292.19,0,VENDOR
03-01-2023,Adults & Health,Bio Luminuex Health Care Ltd,Daycare - Private Contractors Payment,38.32,0,VENDOR
03-01-2023,Adults & Health,Bio Luminuex Health Care Ltd,Home Care - Private Contractors Payment,19.16,0,VENDOR
03-01-2023,Adults & Health,Bio Luminuex Health Care Ltd,Home Care - Private Contractors Payment,201.18,0,VENDOR
03-01-2023,Adults & Health,Bio Luminuex Health Care Ltd,Home Care - Private Contractors Payment,201.18,0,VENDOR
03-01-2023,Adults & Health,Bio Luminuex Health Care Ltd,Home Care - Private Contractors Payment,234.71,0,VENDOR
03-01-2023,Adults & Health,Bio Luminuex Health Care Ltd,Home Care - Private Contractors Payment,301.77,0,VENDOR
03-01-2023,Adults & Health,Bio Luminuex Health Care Ltd,Home Care - Private Contractors Payment,268.24,0,VENDOR
03-01-2023,Adults & Health,Bio Luminuex Health Care Ltd,Daycare - Private Contractors Payment,134.12,0,VENDOR
03-01-2023,Adults & Health,Bio Luminuex Health Care Ltd,Daycare - Private Contractors Payment,76.64,0,VENDOR
03-01-2023,Adults & Health,Bio Luminuex Health Care Ltd,Home Care - Private Contractors Payment,19.16,0,VENDOR
03-01-2023,Adults & Health,Bio Luminuex Health Care Ltd,Home Care - Private Contractors Payment,234.71,0,VENDOR
03-01-2023,Adults & Health,Bio Luminuex Health Care Ltd,Home Care - Private Contractors Payment,201.18,0,VENDOR
03-01-2023,Adults & Health,Bio Luminuex Health Care Ltd,Home Care - Private Contractors Payment,292.19,0,VENDOR
03-01-2023,Adults & Health,Bio Luminuex Health Care Ltd,Daycare - Private Contractors Payment,76.64,0,VENDOR
03-01-2023,Adults & Health,Bio Luminuex Health Care Ltd,Daycare - Private Contractors Payment,38.32,0,VENDOR
03-01-2023,Adults & Health,Bio Luminuex Health Care Ltd,Home Care - Private Contractors Payment,517.32,0,VENDOR
03-01-2023,Adults & Health,Bio Luminuex Health Care Ltd,Home Care - Private Contractors Payment,301.77,0,VENDOR
03-01-2023,Adults & Health,Bio Luminuex Health Care Ltd,Home Care - Private Contractors Payment,301.77,0,VENDOR
03-01-2023,Adults & Health,Bio Luminuex Health Care Ltd,Home Care - Private Contractors Payment,603.54,0,VENDOR
03-01-2023,Adults & Health,Bio Luminuex Health Care Ltd,Home Care - Private Contractors Payment,201.18,0,VENDOR
03-01-2023,Adults & Health,Bio Luminuex Health Care Ltd,Home Care - Private Contractors Payment,43.11,0,VENDOR
03-01-2023,Adults & Health,Bio Luminuex Health Care Ltd,Home Care - Private Contractors Payment,19.16,0,VENDOR
03-01-2023,Adults & Health,Bio Luminuex Health Care Ltd,Home Care - Private Contractors Payment,143.7,0,VENDOR
03-01-2023,Adults & Health,Bio Luminuex Health Care Ltd,Home Care - Private Contractors Payment,234.71,0,VENDOR
03-01-2023,Adults & Health,Bio Luminuex Health Care Ltd,Daycare - Private Contractors Payment,19.16,0,VENDOR
03-01-2023,Adults & Health,Bio Luminuex Health Care Ltd,Daycare - Private Contractors Payment,76.64,0,VENDOR
03-01-2023,Adults & Health,Bio Luminuex Health Care Ltd,Home Care - Private Contractors Payment,28.74,0,VENDOR
03-01-2023,Adults & Health,Bio Luminuex Health Care Ltd,Home Care - Private Contractors Payment,38.32,0,VENDOR
03-01-2023,Adults & Health,Bio Luminuex Health Care Ltd,Home Care - Private Contractors Payment,134.12,0,VENDOR
03-01-2023,Adults & Health,Bio Luminuex Health Care Ltd,Home Care - Private Contractors Payment,167.65,0,VENDOR
03-01-2023,Adults & Health,Bio Luminuex Health Care Ltd,Home Care - Private Contractors Payment,167.65,0,VENDOR
03-01-2023,Adults & Health,Bio Luminuex Health Care Ltd,Home Care - Private Contractors Payment,263.45,0,VENDOR
03-01-2023,Adults & Health,Bio Luminuex Health Care Ltd,Home Care - Private Contractors Payment,670.6,0,VENDOR
03-01-2023,Adults & Health,Bio Luminuex Health Care Ltd,Home Care - Private Contractors Payment,368.83,0,VENDOR
03-01-2023,Adults & Health,Bio Luminuex Health Care Ltd,Home Care - Private Contractors Payment,603.54,0,VENDOR
03-01-2023,Adults & Health,Bio Luminuex Health Care Ltd,Home Care - Private Contractors Payment,114.96,0,VENDOR
03-01-2023,Adults & Health,Bio Luminuex Health Care Ltd,Home Care - Private Contractors Payment,38.32,0,VENDOR
03-01-2023,Adults & Health,Bio Luminuex Health Care Ltd,Home Care - Private Contractors Payment,335.3,0,VENDOR
03-01-2023,Adults & Health,Bio Luminuex Health Care Ltd,Home Care - Private Contractors Payment,134.12,0,VENDOR
03-01-2023,Adults & Health,Bio Luminuex Health Care Ltd,Home Care - Private Contractors Payment,201.18,0,VENDOR
03-01-2023,Adults & Health,Bio Luminuex Health Care Ltd,Home Care - Private Contractors Payment,201.18,0,VENDOR
03-01-2023,Adults & Health,Bio Luminuex Health Care Ltd,Home Care - Private Contractors Payment,14.37,0,VENDOR
03-01-2023,Adults & Health,Bio Luminuex Health Care Ltd,Home Care - Private Contractors Payment,119.75,0,VENDOR
03-01-2023,Adults & Health,Bio Luminuex Health Care Ltd,Home Care - Private Contractors Payment,402.36,0,VENDOR
03-01-2023,Adults & Health,Bio Luminuex Health Care Ltd,Home Care - Private Contractors Payment,268.24,0,VENDOR
03-01-2023,Adults & Health,Bio Luminuex Health Care Ltd,Home Care - Private Contractors Payment,172.44,0,VENDOR
03-01-2023,Adults & Health,Bio Luminuex Health Care Ltd,Home Care - Private Contractors Payment,38.32,0,VENDOR
03-01-2023,Adults & Health,Bio Luminuex Health Care Ltd,Home Care - Private Contractors Payment,201.18,0,VENDOR
03-01-2023,Adults & Health,Bio Luminuex Health Care Ltd,Home Care - Private Contractors Payment,301.77,0,VENDOR
03-01-2023,Adults & Health,Bio Luminuex Health Care Ltd,Home Care - Private Contractors Payment,301.77,0,VENDOR
03-01-2023,Adults & Health,Bio Luminuex Health Care Ltd,Home Care - Private Contractors Payment,603.54,0,VENDOR
03-01-2023,Adults & Health,Bio Luminuex Health Care Ltd,Home Care - Private Contractors Payment,603.54,0,VENDOR
03-01-2023,Adults & Health,Bio Luminuex Health Care Ltd,Home Care - Private Contractors Payment,134.12,0,VENDOR
03-01-2023,Adults & Health,Bio Luminuex Health Care Ltd,Home Care - Private Contractors Payment,19.16,0,VENDOR
03-01-2023,Adults & Health,Bio Luminuex Health Care Ltd,Home Care - Private Contractors Payment,19.16,0,VENDOR
03-01-2023,Adults & Health,Bio Luminuex Health Care Ltd,Home Care - Private Contractors Payment,301.77,0,VENDOR
03-01-2023,Adults & Health,Bio Luminuex Health Care Ltd,Home Care - Private Contractors Payment,19.16,0,VENDOR
03-01-2023,Adults & Health,Bio Luminuex Health Care Ltd,Home Care - Private Contractors Payment,19.16,0,VENDOR
03-01-2023,Adults & Health,Bio Luminuex Health Care Ltd,Respite Care - Private Contractors Payment,105.38,0,VENDOR
03-01-2023,Adults & Health,Bio Luminuex Health Care Ltd,Home Care - Private Contractors Payment,234.71,0,VENDOR
03-01-2023,Adults & Health,Bio Luminuex Health Care Ltd,Daycare - Private Contractors Payment,28.74,0,VENDOR
03-01-2023,Adults & Health,Bio Luminuex Health Care Ltd,Daycare - Private Contractors Payment,114.96,0,VENDOR
03-01-2023,Adults & Health,Bio Luminuex Health Care Ltd,Home Care - Private Contractors Payment,498.16,0,VENDOR
03-01-2023,Adults & Health,Bio Luminuex Health Care Ltd,Home Care - Private Contractors Payment,134.12,0,VENDOR
03-01-2023,Adults & Health,Bio Luminuex Health Care Ltd,Home Care - Private Contractors Payment,167.65,0,VENDOR
03-01-2023,Adults & Health,Bio Luminuex Health Care Ltd,Home Care - Private Contractors Payment,100.59,0,VENDOR
03-01-2023,Adults & Health,Bio Luminuex Health Care Ltd,Daycare - Private Contractors Payment,57.48,0,VENDOR
03-01-2023,Adults & Health,Bio Luminuex Health Care Ltd,Home Care - Private Contractors Payment,134.12,0,VENDOR
03-01-2023,Adults & Health,Bio Luminuex Health Care Ltd,Daycare - Private Contractors Payment,38.32,0,VENDOR
03-01-2023,Adults & Health,Bio Luminuex Health Care Ltd,Home Care - Private Contractors Payment,38.32,0,VENDOR
03-01-2023,Adults & Health,Bio Luminuex Health Care Ltd,Home Care - Private Contractors Payment,81.43,0,VENDOR
03-01-2023,Adults & Health,Bio Luminuex Health Care Ltd,Daycare - Private Contractors Payment,134.12,0,VENDOR
03-01-2023,Adults & Health,Bio Luminuex Health Care Ltd,Home Care - Private Contractors Payment,838.25,0,VENDOR
03-01-2023,Adults & Health,Bio Luminuex Health Care Ltd,Home Care - Private Contractors Payment,268.24,0,VENDOR
03-01-2023,Adults & Health,Bio Luminuex Health Care Ltd,Home Care - Private Contractors Payment,172.44,0,VENDOR
03-01-2023,Adults & Health,Bio Luminuex Health Care Ltd,Daycare - Private Contractors Payment,134.12,0,VENDOR
03-01-2023,Adults & Health,Bio Luminuex Health Care Ltd,Daycare - Private Contractors Payment,498.16,0,VENDOR
03-01-2023,Adults & Health,Bio Luminuex Health Care Ltd,Home Care - Private Contractors Payment,335.3,0,VENDOR
03-01-2023,Adults & Health,Bio Luminuex Health Care Ltd,Home Care - Private Contractors Payment,502.95,0,VENDOR
03-01-2023,Adults & Health,Bio Luminuex Health Care Ltd,Home Care - Private Contractors Payment,167.65,0,VENDOR
03-01-2023,Adults & Health,Bio Luminuex Health Care Ltd,Home Care - Private Contractors Payment,38.32,0,VENDOR
03-01-2023,Adults & Health,Bio Luminuex Health Care Ltd,Home Care - Private Contractors Payment,234.71,0,VENDOR
03-01-2023,Adults & Health,Bio Luminuex Health Care Ltd,Home Care - Private Contractors Payment,201.18,0,VENDOR
03-01-2023,Adults & Health,Bio Luminuex Health Care Ltd,Respite Care - Private Contractors Payment,114.96,0,VENDOR
03-01-2023,Adults & Health,Bio Luminuex Health Care Ltd,Home Care - Private Contractors Payment,100.59,0,VENDOR
03-01-2023,Adults & Health,Bio Luminuex Health Care Ltd,Home Care - Private Contractors Payment,402.36,0,VENDOR
03-01-2023,Adults & Health,Bio Luminuex Health Care Ltd,Home Care - Private Contractors Payment,234.71,0,VENDOR
03-01-2023,Adults & Health,Bio Luminuex Health Care Ltd,Daycare - Private Contractors Payment,57.48,0,VENDOR
03-01-2023,Adults & Health,Bio Luminuex Health Care Ltd,Home Care - Private Contractors Payment,234.71,0,VENDOR
03-01-2023,Adults & Health,Bio Luminuex Health Care Ltd,Home Care - Private Contractors Payment,335.3,0,VENDOR
03-01-2023,Adults & Health,Bio Luminuex Health Care Ltd,Home Care - Private Contractors Payment,234.71,0,VENDOR
03-01-2023,Adults & Health,Bio Luminuex Health Care Ltd,Home Care - Private Contractors Payment,86.22,0,VENDOR
03-01-2023,Adults & Health,Bio Luminuex Health Care Ltd,Home Care - Private Contractors Payment,301.77,0,VENDOR
03-01-2023,Adults & Health,Bio Luminuex Health Care Ltd,Home Care - Private Contractors Payment,167.65,0,VENDOR
03-01-2023,Adults & Health,Bio Luminuex Health Care Ltd,Daycare - Private Contractors Payment,38.32,0,VENDOR
03-01-2023,Adults & Health,Bio Luminuex Health Care Ltd,Home Care - Private Contractors Payment,19.16,0,VENDOR
03-01-2023,Adults & Health,Bio Luminuex Health Care Ltd,Home Care - Private Contractors Payment,38.32,0,VENDOR
03-01-2023,Adults & Health,Bio Luminuex Health Care Ltd,Home Care - Private Contractors Payment,234.71,0,VENDOR
03-01-2023,Adults & Health,Bio Luminuex Health Care Ltd,Home Care - Private Contractors Payment,469.42,0,VENDOR
03-01-2023,Adults & Health,Bio Luminuex Health Care Ltd,Home Care - Private Contractors Payment,502.95,0,VENDOR
03-01-2023,Adults & Health,Bio Luminuex Health Care Ltd,Home Care - Private Contractors Payment,38.32,0,VENDOR
03-01-2023,Adults & Health,Bio Luminuex Health Care Ltd,Respite Care - Private Contractors Payment,143.7,0,VENDOR
03-01-2023,Adults & Health,Bio Luminuex Health Care Ltd,Home Care - Private Contractors Payment,19.16,0,VENDOR
03-01-2023,Adults & Health,Bio Luminuex Health Care Ltd,Daycare - Private Contractors Payment,19.16,0,VENDOR
03-01-2023,Adults & Health,Bio Luminuex Health Care Ltd,Home Care - Private Contractors Payment,19.16,0,VENDOR
03-01-2023,Adults & Health,Bio Luminuex Health Care Ltd,Home Care - Private Contractors Payment,201.18,0,VENDOR
03-01-2023,Adults & Health,Bio Luminuex Health Care Ltd,Home Care - Private Contractors Payment,268.24,0,VENDOR
03-01-2023,Adults & Health,Bio Luminuex Health Care Ltd,Respite Care - Private Contractors Payment,134.12,0,VENDOR
03-01-2023,Adults & Health,Bio Luminuex Health Care Ltd,Home Care - Private Contractors Payment,167.65,0,VENDOR
03-01-2023,Adults & Health,Bio Luminuex Health Care Ltd,Home Care - Private Contractors Payment,704.13,0,VENDOR
03-01-2023,Adults & Health,Bio Luminuex Health Care Ltd,Home Care - Private Contractors Payment,28.74,0,VENDOR
03-01-2023,Adults & Health,Bio Luminuex Health Care Ltd,Home Care - Private Contractors Payment,167.65,0,VENDOR
03-01-2023,Adults & Health,Bio Luminuex Health Care Ltd,Home Care - Private Contractors Payment,603.54,0,VENDOR
03-01-2023,Adults & Health,Bio Luminuex Health Care Ltd,Home Care - Private Contractors Payment,100.59,0,VENDOR
03-01-2023,Adults & Health,Bio Luminuex Health Care Ltd,Home Care - Private Contractors Payment,603.54,0,VENDOR
03-01-2023,Adults & Health,Bio Luminuex Health Care Ltd,Home Care - Private Contractors Payment,162.86,0,VENDOR
03-01-2023,Adults & Health,Bio Luminuex Health Care Ltd,Home Care - Private Contractors Payment,86.22,0,VENDOR
03-01-2023,Adults & Health,Bio Luminuex Health Care Ltd,Home Care - Private Contractors Payment,100.59,0,VENDOR
03-01-2023,Adults & Health,Bio Luminuex Health Care Ltd,Respite Care - Private Contractors Payment,57.48,0,VENDOR
03-01-2023,Adults & Health,Bio Luminuex Health Care Ltd,Home Care - Private Contractors Payment,28.74,0,VENDOR
03-01-2023,Adults & Health,Bio Luminuex Health Care Ltd,Daycare - Private Contractors Payment,38.32,0,VENDOR
03-01-2023,Adults & Health,Bio Luminuex Health Care Ltd,Reablement,47.9,0,VENDOR
03-01-2023,Adults & Health,Bio Luminuex Health Care Ltd,Home Care - Private Contractors Payment,234.71,0,VENDOR
03-01-2023,Adults & Health,Bio Luminuex Health Care Ltd,Daycare - Private Contractors Payment,191.6,0,VENDOR
03-01-2023,Adults & Health,Bio Luminuex Health Care Ltd,Home Care - Private Contractors Payment,402.36,0,VENDOR
03-01-2023,Adults & Health,Bio Luminuex Health Care Ltd,Home Care - Private Contractors Payment,67.06,0,VENDOR
03-01-2023,Adults & Health,Bio Luminuex Health Care Ltd,Daycare - Private Contractors Payment,95.8,0,VENDOR
03-01-2023,Adults & Health,Bio Luminuex Health Care Ltd,Home Care - Private Contractors Payment,67.06,0,VENDOR
03-01-2023,Adults & Health,Bio Luminuex Health Care Ltd,Home Care - Private Contractors Payment,19.16,0,VENDOR
03-01-2023,Adults & Health,Bio Luminuex Health Care Ltd,Home Care - Private Contractors Payment,167.65,0,VENDOR
03-01-2023,Adults & Health,Bio Luminuex Health Care Ltd,Daycare - Private Contractors Payment,19.16,0,VENDOR
03-01-2023,Adults & Health,Bio Luminuex Health Care Ltd,Home Care - Private Contractors Payment,301.77,0,VENDOR
03-01-2023,Adults & Health,Bio Luminuex Health Care Ltd,Home Care - Private Contractors Payment,402.36,0,VENDOR
03-01-2023,Adults & Health,Bio Luminuex Health Care Ltd,Home Care - Private Contractors Payment,301.77,0,VENDOR
03-01-2023,Adults & Health,Bio Luminuex Health Care Ltd,Daycare - Private Contractors Payment,28.74,0,VENDOR
03-01-2023,Adults & Health,Bio Luminuex Health Care Ltd,Home Care - Private Contractors Payment,229.92,0,VENDOR
03-01-2023,Adults & Health,Bio Luminuex Health Care Ltd,Home Care - Private Contractors Payment,19.16,0,VENDOR
03-01-2023,Adults & Health,Bio Luminuex Health Care Ltd,Daycare - Private Contractors Payment,33.53,0,VENDOR
03-01-2023,Adults & Health,Bio Luminuex Health Care Ltd,Home Care - Private Contractors Payment,368.83,0,VENDOR
03-01-2023,Adults & Health,Bio Luminuex Health Care Ltd,Home Care - Private Contractors Payment,28.74,0,VENDOR
03-01-2023,Adults & Health,Bio Luminuex Health Care Ltd,Home Care - Private Contractors Payment,201.18,0,VENDOR
03-01-2023,Adults & Health,Bio Luminuex Health Care Ltd,Home Care - Private Contractors Payment,603.54,0,VENDOR
03-01-2023,Adults & Health,Bio Luminuex Health Care Ltd,Home Care - Private Contractors Payment,804.72,0,VENDOR
03-01-2023,Adults & Health,Bio Luminuex Health Care Ltd,Home Care - Private Contractors Payment,234.71,0,VENDOR
03-01-2023,Adults & Health,Bio Luminuex Health Care Ltd,Home Care - Private Contractors Payment,368.83,0,VENDOR
03-01-2023,Adults & Health,Bio Luminuex Health Care Ltd,Home Care - Private Contractors Payment,234.71,0,VENDOR
03-01-2023,Adults & Health,Bio Luminuex Health Care Ltd,Daycare - Private Contractors Payment,38.32,0,VENDOR
03-01-2023,Adults & Health,Bio Luminuex Health Care Ltd,Home Care - Private Contractors Payment,225.13,0,VENDOR
03-01-2023,Adults & Health,Bio Luminuex Health Care Ltd,Home Care - Private Contractors Payment,100.59,0,VENDOR
03-01-2023,Adults & Health,Bio Luminuex Health Care Ltd,Home Care - Private Contractors Payment,268.24,0,VENDOR
03-01-2023,Adults & Health,Bio Luminuex Health Care Ltd,Home Care - Private Contractors Payment,268.24,0,VENDOR
03-01-2023,Adults & Health,Bio Luminuex Health Care Ltd,Home Care - Private Contractors Payment,9.58,0,VENDOR
03-01-2023,Adults & Health,Bio Luminuex Health Care Ltd,Home Care - Private Contractors Payment,100.59,0,VENDOR
03-01-2023,Adults & Health,Bio Luminuex Health Care Ltd,Home Care - Private Contractors Payment,167.65,0,VENDOR
03-01-2023,Adults & Health,Bio Luminuex Health Care Ltd,Home Care - Private Contractors Payment,502.95,0,VENDOR
03-01-2023,Adults & Health,Bio Luminuex Health Care Ltd,Home Care - Private Contractors Payment,134.12,0,VENDOR
03-01-2023,Adults & Health,Bio Luminuex Health Care Ltd,Home Care - Private Contractors Payment,19.16,0,VENDOR
03-01-2023,Adults & Health,Bio Luminuex Health Care Ltd,Daycare - Private Contractors Payment,28.74,0,VENDOR
03-01-2023,Adults & Health,Bio Luminuex Health Care Ltd,Home Care - Private Contractors Payment,134.12,0,VENDOR
03-01-2023,Adults & Health,Bio Luminuex Health Care Ltd,Home Care - Private Contractors Payment,167.65,0,VENDOR
03-01-2023,Adults & Health,Bio Luminuex Health Care Ltd,Home Care - Private Contractors Payment,167.65,0,VENDOR
03-01-2023,Adults & Health,Bio Luminuex Health Care Ltd,Home Care - Private Contractors Payment,268.24,0,VENDOR
03-01-2023,Adults & Health,Bio Luminuex Health Care Ltd,Daycare - Private Contractors Payment,95.8,0,VENDOR
03-01-2023,Adults & Health,Bio Luminuex Health Care Ltd,Home Care - Private Contractors Payment,301.77,0,VENDOR
03-01-2023,Adults & Health,Bio Luminuex Health Care Ltd,Home Care - Private Contractors Payment,234.71,0,VENDOR
03-01-2023,Adults & Health,Bio Luminuex Health Care Ltd,Daycare - Private Contractors Payment,95.8,0,VENDOR
03-01-2023,Adults & Health,Bio Luminuex Health Care Ltd,Daycare - Private Contractors Payment,19.16,0,VENDOR
03-01-2023,Adults & Health,Bio Luminuex Health Care Ltd,Home Care - Private Contractors Payment,19.16,0,VENDOR
03-01-2023,Adults & Health,Bio Luminuex Health Care Ltd,Home Care - Private Contractors Payment,301.77,0,VENDOR
03-01-2023,Adults & Health,Bio Luminuex Health Care Ltd,Respite Care - Private Contractors Payment,134.12,0,VENDOR
03-01-2023,Adults & Health,Bio Luminuex Health Care Ltd,Home Care - Private Contractors Payment,570.01,0,VENDOR
03-01-2023,Adults & Health,Bio Luminuex Health Care Ltd,Home Care - Private Contractors Payment,134.12,0,VENDOR
03-01-2023,Adults & Health,Bio Luminuex Health Care Ltd,Respite Care - Private Contractors Payment,57.48,0,VENDOR
03-01-2023,Adults & Health,Bio Luminuex Health Care Ltd,Home Care - Private Contractors Payment,234.71,0,VENDOR
03-01-2023,Adults & Health,Bio Luminuex Health Care Ltd,Home Care - Private Contractors Payment,680.18,0,VENDOR
03-01-2023,Adults & Health,Bio Luminuex Health Care Ltd,Home Care - Private Contractors Payment,167.65,0,VENDOR
03-01-2023,Adults & Health,Bio Luminuex Health Care Ltd,Home Care - Private Contractors Payment,201.18,0,VENDOR
03-01-2023,Adults & Health,Bio Luminuex Health Care Ltd,Home Care - Private Contractors Payment,100.59,0,VENDOR
03-01-2023,Adults & Health,Bio Luminuex Health Care Ltd,Home Care - Private Contractors Payment,301.77,0,VENDOR
03-01-2023,Adults & Health,Bio Luminuex Health Care Ltd,Home Care - Private Contractors Payment,19.16,0,VENDOR
03-01-2023,Adults & Health,Bio Luminuex Health Care Ltd,Daycare - Private Contractors Payment,33.53,0,VENDOR
03-01-2023,Adults & Health,Bio Luminuex Health Care Ltd,Daycare - Private Contractors Payment,134.12,0,VENDOR
03-01-2023,Adults & Health,Bio Luminuex Health Care Ltd,Home Care - Private Contractors Payment,268.24,0,VENDOR
03-01-2023,Adults & Health,Bio Luminuex Health Care Ltd,Home Care - Private Contractors Payment,301.77,0,VENDOR
03-01-2023,Adults & Health,Bio Luminuex Health Care Ltd,Home Care - Private Contractors Payment,100.59,0,VENDOR
03-01-2023,Adults & Health,Bio Luminuex Health Care Ltd,Home Care - Private Contractors Payment,19.16,0,VENDOR
03-01-2023,Adults & Health,Bio Luminuex Health Care Ltd,Home Care - Private Contractors Payment,234.71,0,VENDOR
03-01-2023,Adults & Health,Bio Luminuex Health Care Ltd,Home Care - Private Contractors Payment,114.96,0,VENDOR
03-01-2023,Adults & Health,Bio Luminuex Health Care Ltd,Respite Care - Private Contractors Payment,28.74,0,VENDOR
03-01-2023,Adults & Health,Bio Luminuex Health Care Ltd,Daycare - Private Contractors Payment,57.48,0,VENDOR
03-01-2023,Adults & Health,Bio Luminuex Health Care Ltd,Home Care - Private Contractors Payment,19.16,0,VENDOR
03-01-2023,Adults & Health,Bio Luminuex Health Care Ltd,Daycare - Private Contractors Payment,76.64,0,VENDOR
03-01-2023,Adults & Health,Bio Luminuex Health Care Ltd,Home Care - Private Contractors Payment,134.12,0,VENDOR
03-01-2023,Adults & Health,Bio Luminuex Health Care Ltd,Home Care - Private Contractors Payment,100.59,0,VENDOR
03-01-2023,Adults & Health,Bio Luminuex Health Care Ltd,Home Care - Private Contractors Payment,368.83,0,VENDOR
03-01-2023,Adults & Health,Bio Luminuex Health Care Ltd,Home Care - Private Contractors Payment,234.71,0,VENDOR
03-01-2023,Adults & Health,Bio Luminuex Health Care Ltd,Home Care - Private Contractors Payment,603.54,0,VENDOR
03-01-2023,Adults & Health,Bio Luminuex Health Care Ltd,Home Care - Private Contractors Payment,234.71,0,VENDOR
03-01-2023,Adults & Health,Bio Luminuex Health Care Ltd,Home Care - Private Contractors Payment,167.65,0,VENDOR
03-01-2023,Adults & Health,Bio Luminuex Health Care Ltd,Home Care - Private Contractors Payment,100.59,0,VENDOR
03-01-2023,Adults & Health,Bio Luminuex Health Care Ltd,Home Care - Private Contractors Payment,19.16,0,VENDOR
03-01-2023,Adults & Health,Bio Luminuex Health Care Ltd,Home Care - Private Contractors Payment,134.12,0,VENDOR
03-01-2023,Adults & Health,Bio Luminuex Health Care Ltd,Daycare - Private Contractors Payment,19.16,0,VENDOR
03-01-2023,Adults & Health,Bio Luminuex Health Care Ltd,Home Care - Private Contractors Payment,86.22,0,VENDOR
03-01-2023,Adults & Health,Bio Luminuex Health Care Ltd,Home Care - Private Contractors Payment,100.59,0,VENDOR
03-01-2023,Adults & Health,Bio Luminuex Health Care Ltd,Home Care - Private Contractors Payment,234.71,0,VENDOR
03-01-2023,Adults & Health,Bio Luminuex Health Care Ltd,Home Care - Private Contractors Payment,38.32,0,VENDOR
03-01-2023,Adults & Health,Bio Luminuex Health Care Ltd,Home Care - Private Contractors Payment,301.77,0,VENDOR
03-01-2023,Adults & Health,Bio Luminuex Health Care Ltd,Home Care - Private Contractors Payment,368.83,0,VENDOR
03-01-2023,Adults & Health,Bio Luminuex Health Care Ltd,Daycare - Private Contractors Payment,57.48,0,VENDOR
03-01-2023,Adults & Health,Bio Luminuex Health Care Ltd,Home Care - Private Contractors Payment,19.16,0,VENDOR
03-01-2023,Adults & Health,Bio Luminuex Health Care Ltd,Home Care - Private Contractors Payment,57.48,0,VENDOR
03-01-2023,Adults & Health,Bio Luminuex Health Care Ltd,Home Care - Private Contractors Payment,167.65,0,VENDOR
03-01-2023,Adults & Health,Bio Luminuex Health Care Ltd,Home Care - Private Contractors Payment,114.96,0,VENDOR
03-01-2023,Adults & Health,Bio Luminuex Health Care Ltd,Home Care - Private Contractors Payment,368.83,0,VENDOR
03-01-2023,Adults & Health,Bio Luminuex Health Care Ltd,Home Care - Private Contractors Payment,268.24,0,VENDOR
03-01-2023,Adults & Health,Bio Luminuex Health Care Ltd,Home Care - Private Contractors Payment,670.6,0,VENDOR
03-01-2023,Adults & Health,Bio Luminuex Health Care Ltd,Home Care - Private Contractors Payment,201.18,0,VENDOR
03-01-2023,Adults & Health,Bio Luminuex Health Care Ltd,Home Care - Private Contractors Payment,301.77,0,VENDOR
03-01-2023,Adults & Health,Bio Luminuex Health Care Ltd,Home Care - Private Contractors Payment,19.16,0,VENDOR
03-01-2023,Adults & Health,Bio Luminuex Health Care Ltd,Home Care - Private Contractors Payment,100.59,0,VENDOR
03-01-2023,Adults & Health,Bio Luminuex Health Care Ltd,Home Care - Private Contractors Payment,57.48,0,VENDOR
03-01-2023,Adults & Health,Bio Luminuex Health Care Ltd,Daycare - Private Contractors Payment,38.32,0,VENDOR
03-01-2023,Adults & Health,Bio Luminuex Health Care Ltd,Home Care - Private Contractors Payment,38.32,0,VENDOR
03-01-2023,Adults & Health,Bio Luminuex Health Care Ltd,Home Care - Private Contractors Payment,100.59,0,VENDOR
03-01-2023,Adults & Health,Bio Luminuex Health Care Ltd,Home Care - Private Contractors Payment,38.32,0,VENDOR
03-01-2023,Adults & Health,Bio Luminuex Health Care Ltd,Home Care - Private Contractors Payment,301.77,0,VENDOR
03-01-2023,Adults & Health,Bio Luminuex Health Care Ltd,Home Care - Private Contractors Payment,301.77,0,VENDOR
03-01-2023,Adults & Health,Bio Luminuex Health Care Ltd,Home Care - Private Contractors Payment,134.12,0,VENDOR
03-01-2023,Adults & Health,Bio Luminuex Health Care Ltd,Home Care - Private Contractors Payment,368.83,0,VENDOR
03-01-2023,Adults & Health,Bio Luminuex Health Care Ltd,Home Care - Private Contractors Payment,234.71,0,VENDOR
03-01-2023,Adults & Health,Bio Luminuex Health Care Ltd,Home Care - Private Contractors Payment,201.18,0,VENDOR
03-01-2023,Adults & Health,Bio Luminuex Health Care Ltd,Home Care - Private Contractors Payment,19.16,0,VENDOR
03-01-2023,Adults & Health,Bio Luminuex Health Care Ltd,Home Care - Private Contractors Payment,502.95,0,VENDOR
03-01-2023,Adults & Health,Bio Luminuex Health Care Ltd,Daycare - Private Contractors Payment,67.06,0,VENDOR
03-01-2023,Adults & Health,Bio Luminuex Health Care Ltd,Home Care - Private Contractors Payment,100.59,0,VENDOR
03-01-2023,Adults & Health,Bio Luminuex Health Care Ltd,Home Care - Private Contractors Payment,167.65,0,VENDOR
03-01-2023,Adults & Health,Bio Luminuex Health Care Ltd,Home Care - Private Contractors Payment,19.16,0,VENDOR
03-01-2023,Adults & Health,Bio Luminuex Health Care Ltd,Home Care - Private Contractors Payment,670.6,0,VENDOR
03-01-2023,Adults & Health,Bio Luminuex Health Care Ltd,Home Care - Private Contractors Payment,19.16,0,VENDOR
03-01-2023,Adults & Health,Bio Luminuex Health Care Ltd,Home Care - Private Contractors Payment,38.32,0,VENDOR
03-01-2023,Adults & Health,Bio Luminuex Health Care Ltd,Home Care - Private Contractors Payment,19.16,0,VENDOR
03-01-2023,Adults & Health,Bio Luminuex Health Care Ltd,Home Care - Private Contractors Payment,23.95,0,VENDOR
03-01-2023,Adults & Health,Bio Luminuex Health Care Ltd,Home Care - Private Contractors Payment,57.48,0,VENDOR
03-01-2023,Adults & Health,Bio Luminuex Health Care Ltd,Home Care - Private Contractors Payment,301.77,0,VENDOR
03-01-2023,Adults & Health,Bio Luminuex Health Care Ltd,Home Care - Private Contractors Payment,603.54,0,VENDOR
03-01-2023,Adults & Health,Bio Luminuex Health Care Ltd,Home Care - Private Contractors Payment,19.16,0,VENDOR
03-01-2023,Adults & Health,Bio Luminuex Health Care Ltd,Home Care - Private Contractors Payment,234.71,0,VENDOR
03-01-2023,Adults & Health,Bio Luminuex Health Care Ltd,Home Care - Private Contractors Payment,19.16,0,VENDOR
03-01-2023,Adults & Health,Bio Luminuex Health Care Ltd,Home Care - Private Contractors Payment,114.96,0,VENDOR
03-01-2023,Adults & Health,Bio Luminuex Health Care Ltd,Home Care - Private Contractors Payment,314.27,0,VENDOR
03-01-2023,Adults & Health,Bio Luminuex Health Care Ltd,Home Care - Private Contractors Payment,167.65,0,VENDOR
03-01-2023,Adults & Health,Bio Luminuex Health Care Ltd,Home Care - Private Contractors Payment,268.24,0,VENDOR
03-01-2023,Adults & Health,Bio Luminuex Health Care Ltd,Daycare - Private Contractors Payment,38.32,0,VENDOR
03-01-2023,Adults & Health,Bio Luminuex Health Care Ltd,Daycare - Private Contractors Payment,19.16,0,VENDOR
03-01-2023,Adults & Health,Bio Luminuex Health Care Ltd,Home Care - Private Contractors Payment,201.18,0,VENDOR
03-01-2023,Adults & Health,Bio Luminuex Health Care Ltd,Home Care - Private Contractors Payment,167.65,0,VENDOR
03-01-2023,Adults & Health,Bio Luminuex Health Care Ltd,Home Care - Private Contractors Payment,268.24,0,VENDOR
03-01-2023,Adults & Health,Bio Luminuex Health Care Ltd,Daycare - Private Contractors Payment,38.32,0,VENDOR
03-01-2023,Adults & Health,Bio Luminuex Health Care Ltd,Home Care - Private Contractors Payment,201.18,0,VENDOR
03-01-2023,Adults & Health,Bio Luminuex Health Care Ltd,Home Care - Private Contractors Payment,268.24,0,VENDOR
03-01-2023,Adults & Health,Bio Luminuex Health Care Ltd,Daycare - Private Contractors Payment,38.32,0,VENDOR
03-01-2023,Adults & Health,Bio Luminuex Health Care Ltd,Home Care - Private Contractors Payment,603.54,0,VENDOR
03-01-2023,Adults & Health,Bio Luminuex Health Care Ltd,Home Care - Private Contractors Payment,167.65,0,VENDOR
03-01-2023,Adults & Health,Bio Luminuex Health Care Ltd,Respite Care - Private Contractors Payment,114.96,0,VENDOR
03-01-2023,Adults & Health,Bio Luminuex Health Care Ltd,Daycare - Private Contractors Payment,114.96,0,VENDOR
03-01-2023,Adults & Health,Bio Luminuex Health Care Ltd,Home Care - Private Contractors Payment,201.18,0,VENDOR
03-01-2023,Adults & Health,Bio Luminuex Health Care Ltd,Home Care - Private Contractors Payment,603.54,0,VENDOR
03-01-2023,Adults & Health,Bio Luminuex Health Care Ltd,Home Care - Private Contractors Payment,28.74,0,VENDOR
03-01-2023,Adults & Health,Bio Luminuex Health Care Ltd,Home Care - Private Contractors Payment,325.72,0,VENDOR
03-01-2023,Adults & Health,Bio Luminuex Health Care Ltd,Home Care - Private Contractors Payment,340.09,0,VENDOR
03-01-2023,Adults & Health,Bio Luminuex Health Care Ltd,Home Care - Private Contractors Payment,167.65,0,VENDOR
03-01-2023,Adults & Health,Bio Luminuex Health Care Ltd,Home Care - Private Contractors Payment,603.54,0,VENDOR
03-01-2023,Adults & Health,Bio Luminuex Health Care Ltd,Daycare - Private Contractors Payment,19.16,0,VENDOR
03-01-2023,Adults & Health,Bio Luminuex Health Care Ltd,Home Care - Private Contractors Payment,134.12,0,VENDOR
03-01-2023,Adults & Health,Bio Luminuex Health Care Ltd,Home Care - Private Contractors Payment,19.16,0,VENDOR
03-01-2023,Adults & Health,Bio Luminuex Health Care Ltd,Home Care - Private Contractors Payment,131.04,0,VENDOR
03-01-2023,Adults & Health,Bio Luminuex Health Care Ltd,Home Care - Private Contractors Payment,158.07,0,VENDOR
03-01-2023,Adults & Health,Bio Luminuex Health Care Ltd,Home Care - Private Contractors Payment,244.29,0,VENDOR
03-01-2023,Adults & Health,Bio Luminuex Health Care Ltd,Home Care - Private Contractors Payment,249.08,0,VENDOR
03-01-2023,Adults & Health,Bio Luminuex Health Care Ltd,Home Care - Private Contractors Payment,838.25,0,VENDOR
03-01-2023,Adults & Health,Bio Luminuex Health Care Ltd,Home Care - Private Contractors Payment,234.71,0,VENDOR
03-01-2023,Adults & Health,Bio Luminuex Health Care Ltd,Home Care - Private Contractors Payment,57.48,0,VENDOR
03-01-2023,Adults & Health,Bio Luminuex Health Care Ltd,Home Care - Private Contractors Payment,301.77,0,VENDOR
03-01-2023,Adults & Health,Bio Luminuex Health Care Ltd,Home Care - Private Contractors Payment,804.72,0,VENDOR
03-01-2023,Adults & Health,Bio Luminuex Health Care Ltd,Home Care - Private Contractors Payment,570.01,0,VENDOR
03-01-2023,Adults & Health,Bio Luminuex Health Care Ltd,Respite Care - Private Contractors Payment,43.11,0,VENDOR
03-01-2023,Adults & Health,Bio Luminuex Health Care Ltd,Home Care - Private Contractors Payment,804.72,0,VENDOR
03-01-2023,Adults & Health,Bio Luminuex Health Care Ltd,Home Care - Private Contractors Payment,134.12,0,VENDOR
03-01-2023,Adults & Health,Bio Luminuex Health Care Ltd,Home Care - Private Contractors Payment,670.6,0,VENDOR
03-01-2023,Adults & Health,Bio Luminuex Health Care Ltd,Home Care - Private Contractors Payment,368.83,0,VENDOR
03-01-2023,Adults & Health,Bio Luminuex Health Care Ltd,Home Care - Private Contractors Payment,201.18,0,VENDOR
03-01-2023,Adults & Health,Bio Luminuex Health Care Ltd,Home Care - Private Contractors Payment,234.71,0,VENDOR
03-01-2023,Adults & Health,Bio Luminuex Health Care Ltd,Home Care - Private Contractors Payment,234.71,0,VENDOR
03-01-2023,Adults & Health,Bio Luminuex Health Care Ltd,Home Care - Private Contractors Payment,234.71,0,VENDOR
03-01-2023,Adults & Health,Bio Luminuex Health Care Ltd,Home Care - Private Contractors Payment,570.01,0,VENDOR
03-01-2023,Adults & Health,Bio Luminuex Health Care Ltd,Home Care - Private Contractors Payment,263.45,0,VENDOR
03-01-2023,Adults & Health,Bio Luminuex Health Care Ltd,Home Care - Private Contractors Payment,38.32,0,VENDOR
03-01-2023,Adults & Health,Bio Luminuex Health Care Ltd,Home Care - Private Contractors Payment,28.74,0,VENDOR
03-01-2023,Adults & Health,Bio Luminuex Health Care Ltd,Home Care - Private Contractors Payment,301.77,0,VENDOR
03-01-2023,Adults & Health,Bio Luminuex Health Care Ltd,Home Care - Private Contractors Payment,100.59,0,VENDOR
03-01-2023,Adults & Health,Bio Luminuex Health Care Ltd,Home Care - Private Contractors Payment,19.16,0,VENDOR
03-01-2023,Adults & Health,Bio Luminuex Health Care Ltd,Daycare - Private Contractors Payment,38.32,0,VENDOR
03-01-2023,Adults & Health,Bio Luminuex Health Care Ltd,Home Care - Private Contractors Payment,335.3,0,VENDOR
03-01-2023,Adults & Health,Bio Luminuex Health Care Ltd,Home Care - Private Contractors Payment,19.16,0,VENDOR
03-01-2023,Adults & Health,Bio Luminuex Health Care Ltd,Daycare - Private Contractors Payment,47.9,0,VENDOR
03-01-2023,Adults & Health,Bio Luminuex Health Care Ltd,Home Care - Private Contractors Payment,19.16,0,VENDOR
03-01-2023,Adults & Health,Bio Luminuex Health Care Ltd,Home Care - Private Contractors Payment,28.74,0,VENDOR
03-01-2023,Adults & Health,Bio Luminuex Health Care Ltd,Home Care - Private Contractors Payment,19.16,0,VENDOR
03-01-2023,Adults & Health,Bio Luminuex Health Care Ltd,Home Care - Private Contractors Payment,301.77,0,VENDOR
03-01-2023,Adults & Health,Bio Luminuex Health Care Ltd,Home Care - Private Contractors Payment,234.71,0,VENDOR
03-01-2023,Adults & Health,Bio Luminuex Health Care Ltd,Daycare - Private Contractors Payment,38.32,0,VENDOR
03-01-2023,Adults & Health,Bio Luminuex Health Care Ltd,Home Care - Private Contractors Payment,603.54,0,VENDOR
03-01-2023,Adults & Health,Bio Luminuex Health Care Ltd,Home Care - Private Contractors Payment,201.18,0,VENDOR
03-01-2023,Adults & Health,Bio Luminuex Health Care Ltd,Home Care - Private Contractors Payment,38.32,0,VENDOR
03-01-2023,Adults & Health,Bio Luminuex Health Care Ltd,Daycare - Private Contractors Payment,201.18,0,VENDOR
03-01-2023,Adults & Health,Bio Luminuex Health Care Ltd,Daycare - Private Contractors Payment,76.64,0,VENDOR
03-01-2023,Adults & Health,Bio Luminuex Health Care Ltd,Reablement,71.85,0,VENDOR
03-01-2023,Adults & Health,Bio Luminuex Health Care Ltd,Home Care - Private Contractors Payment,325.72,0,VENDOR
03-01-2023,Adults & Health,Bio Luminuex Health Care Ltd,Home Care - Private Contractors Payment,57.48,0,VENDOR
03-01-2023,Adults & Health,Bio Luminuex Health Care Ltd,Home Care - Private Contractors Payment,215.55,0,VENDOR
03-01-2023,Adults & Health,Bio Luminuex Health Care Ltd,Home Care - Private Contractors Payment,234.71,0,VENDOR
03-01-2023,Adults & Health,Bio Luminuex Health Care Ltd,Daycare - Private Contractors Payment,38.32,0,VENDOR
03-01-2023,Adults & Health,Bio Luminuex Health Care Ltd,Home Care - Private Contractors Payment,134.12,0,VENDOR
03-01-2023,Adults & Health,Bio Luminuex Health Care Ltd,Home Care - Private Contractors Payment,167.65,0,VENDOR
03-01-2023,Adults & Health,Bio Luminuex Health Care Ltd,Home Care - Private Contractors Payment,38.32,0,VENDOR
03-01-2023,Adults & Health,Bio Luminuex Health Care Ltd,Home Care - Private Contractors Payment,19.16,0,VENDOR
03-01-2023,Adults & Health,Bio Luminuex Health Care Ltd,Home Care - Private Contractors Payment,57.48,0,VENDOR
03-01-2023,Adults & Health,Bio Luminuex Health Care Ltd,Home Care - Private Contractors Payment,258.66,0,VENDOR
03-01-2023,Adults & Health,Bio Luminuex Health Care Ltd,Home Care - Private Contractors Payment,301.77,0,VENDOR
03-01-2023,Adults & Health,Bio Luminuex Health Care Ltd,Daycare - Private Contractors Payment,28.74,0,VENDOR
03-01-2023,Adults & Health,Bio Luminuex Health Care Ltd,Home Care - Private Contractors Payment,38.32,0,VENDOR
03-01-2023,Adults & Health,Bio Luminuex Health Care Ltd,Daycare - Private Contractors Payment,19.16,0,VENDOR
03-01-2023,Adults & Health,Bio Luminuex Health Care Ltd,Home Care - Private Contractors Payment,229.92,0,VENDOR
03-01-2023,Adults & Health,Bio Luminuex Health Care Ltd,Home Care - Private Contractors Payment,19.16,0,VENDOR
03-01-2023,Adults & Health,Bio Luminuex Health Care Ltd,Daycare - Private Contractors Payment,19.16,0,VENDOR
03-01-2023,Adults & Health,Bio Luminuex Health Care Ltd,Daycare - Private Contractors Payment,38.32,0,VENDOR
03-01-2023,Adults & Health,Bio Luminuex Health Care Ltd,Home Care - Private Contractors Payment,201.18,0,VENDOR
03-01-2023,Adults & Health,Bio Luminuex Health Care Ltd,Home Care - Private Contractors Payment,57.48,0,VENDOR
03-01-2023,Adults & Health,Bio Luminuex Health Care Ltd,Home Care - Private Contractors Payment,570.01,0,VENDOR
03-01-2023,Adults & Health,Bio Luminuex Health Care Ltd,Home Care - Private Contractors Payment,100.59,0,VENDOR
03-01-2023,Adults & Health,Bio Luminuex Health Care Ltd,Home Care - Private Contractors Payment,19.16,0,VENDOR
03-01-2023,Adults & Health,Bio Luminuex Health Care Ltd,Home Care - Private Contractors Payment,95.8,0,VENDOR
03-01-2023,Adults & Health,Bio Luminuex Health Care Ltd,Daycare - Private Contractors Payment,38.32,0,VENDOR
03-01-2023,Adults & Health,Bio Luminuex Health Care Ltd,Respite Care - Private Contractors Payment,43.11,0,VENDOR
03-01-2023,Adults & Health,Bio Luminuex Health Care Ltd,Home Care - Private Contractors Payment,536.48,0,VENDOR
03-01-2023,Adults & Health,Bio Luminuex Health Care Ltd,Respite Care - Private Contractors Payment,57.48,0,VENDOR
03-01-2023,Adults & Health,Bio Luminuex Health Care Ltd,Home Care - Private Contractors Payment,47.9,0,VENDOR
03-01-2023,Adults & Health,Bio Luminuex Health Care Ltd,Daycare - Private Contractors Payment,19.16,0,VENDOR
03-01-2023,Adults & Health,Bio Luminuex Health Care Ltd,Home Care - Private Contractors Payment,38.32,0,VENDOR
03-01-2023,Adults & Health,Bio Luminuex Health Care Ltd,Home Care - Private Contractors Payment,368.83,0,VENDOR
03-01-2023,Adults & Health,Bio Luminuex Health Care Ltd,Home Care - Private Contractors Payment,100.59,0,VENDOR
03-01-2023,Adults & Health,Bio Luminuex Health Care Ltd,Home Care - Private Contractors Payment,603.54,0,VENDOR
03-01-2023,Adults & Health,Bio Luminuex Health Care Ltd,Home Care - Private Contractors Payment,613.12,0,VENDOR
03-01-2023,Adults & Health,Bio Luminuex Health Care Ltd,Home Care - Private Contractors Payment,603.54,0,VENDOR
03-01-2023,Adults & Health,Bio Luminuex Health Care Ltd,Home Care - Private Contractors Payment,19.16,0,VENDOR
03-01-2023,Adults & Health,Bio Luminuex Health Care Ltd,Home Care - Private Contractors Payment,67.06,0,VENDOR
03-01-2023,Adults & Health,Bio Luminuex Health Care Ltd,Home Care - Private Contractors Payment,234.71,0,VENDOR
03-01-2023,Adults & Health,Bio Luminuex Health Care Ltd,Daycare - Private Contractors Payment,57.48,0,VENDOR
03-01-2023,Adults & Health,Bio Luminuex Health Care Ltd,Home Care - Private Contractors Payment,234.71,0,VENDOR
03-01-2023,Adults & Health,Bio Luminuex Health Care Ltd,Home Care - Private Contractors Payment,100.59,0,VENDOR
03-01-2023,Adults & Health,Bio Luminuex Health Care Ltd,Daycare - Private Contractors Payment,57.48,0,VENDOR
03-01-2023,Adults & Health,Bio Luminuex Health Care Ltd,Home Care - Private Contractors Payment,570.01,0,VENDOR
03-01-2023,Adults & Health,Bio Luminuex Health Care Ltd,Respite Care - Private Contractors Payment,43.11,0,VENDOR
03-01-2023,Adults & Health,Bio Luminuex Health Care Ltd,Home Care - Private Contractors Payment,570.01,0,VENDOR
03-01-2023,Adults & Health,Bio Luminuex Health Care Ltd,Home Care - Private Contractors Payment,234.71,0,VENDOR
03-01-2023,Adults & Health,Bio Luminuex Health Care Ltd,Home Care - Private Contractors Payment,38.32,0,VENDOR
03-01-2023,Adults & Health,Bio Luminuex Health Care Ltd,Daycare - Private Contractors Payment,114.96,0,VENDOR
03-01-2023,Adults & Health,Bio Luminuex Health Care Ltd,Home Care - Private Contractors Payment,603.54,0,VENDOR
03-01-2023,Adults & Health,Bio Luminuex Health Care Ltd,Home Care - Private Contractors Payment,502.95,0,VENDOR
03-01-2023,Adults & Health,Bio Luminuex Health Care Ltd,Home Care - Private Contractors Payment,19.16,0,VENDOR
03-01-2023,Adults & Health,Bio Luminuex Health Care Ltd,Daycare - Private Contractors Payment,38.32,0,VENDOR
03-01-2023,Adults & Health,Bio Luminuex Health Care Ltd,Home Care - Private Contractors Payment,19.16,0,VENDOR
03-01-2023,Adults & Health,Bio Luminuex Health Care Ltd,Home Care - Private Contractors Payment,57.48,0,VENDOR
03-01-2023,Adults & Health,Bio Luminuex Health Care Ltd,Home Care - Private Contractors Payment,47.9,0,VENDOR
03-01-2023,Adults & Health,Bio Luminuex Health Care Ltd,Home Care - Private Contractors Payment,402.36,0,VENDOR
03-01-2023,Adults & Health,Bio Luminuex Health Care Ltd,Home Care - Private Contractors Payment,67.06,0,VENDOR
03-01-2023,Adults & Health,Bio Luminuex Health Care Ltd,Home Care - Private Contractors Payment,402.36,0,VENDOR
03-01-2023,Adults & Health,Bio Luminuex Health Care Ltd,Home Care - Private Contractors Payment,402.36,0,VENDOR
03-01-2023,Adults & Health,Bio Luminuex Health Care Ltd,Home Care - Private Contractors Payment,570.01,0,VENDOR
03-01-2023,Adults & Health,Bio Luminuex Health Care Ltd,Home Care - Private Contractors Payment,19.16,0,VENDOR
03-01-2023,Adults & Health,Bio Luminuex Health Care Ltd,Home Care - Private Contractors Payment,167.65,0,VENDOR
03-01-2023,Adults & Health,Bio Luminuex Health Care Ltd,Home Care - Private Contractors Payment,19.16,0,VENDOR
03-01-2023,Adults & Health,Bio Luminuex Health Care Ltd,Home Care - Private Contractors Payment,570.01,0,VENDOR
03-01-2023,Adults & Health,Bio Luminuex Health Care Ltd,Home Care - Private Contractors Payment,402.36,0,VENDOR
03-01-2023,Adults & Health,Bio Luminuex Health Care Ltd,Home Care - Private Contractors Payment,570.01,0,VENDOR
03-01-2023,Adults & Health,Bio Luminuex Health Care Ltd,Home Care - Private Contractors Payment,498.16,0,VENDOR
03-01-2023,Adults & Health,Bio Luminuex Health Care Ltd,Home Care - Private Contractors Payment,47.9,0,VENDOR
03-01-2023,Adults & Health,Bio Luminuex Health Care Ltd,Home Care - Private Contractors Payment,335.3,0,VENDOR
03-01-2023,Adults & Health,Bio Luminuex Health Care Ltd,Daycare - Private Contractors Payment,134.12,0,VENDOR
03-01-2023,Adults & Health,Bio Luminuex Health Care Ltd,Home Care - Private Contractors Payment,19.16,0,VENDOR
03-01-2023,Adults & Health,Bio Luminuex Health Care Ltd,Home Care - Private Contractors Payment,100.59,0,VENDOR
03-01-2023,Adults & Health,Bio Luminuex Health Care Ltd,Home Care - Private Contractors Payment,603.54,0,VENDOR
03-01-2023,Adults & Health,Bio Luminuex Health Care Ltd,Reablement,71.85,0,VENDOR
03-01-2023,Adults & Health,Bio Luminuex Health Care Ltd,Home Care - Private Contractors Payment,301.77,0,VENDOR
03-01-2023,Adults & Health,Bio Luminuex Health Care Ltd,Home Care - Private Contractors Payment,119.75,0,VENDOR
03-01-2023,Adults & Health,Bio Luminuex Health Care Ltd,Home Care - Private Contractors Payment,134.12,0,VENDOR
03-01-2023,Adults & Health,Bio Luminuex Health Care Ltd,Home Care - Private Contractors Payment,268.24,0,VENDOR
03-01-2023,Adults & Health,Bio Luminuex Health Care Ltd,Daycare - Private Contractors Payment,67.06,0,VENDOR
03-01-2023,Adults & Health,Bio Luminuex Health Care Ltd,Home Care - Private Contractors Payment,229.92,0,VENDOR
03-01-2023,Adults & Health,Bio Luminuex Health Care Ltd,Home Care - Private Contractors Payment,570.01,0,VENDOR
03-01-2023,Adults & Health,Bio Luminuex Health Care Ltd,Home Care - Private Contractors Payment,95.8,0,VENDOR
03-01-2023,Adults & Health,Bio Luminuex Health Care Ltd,Home Care - Private Contractors Payment,71.85,0,VENDOR
03-01-2023,Adults & Health,Bio Luminuex Health Care Ltd,Daycare - Private Contractors Payment,76.64,0,VENDOR
03-01-2023,Adults & Health,Bio Luminuex Health Care Ltd,Daycare - Private Contractors Payment,95.8,0,VENDOR
03-01-2023,Adults & Health,Bio Luminuex Health Care Ltd,Home Care - Private Contractors Payment,368.83,0,VENDOR
03-01-2023,Adults & Health,Bio Luminuex Health Care Ltd,Home Care - Private Contractors Payment,838.25,0,VENDOR
03-01-2023,Adults & Health,Bio Luminuex Health Care Ltd,Home Care - Private Contractors Payment,234.71,0,VENDOR
03-01-2023,Adults & Health,Bio Luminuex Health Care Ltd,Daycare - Private Contractors Payment,498.16,0,VENDOR
03-01-2023,Adults & Health,Bio Luminuex Health Care Ltd,Daycare - Private Contractors Payment,38.32,0,VENDOR
03-01-2023,Adults & Health,Bio Luminuex Health Care Ltd,Home Care - Private Contractors Payment,234.71,0,VENDOR
03-01-2023,Adults & Health,Bio Luminuex Health Care Ltd,Home Care - Private Contractors Payment,167.65,0,VENDOR
03-01-2023,Adults & Health,Bio Luminuex Health Care Ltd,Home Care - Private Contractors Payment,263.45,0,VENDOR
03-01-2023,Adults & Health,Bio Luminuex Health Care Ltd,Home Care - Private Contractors Payment,19.16,0,VENDOR
03-01-2023,Adults & Health,Bio Luminuex Health Care Ltd,Home Care - Private Contractors Payment,402.36,0,VENDOR
03-01-2023,Adults & Health,Bio Luminuex Health Care Ltd,Home Care - Private Contractors Payment,268.24,0,VENDOR
03-01-2023,Adults & Health,Bio Luminuex Health Care Ltd,Daycare - Private Contractors Payment,134.12,0,VENDOR
03-01-2023,Adults & Health,Bio Luminuex Health Care Ltd,Home Care - Private Contractors Payment,368.83,0,VENDOR
03-01-2023,Adults & Health,Bio Luminuex Health Care Ltd,Home Care - Private Contractors Payment,301.77,0,VENDOR
03-01-2023,Adults & Health,Bio Luminuex Health Care Ltd,Home Care - Private Contractors Payment,201.18,0,VENDOR
03-01-2023,Adults & Health,Bio Luminuex Health Care Ltd,Home Care - Private Contractors Payment,335.3,0,VENDOR
03-01-2023,Adults & Health,Bio Luminuex Health Care Ltd,Home Care - Private Contractors Payment,570.01,0,VENDOR
03-01-2023,Adults & Health,Bio Luminuex Health Care Ltd,Daycare - Private Contractors Payment,28.74,0,VENDOR
03-01-2023,Adults & Health,Bio Luminuex Health Care Ltd,Home Care - Private Contractors Payment,570.01,0,VENDOR
03-01-2023,Adults & Health,Bio Luminuex Health Care Ltd,Home Care - Private Contractors Payment,38.32,0,VENDOR
03-01-2023,Adults & Health,Bio Luminuex Health Care Ltd,Respite Care - Private Contractors Payment,114.96,0,VENDOR
03-01-2023,Adults & Health,Bio Luminuex Health Care Ltd,Home Care - Private Contractors Payment,301.77,0,VENDOR
03-01-2023,Adults & Health,Bio Luminuex Health Care Ltd,Daycare - Private Contractors Payment,153.28,0,VENDOR
03-01-2023,Adults & Health,Bio Luminuex Health Care Ltd,Home Care - Private Contractors Payment,100.59,0,VENDOR
03-01-2023,Adults & Health,Bio Luminuex Health Care Ltd,Home Care - Private Contractors Payment,19.16,0,VENDOR
03-01-2023,Adults & Health,Bio Luminuex Health Care Ltd,Home Care - Private Contractors Payment,402.36,0,VENDOR
03-01-2023,Adults & Health,Bio Luminuex Health Care Ltd,Home Care - Private Contractors Payment,368.83,0,VENDOR
03-01-2023,Adults & Health,Bio Luminuex Health Care Ltd,Home Care - Private Contractors Payment,603.54,0,VENDOR
03-01-2023,Adults & Health,Bio Luminuex Health Care Ltd,Daycare - Private Contractors Payment,191.6,0,VENDOR
03-01-2023,Adults & Health,Bio Luminuex Health Care Ltd,Home Care - Private Contractors Payment,134.12,0,VENDOR
03-01-2023,Adults & Health,Bio Luminuex Health Care Ltd,Home Care - Private Contractors Payment,19.16,0,VENDOR
03-01-2023,Adults & Health,Bio Luminuex Health Care Ltd,Home Care - Private Contractors Payment,603.54,0,VENDOR
03-01-2023,Adults & Health,Bio Luminuex Health Care Ltd,Daycare - Private Contractors Payment,57.48,0,VENDOR
03-01-2023,Adults & Health,Bio Luminuex Health Care Ltd,Home Care - Private Contractors Payment,234.71,0,VENDOR
03-01-2023,Adults & Health,Bio Luminuex Health Care Ltd,Home Care - Private Contractors Payment,335.3,0,VENDOR
03-01-2023,Adults & Health,Bio Luminuex Health Care Ltd,Home Care - Private Contractors Payment,469.42,0,VENDOR
03-01-2023,Adults & Health,Bio Luminuex Health Care Ltd,Respite Care - Private Contractors Payment,28.74,0,VENDOR
03-01-2023,Adults & Health,Bio Luminuex Health Care Ltd,Home Care - Private Contractors Payment,402.36,0,VENDOR
03-01-2023,Adults & Health,Bio Luminuex Health Care Ltd,Home Care - Private Contractors Payment,201.18,0,VENDOR
03-01-2023,Adults & Health,Bio Luminuex Health Care Ltd,Home Care - Private Contractors Payment,402.36,0,VENDOR
03-01-2023,Adults & Health,Bio Luminuex Health Care Ltd,Daycare - Private Contractors Payment,38.32,0,VENDOR
03-01-2023,Adults & Health,Bio Luminuex Health Care Ltd,Home Care - Private Contractors Payment,201.18,0,VENDOR
03-01-2023,Adults & Health,Bio Luminuex Health Care Ltd,Home Care - Private Contractors Payment,67.06,0,VENDOR
03-01-2023,Adults & Health,Bio Luminuex Health Care Ltd,Home Care - Private Contractors Payment,570.01,0,VENDOR
03-01-2023,Adults & Health,Bio Luminuex Health Care Ltd,Home Care - Private Contractors Payment,301.77,0,VENDOR
03-01-2023,Adults & Health,Bio Luminuex Health Care Ltd,Daycare - Private Contractors Payment,38.32,0,VENDOR
03-01-2023,Adults & Health,Bio Luminuex Health Care Ltd,Home Care - Private Contractors Payment,536.48,0,VENDOR
03-01-2023,Adults & Health,Bio Luminuex Health Care Ltd,Home Care - Private Contractors Payment,680.18,0,VENDOR
03-01-2023,Adults & Health,Bio Luminuex Health Care Ltd,Home Care - Private Contractors Payment,570.01,0,VENDOR
03-01-2023,Adults & Health,Bio Luminuex Health Care Ltd,Daycare - Private Contractors Payment,19.16,0,VENDOR
03-01-2023,Adults & Health,Bio Luminuex Health Care Ltd,Home Care - Private Contractors Payment,100.59,0,VENDOR
03-01-2023,Adults & Health,Bio Luminuex Health Care Ltd,Home Care - Private Contractors Payment,292.19,0,VENDOR
03-01-2023,Adults & Health,Bio Luminuex Health Care Ltd,Home Care - Private Contractors Payment,167.65,0,VENDOR
03-01-2023,Adults & Health,Bio Luminuex Health Care Ltd,Home Care - Private Contractors Payment,201.18,0,VENDOR
03-01-2023,Adults & Health,Bio Luminuex Health Care Ltd,Home Care - Private Contractors Payment,225.13,0,VENDOR
03-01-2023,Adults & Health,Bio Luminuex Health Care Ltd,Home Care - Private Contractors Payment,19.16,0,VENDOR
03-01-2023,Adults & Health,Bio Luminuex Health Care Ltd,Home Care - Private Contractors Payment,67.06,0,VENDOR
03-01-2023,Adults & Health,Bio Luminuex Health Care Ltd,Home Care - Private Contractors Payment,234.71,0,VENDOR
03-01-2023,Adults & Health,Bio Luminuex Health Care Ltd,Home Care - Private Contractors Payment,143.7,0,VENDOR
03-01-2023,Adults & Health,Bio Luminuex Health Care Ltd,Home Care - Private Contractors Payment,19.16,0,VENDOR
03-01-2023,Adults & Health,Bio Luminuex Health Care Ltd,Respite Care - Private Contractors Payment,28.74,0,VENDOR
03-01-2023,Adults & Health,Bio Luminuex Health Care Ltd,Home Care - Private Contractors Payment,234.71,0,VENDOR
03-01-2023,Adults & Health,Bio Luminuex Health Care Ltd,Home Care - Private Contractors Payment,301.77,0,VENDOR
03-01-2023,Adults & Health,Bio Luminuex Health Care Ltd,Home Care - Private Contractors Payment,838.25,0,VENDOR
03-01-2023,Adults & Health,Bio Luminuex Health Care Ltd,Home Care - Private Contractors Payment,134.12,0,VENDOR
03-01-2023,Adults & Health,Bio Luminuex Health Care Ltd,Home Care - Private Contractors Payment,100.59,0,VENDOR
03-01-2023,Adults & Health,Bio Luminuex Health Care Ltd,Home Care - Private Contractors Payment,23.95,0,VENDOR
03-01-2023,Adults & Health,Bio Luminuex Health Care Ltd,Home Care - Private Contractors Payment,234.71,0,VENDOR
03-01-2023,Adults & Health,Bio Luminuex Health Care Ltd,Respite Care - Private Contractors Payment,114.96,0,VENDOR
03-01-2023,Adults & Health,Bio Luminuex Health Care Ltd,Home Care - Private Contractors Payment,23.95,0,VENDOR
03-01-2023,Adults & Health,Bio Luminuex Health Care Ltd,Home Care - Private Contractors Payment,19.16,0,VENDOR
03-01-2023,Adults & Health,Bio Luminuex Health Care Ltd,Home Care - Private Contractors Payment,86.22,0,VENDOR
03-01-2023,Adults & Health,Bio Luminuex Health Care Ltd,Home Care - Private Contractors Payment,167.65,0,VENDOR
03-01-2023,Adults & Health,Bio Luminuex Health Care Ltd,Home Care - Private Contractors Payment,234.71,0,VENDOR
03-01-2023,Adults & Health,Bio Luminuex Health Care Ltd,Daycare - Private Contractors Payment,19.16,0,VENDOR
03-01-2023,Adults & Health,Bio Luminuex Health Care Ltd,Home Care - Private Contractors Payment,19.16,0,VENDOR
03-01-2023,Adults & Health,Bio Luminuex Health Care Ltd,Home Care - Private Contractors Payment,100.59,0,VENDOR
03-01-2023,Adults & Health,Bio Luminuex Health Care Ltd,Home Care - Private Contractors Payment,435.89,0,VENDOR
03-01-2023,Adults & Health,Bio Luminuex Health Care Ltd,Daycare - Private Contractors Payment,28.74,0,VENDOR
03-01-2023,Adults & Health,Bio Luminuex Health Care Ltd,Home Care - Private Contractors Payment,38.32,0,VENDOR
03-01-2023,Adults & Health,Bio Luminuex Health Care Ltd,Home Care - Private Contractors Payment,603.54,0,VENDOR
03-01-2023,Adults & Health,Bio Luminuex Health Care Ltd,Home Care - Private Contractors Payment,38.32,0,VENDOR
03-01-2023,Adults & Health,Bio Luminuex Health Care Ltd,Daycare - Private Contractors Payment,76.64,0,VENDOR
03-01-2023,Adults & Health,Bio Luminuex Health Care Ltd,Home Care - Private Contractors Payment,201.18,0,VENDOR
03-01-2023,Adults & Health,Bio Luminuex Health Care Ltd,Home Care - Private Contractors Payment,268.24,0,VENDOR
03-01-2023,Adults & Health,Bio Luminuex Health Care Ltd,Home Care - Private Contractors Payment,172.44,0,VENDOR
03-01-2023,Adults & Health,Bio Luminuex Health Care Ltd,Daycare - Private Contractors Payment,134.12,0,VENDOR
03-01-2023,Adults & Health,Bio Luminuex Health Care Ltd,Home Care - Private Contractors Payment,402.36,0,VENDOR
03-01-2023,Adults & Health,Bio Luminuex Health Care Ltd,Home Care - Private Contractors Payment,314.27,0,VENDOR
03-01-2023,Adults & Health,Bio Luminuex Health Care Ltd,Home Care - Private Contractors Payment,167.65,0,VENDOR
03-01-2023,Adults & Health,Bio Luminuex Health Care Ltd,Daycare - Private Contractors Payment,19.16,0,VENDOR
03-01-2023,Adults & Health,Bio Luminuex Health Care Ltd,Home Care - Private Contractors Payment,47.9,0,VENDOR
03-01-2023,Adults & Health,Bio Luminuex Health Care Ltd,Home Care - Private Contractors Payment,234.71,0,VENDOR
03-01-2023,Adults & Health,Bio Luminuex Health Care Ltd,Home Care - Private Contractors Payment,19.16,0,VENDOR
03-01-2023,Adults & Health,Bio Luminuex Health Care Ltd,Home Care - Private Contractors Payment,268.24,0,VENDOR
03-01-2023,Adults & Health,Bio Luminuex Health Care Ltd,Home Care - Private Contractors Payment,268.24,0,VENDOR
03-01-2023,Adults & Health,Bio Luminuex Health Care Ltd,Daycare - Private Contractors Payment,38.32,0,VENDOR
03-01-2023,Adults & Health,Bio Luminuex Health Care Ltd,Home Care - Private Contractors Payment,368.83,0,VENDOR
03-01-2023,Adults & Health,Bio Luminuex Health Care Ltd,Home Care - Private Contractors Payment,19.16,0,VENDOR
03-01-2023,Adults & Health,Bio Luminuex Health Care Ltd,Home Care - Private Contractors Payment,570.01,0,VENDOR
03-01-2023,Adults & Health,Bio Luminuex Health Care Ltd,Home Care - Private Contractors Payment,301.77,0,VENDOR
03-01-2023,Adults & Health,Bio Luminuex Health Care Ltd,Home Care - Private Contractors Payment,268.24,0,VENDOR
03-01-2023,Adults & Health,Bio Luminuex Health Care Ltd,Home Care - Private Contractors Payment,603.54,0,VENDOR
03-01-2023,Adults & Health,Bio Luminuex Health Care Ltd,Home Care - Private Contractors Payment,38.32,0,VENDOR
03-01-2023,Adults & Health,Bio Luminuex Health Care Ltd,Home Care - Private Contractors Payment,28.74,0,VENDOR
03-01-2023,Adults & Health,Bio Luminuex Health Care Ltd,Home Care - Private Contractors Payment,95.8,0,VENDOR
03-01-2023,Adults & Health,Bio Luminuex Health Care Ltd,Home Care - Private Contractors Payment,301.77,0,VENDOR
03-01-2023,Adults & Health,Bio Luminuex Health Care Ltd,Home Care - Private Contractors Payment,19.16,0,VENDOR
03-01-2023,Adults & Health,Bio Luminuex Health Care Ltd,Home Care - Private Contractors Payment,134.12,0,VENDOR
03-01-2023,Adults & Health,Bio Luminuex Health Care Ltd,Respite Care - Private Contractors Payment,143.7,0,VENDOR
03-01-2023,Adults & Health,Bio Luminuex Health Care Ltd,Home Care - Private Contractors Payment,28.74,0,VENDOR
03-01-2023,Adults & Health,Bio Luminuex Health Care Ltd,Home Care - Private Contractors Payment,19.16,0,VENDOR
03-01-2023,Adults & Health,Bio Luminuex Health Care Ltd,Home Care - Private Contractors Payment,57.48,0,VENDOR
03-01-2023,Adults & Health,Bio Luminuex Health Care Ltd,Home Care - Private Contractors Payment,19.16,0,VENDOR
03-01-2023,Adults & Health,Bio Luminuex Health Care Ltd,Home Care - Private Contractors Payment,301.77,0,VENDOR
03-01-2023,Adults & Health,Bio Luminuex Health Care Ltd,Home Care - Private Contractors Payment,704.13,0,VENDOR
03-01-2023,Adults & Health,Bio Luminuex Health Care Ltd,Home Care - Private Contractors Payment,603.54,0,VENDOR
03-01-2023,Adults & Health,Bio Luminuex Health Care Ltd,Home Care - Private Contractors Payment,19.16,0,VENDOR
03-01-2023,Adults & Health,Bio Luminuex Health Care Ltd,Daycare - Private Contractors Payment,19.16,0,VENDOR
03-01-2023,Adults & Health,Bio Luminuex Health Care Ltd,Home Care - Private Contractors Payment,100.59,0,VENDOR
03-01-2023,Adults & Health,Bio Luminuex Health Care Ltd,Home Care - Private Contractors Payment,95.8,0,VENDOR
03-01-2023,Adults & Health,Bio Luminuex Health Care Ltd,Home Care - Private Contractors Payment,100.59,0,VENDOR
03-01-2023,Adults & Health,Bio Luminuex Health Care Ltd,Home Care - Private Contractors Payment,570.01,0,VENDOR
03-01-2023,Adults & Health,Bio Luminuex Health Care Ltd,Home Care - Private Contractors Payment,28.74,0,VENDOR
03-01-2023,Adults & Health,Bio Luminuex Health Care Ltd,Home Care - Private Contractors Payment,38.32,0,VENDOR
03-01-2023,Adults & Health,Bio Luminuex Health Care Ltd,Home Care - Private Contractors Payment,19.16,0,VENDOR
03-01-2023,Adults & Health,Bio Luminuex Health Care Ltd,Home Care - Private Contractors Payment,19.16,0,VENDOR
03-01-2023,Adults & Health,Bio Luminuex Health Care Ltd,Home Care - Private Contractors Payment,570.01,0,VENDOR
03-01-2023,Adults & Health,Bio Luminuex Health Care Ltd,Home Care - Private Contractors Payment,201.18,0,VENDOR
03-01-2023,Adults & Health,Bio Luminuex Health Care Ltd,Daycare - Private Contractors Payment,134.12,0,VENDOR
03-01-2023,Adults & Health,Bio Luminuex Health Care Ltd,Home Care - Private Contractors Payment,131.04,0,VENDOR
03-01-2023,Adults & Health,Bio Luminuex Health Care Ltd,Home Care - Private Contractors Payment,603.54,0,VENDOR
03-01-2023,Adults & Health,Bio Luminuex Health Care Ltd,Home Care - Private Contractors Payment,402.36,0,VENDOR
03-01-2023,Adults & Health,Bio Luminuex Health Care Ltd,Reablement,86.22,0,VENDOR
03-01-2023,Adults & Health,Bio Luminuex Health Care Ltd,Home Care - Private Contractors Payment,100.59,0,VENDOR
03-01-2023,Adults & Health,Bio Luminuex Health Care Ltd,Home Care - Private Contractors Payment,301.77,0,VENDOR
03-01-2023,Adults & Health,Bio Luminuex Health Care Ltd,Home Care - Private Contractors Payment,19.16,0,VENDOR
03-01-2023,Adults & Health,Bio Luminuex Health Care Ltd,Home Care - Private Contractors Payment,268.24,0,VENDOR
03-01-2023,Adults & Health,Bio Luminuex Health Care Ltd,Home Care - Private Contractors Payment,19.16,0,VENDOR
03-01-2023,Adults & Health,Bio Luminuex Health Care Ltd,Daycare - Private Contractors Payment,153.28,0,VENDOR
03-01-2023,Adults & Health,Bio Luminuex Health Care Ltd,Home Care - Private Contractors Payment,100.59,0,VENDOR
03-01-2023,Adults & Health,Bio Luminuex Health Care Ltd,Daycare - Private Contractors Payment,38.32,0,VENDOR
03-01-2023,Adults & Health,Bio Luminuex Health Care Ltd,Home Care - Private Contractors Payment,19.16,0,VENDOR
03-01-2023,Adults & Health,Bio Luminuex Health Care Ltd,Daycare - Private Contractors Payment,38.32,0,VENDOR
03-01-2023,Adults & Health,Bio Luminuex Health Care Ltd,Daycare - Private Contractors Payment,38.32,0,VENDOR
03-01-2023,Adults & Health,Bio Luminuex Health Care Ltd,Home Care - Private Contractors Payment,301.77,0,VENDOR
03-01-2023,Adults & Health,Bio Luminuex Health Care Ltd,Respite Care - Private Contractors Payment,114.96,0,VENDOR
03-01-2023,Adults & Health,Bio Luminuex Health Care Ltd,Home Care - Private Contractors Payment,134.12,0,VENDOR
03-01-2023,Adults & Health,Bio Luminuex Health Care Ltd,Daycare - Private Contractors Payment,95.8,0,VENDOR
03-01-2023,Adults & Health,Bio Luminuex Health Care Ltd,Home Care - Private Contractors Payment,335.3,0,VENDOR
03-01-2023,Adults & Health,Bio Luminuex Health Care Ltd,Home Care - Private Contractors Payment,570.01,0,VENDOR
03-01-2023,Adults & Health,Bio Luminuex Health Care Ltd,Home Care - Private Contractors Payment,201.18,0,VENDOR
03-01-2023,Adults & Health,Bio Luminuex Health Care Ltd,Home Care - Private Contractors Payment,234.71,0,VENDOR
03-01-2023,Adults & Health,Bio Luminuex Health Care Ltd,Home Care - Private Contractors Payment,335.3,0,VENDOR
03-01-2023,Adults & Health,Bio Luminuex Health Care Ltd,Home Care - Private Contractors Payment,114.96,0,VENDOR
03-01-2023,Adults & Health,Bio Luminuex Health Care Ltd,Home Care - Private Contractors Payment,603.54,0,VENDOR
03-01-2023,Adults & Health,Bio Luminuex Health Care Ltd,Home Care - Private Contractors Payment,502.95,0,VENDOR
03-01-2023,Adults & Health,Bio Luminuex Health Care Ltd,Home Care - Private Contractors Payment,301.77,0,VENDOR
03-01-2023,Adults & Health,Bio Luminuex Health Care Ltd,Daycare - Private Contractors Payment,76.64,0,VENDOR
03-01-2023,Adults & Health,Bio Luminuex Health Care Ltd,Respite Care - Private Contractors Payment,76.64,0,VENDOR
03-01-2023,Adults & Health,Bio Luminuex Health Care Ltd,Home Care - Private Contractors Payment,670.6,0,VENDOR
03-01-2023,Adults & Health,Bio Luminuex Health Care Ltd,Home Care - Private Contractors Payment,603.54,0,VENDOR
03-01-2023,Adults & Health,Bio Luminuex Health Care Ltd,Home Care - Private Contractors Payment,301.77,0,VENDOR
03-01-2023,Adults & Health,Bio Luminuex Health Care Ltd,Home Care - Private Contractors Payment,268.24,0,VENDOR
03-01-2023,Adults & Health,Bio Luminuex Health Care Ltd,Home Care - Private Contractors Payment,114.96,0,VENDOR
03-01-2023,Adults & Health,Bio Luminuex Health Care Ltd,Home Care - Private Contractors Payment,804.72,0,VENDOR
03-01-2023,Adults & Health,Bio Luminuex Health Care Ltd,Daycare - Private Contractors Payment,76.64,0,VENDOR
03-01-2023,Adults & Health,Bio Luminuex Health Care Ltd,Home Care - Private Contractors Payment,469.42,0,VENDOR
03-01-2023,Adults & Health,Bio Luminuex Health Care Ltd,Daycare - Private Contractors Payment,76.64,0,VENDOR
03-01-2023,Adults & Health,Bio Luminuex Health Care Ltd,Home Care - Private Contractors Payment,81.43,0,VENDOR
03-01-2023,Adults & Health,Bio Luminuex Health Care Ltd,Home Care - Private Contractors Payment,301.77,0,VENDOR
03-01-2023,Adults & Health,Bio Luminuex Health Care Ltd,Home Care - Private Contractors Payment,335.3,0,VENDOR
03-01-2023,Adults & Health,Bio Luminuex Health Care Ltd,Daycare - Private Contractors Payment,19.16,0,VENDOR
03-01-2023,Adults & Health,Bio Luminuex Health Care Ltd,Home Care - Private Contractors Payment,570.01,0,VENDOR
03-01-2023,Adults & Health,Bio Luminuex Health Care Ltd,Home Care - Private Contractors Payment,19.16,0,VENDOR
03-01-2023,Adults & Health,Bio Luminuex Health Care Ltd,Home Care - Private Contractors Payment,234.71,0,VENDOR
03-01-2023,Adults & Health,Bio Luminuex Health Care Ltd,Home Care - Private Contractors Payment,134.12,0,VENDOR
03-01-2023,Adults & Health,Bio Luminuex Health Care Ltd,Daycare - Private Contractors Payment,76.64,0,VENDOR
03-01-2023,Adults & Health,Bio Luminuex Health Care Ltd,Home Care - Private Contractors Payment,100.59,0,VENDOR
03-01-2023,Adults & Health,Bio Luminuex Health Care Ltd,Home Care - Private Contractors Payment,38.32,0,VENDOR
03-01-2023,Adults & Health,Bio Luminuex Health Care Ltd,Home Care - Private Contractors Payment,603.54,0,VENDOR
03-01-2023,Adults & Health,Bio Luminuex Health Care Ltd,Home Care - Private Contractors Payment,234.71,0,VENDOR
03-01-2023,Adults & Health,Bio Luminuex Health Care Ltd,Home Care - Private Contractors Payment,28.74,0,VENDOR
03-01-2023,Adults & Health,Bio Luminuex Health Care Ltd,Home Care - Private Contractors Payment,301.77,0,VENDOR
03-01-2023,Adults & Health,Bio Luminuex Health Care Ltd,Home Care - Private Contractors Payment,301.77,0,VENDOR
03-01-2023,Adults & Health,Bio Luminuex Health Care Ltd,Home Care - Private Contractors Payment,680.18,0,VENDOR
03-01-2023,Adults & Health,Bio Luminuex Health Care Ltd,Home Care - Private Contractors Payment,67.06,0,VENDOR
03-01-2023,Adults & Health,Bio Luminuex Health Care Ltd,Home Care - Private Contractors Payment,704.13,0,VENDOR
03-01-2023,Adults & Health,Bio Luminuex Health Care Ltd,Home Care - Private Contractors Payment,335.3,0,VENDOR
03-01-2023,Adults & Health,Bio Luminuex Health Care Ltd,Daycare - Private Contractors Payment,38.32,0,VENDOR
03-01-2023,Adults & Health,Bio Luminuex Health Care Ltd,Home Care - Private Contractors Payment,201.18,0,VENDOR
03-01-2023,Adults & Health,Bio Luminuex Health Care Ltd,Home Care - Private Contractors Payment,19.16,0,VENDOR
03-01-2023,Adults & Health,Bio Luminuex Health Care Ltd,Daycare - Private Contractors Payment,76.64,0,VENDOR
03-01-2023,Adults & Health,Bio Luminuex Health Care Ltd,Reablement,167.65,0,VENDOR
03-01-2023,Adults & Health,Bio Luminuex Health Care Ltd,Home Care - Private Contractors Payment,301.77,0,VENDOR
03-01-2023,Adults & Health,Bio Luminuex Health Care Ltd,Home Care - Private Contractors Payment,201.18,0,VENDOR
03-01-2023,Adults & Health,Bio Luminuex Health Care Ltd,Home Care - Private Contractors Payment,19.16,0,VENDOR
03-01-2023,Adults & Health,Bio Luminuex Health Care Ltd,Home Care - Private Contractors Payment,100.59,0,VENDOR
03-01-2023,Adults & Health,Bio Luminuex Health Care Ltd,Home Care - Private Contractors Payment,100.59,0,VENDOR
03-01-2023,Adults & Health,Bio Luminuex Health Care Ltd,Home Care - Private Contractors Payment,234.71,0,VENDOR
03-01-2023,Adults & Health,Bio Luminuex Health Care Ltd,Home Care - Private Contractors Payment,81.43,0,VENDOR
03-01-2023,Adults & Health,Bio Luminuex Health Care Ltd,Daycare - Private Contractors Payment,76.64,0,VENDOR
03-01-2023,Adults & Health,Bio Luminuex Health Care Ltd,Home Care - Private Contractors Payment,670.6,0,VENDOR
03-01-2023,Adults & Health,Bio Luminuex Health Care Ltd,Home Care - Private Contractors Payment,368.83,0,VENDOR
03-01-2023,Adults & Health,Bio Luminuex Health Care Ltd,Home Care - Private Contractors Payment,368.83,0,VENDOR
03-01-2023,Adults & Health,Bio Luminuex Health Care Ltd,Home Care - Private Contractors Payment,129.33,0,VENDOR
03-01-2023,Adults & Health,Bio Luminuex Health Care Ltd,Home Care - Private Contractors Payment,167.65,0,VENDOR
03-01-2023,Adults & Health,Bio Luminuex Health Care Ltd,Home Care - Private Contractors Payment,368.83,0,VENDOR
03-01-2023,Adults & Health,Bio Luminuex Health Care Ltd,Daycare - Private Contractors Payment,47.9,0,VENDOR
03-01-2023,Adults & Health,Bio Luminuex Health Care Ltd,Home Care - Private Contractors Payment,536.48,0,VENDOR
03-01-2023,Adults & Health,Bio Luminuex Health Care Ltd,Home Care - Private Contractors Payment,234.71,0,VENDOR
03-01-2023,Adults & Health,Bio Luminuex Health Care Ltd,Home Care - Private Contractors Payment,234.71,0,VENDOR
03-01-2023,Adults & Health,Bio Luminuex Health Care Ltd,Home Care - Private Contractors Payment,234.71,0,VENDOR
03-01-2023,Adults & Health,Bio Luminuex Health Care Ltd,Home Care - Private Contractors Payment,100.59,0,VENDOR
03-01-2023,Adults & Health,Bio Luminuex Health Care Ltd,Home Care - Private Contractors Payment,134.12,0,VENDOR
03-01-2023,Adults & Health,Bio Luminuex Health Care Ltd,Home Care - Private Contractors Payment,19.16,0,VENDOR
03-01-2023,Adults & Health,Bio Luminuex Health Care Ltd,Home Care - Private Contractors Payment,67.06,0,VENDOR
03-01-2023,Adults & Health,Bio Luminuex Health Care Ltd,Home Care - Private Contractors Payment,239.5,0,VENDOR
03-01-2023,Adults & Health,Bio Luminuex Health Care Ltd,Home Care - Private Contractors Payment,335.3,0,VENDOR
03-01-2023,Adults & Health,Bio Luminuex Health Care Ltd,Daycare - Private Contractors Payment,47.9,0,VENDOR
03-01-2023,Adults & Health,Bio Luminuex Health Care Ltd,Daycare - Private Contractors Payment,38.32,0,VENDOR
03-01-2023,Adults & Health,Bio Luminuex Health Care Ltd,Daycare - Private Contractors Payment,191.6,0,VENDOR
03-01-2023,Adults & Health,Bio Luminuex Health Care Ltd,Home Care - Private Contractors Payment,19.16,0,VENDOR
03-01-2023,Adults & Health,Bio Luminuex Health Care Ltd,Home Care - Private Contractors Payment,570.01,0,VENDOR
03-01-2023,Adults & Health,Bio Luminuex Health Care Ltd,Home Care - Private Contractors Payment,268.24,0,VENDOR
03-01-2023,Adults & Health,Bio Luminuex Health Care Ltd,Home Care - Private Contractors Payment,19.16,0,VENDOR
03-01-2023,Adults & Health,Bio Luminuex Health Care Ltd,Home Care - Private Contractors Payment,201.18,0,VENDOR
03-01-2023,Adults & Health,Bio Luminuex Health Care Ltd,Home Care - Private Contractors Payment,570.01,0,VENDOR
03-01-2023,Adults & Health,Bio Luminuex Health Care Ltd,Home Care - Private Contractors Payment,167.65,0,VENDOR
03-01-2023,Adults & Health,Bio Luminuex Health Care Ltd,Home Care - Private Contractors Payment,603.54,0,VENDOR
03-01-2023,Adults & Health,Bio Luminuex Health Care Ltd,Home Care - Private Contractors Payment,100.59,0,VENDOR
03-01-2023,Adults & Health,Bio Luminuex Health Care Ltd,Home Care - Private Contractors Payment,19.16,0,VENDOR
03-01-2023,Adults & Health,Bio Luminuex Health Care Ltd,Home Care - Private Contractors Payment,469.42,0,VENDOR
03-01-2023,Adults & Health,Bio Luminuex Health Care Ltd,Home Care - Private Contractors Payment,301.77,0,VENDOR
03-01-2023,Adults & Health,Bio Luminuex Health Care Ltd,Home Care - Private Contractors Payment,167.65,0,VENDOR
03-01-2023,Adults & Health,Bio Luminuex Health Care Ltd,Home Care - Private Contractors Payment,335.3,0,VENDOR
03-01-2023,Adults & Health,Bio Luminuex Health Care Ltd,Daycare - Private Contractors Payment,38.32,0,VENDOR
03-01-2023,Adults & Health,Bio Luminuex Health Care Ltd,Home Care - Private Contractors Payment,301.77,0,VENDOR
03-01-2023,Adults & Health,Bio Luminuex Health Care Ltd,Home Care - Private Contractors Payment,201.18,0,VENDOR
03-01-2023,Adults & Health,Bio Luminuex Health Care Ltd,Home Care - Private Contractors Payment,368.83,0,VENDOR
03-01-2023,Adults & Health,Bio Luminuex Health Care Ltd,Home Care - Private Contractors Payment,603.54,0,VENDOR
03-01-2023,Adults & Health,Bio Luminuex Health Care Ltd,Home Care - Private Contractors Payment,234.71,0,VENDOR
03-01-2023,Adults & Health,Bio Luminuex Health Care Ltd,Home Care - Private Contractors Payment,100.59,0,VENDOR
03-01-2023,Adults & Health,Bio Luminuex Health Care Ltd,Home Care - Private Contractors Payment,536.48,0,VENDOR
03-01-2023,Adults & Health,Bio Luminuex Health Care Ltd,Home Care - Private Contractors Payment,335.3,0,VENDOR
03-01-2023,Adults & Health,Bio Luminuex Health Care Ltd,Home Care - Private Contractors Payment,234.71,0,VENDOR
03-01-2023,Adults & Health,Bio Luminuex Health Care Ltd,Home Care - Private Contractors Payment,38.32,0,VENDOR
03-01-2023,Adults & Health,Bio Luminuex Health Care Ltd,Home Care - Private Contractors Payment,234.71,0,VENDOR
03-01-2023,Adults & Health,Bio Luminuex Health Care Ltd,Home Care - Private Contractors Payment,498.16,0,VENDOR
03-01-2023,Adults & Health,Bio Luminuex Health Care Ltd,Daycare - Private Contractors Payment,95.8,0,VENDOR
03-01-2023,Adults & Health,Bio Luminuex Health Care Ltd,Daycare - Private Contractors Payment,19.16,0,VENDOR
03-01-2023,Adults & Health,Bio Luminuex Health Care Ltd,Home Care - Private Contractors Payment,38.32,0,VENDOR
03-01-2023,Adults & Health,Bio Luminuex Health Care Ltd,Daycare - Private Contractors Payment,47.9,0,VENDOR
03-01-2023,Adults & Health,Bio Luminuex Health Care Ltd,Home Care - Private Contractors Payment,301.77,0,VENDOR
03-01-2023,Adults & Health,Bio Luminuex Health Care Ltd,Home Care - Private Contractors Payment,201.18,0,VENDOR
03-01-2023,Adults & Health,Bio Luminuex Health Care Ltd,Home Care - Private Contractors Payment,201.18,0,VENDOR
03-01-2023,Adults & Health,Bio Luminuex Health Care Ltd,Reablement,71.85,0,VENDOR
03-01-2023,Adults & Health,Bio Luminuex Health Care Ltd,Daycare - Private Contractors Payment,19.16,0,VENDOR
03-01-2023,Adults & Health,Bio Luminuex Health Care Ltd,Daycare - Private Contractors Payment,28.74,0,VENDOR
03-01-2023,Adults & Health,Bio Luminuex Health Care Ltd,Home Care - Private Contractors Payment,301.77,0,VENDOR
03-01-2023,Adults & Health,Bio Luminuex Health Care Ltd,Home Care - Private Contractors Payment,368.83,0,VENDOR
03-01-2023,Adults & Health,Bio Luminuex Health Care Ltd,Home Care - Private Contractors Payment,603.54,0,VENDOR
03-01-2023,Adults & Health,Bio Luminuex Health Care Ltd,Daycare - Private Contractors Payment,76.64,0,VENDOR
03-01-2023,Adults & Health,Bio Luminuex Health Care Ltd,Home Care - Private Contractors Payment,167.65,0,VENDOR
03-01-2023,Adults & Health,Bio Luminuex Health Care Ltd,Home Care - Private Contractors Payment,570.01,0,VENDOR
03-01-2023,Adults & Health,Bio Luminuex Health Care Ltd,Home Care - Private Contractors Payment,119.75,0,VENDOR
03-01-2023,Adults & Health,Bio Luminuex Health Care Ltd,Home Care - Private Contractors Payment,536.48,0,VENDOR
03-01-2023,Adults & Health,Bio Luminuex Health Care Ltd,Home Care - Private Contractors Payment,263.45,0,VENDOR
03-01-2023,Adults & Health,Bio Luminuex Health Care Ltd,Home Care - Private Contractors Payment,603.54,0,VENDOR
03-01-2023,Adults & Health,Bio Luminuex Health Care Ltd,Home Care - Private Contractors Payment,201.18,0,VENDOR
03-01-2023,Adults & Health,Bio Luminuex Health Care Ltd,Home Care - Private Contractors Payment,28.74,0,VENDOR
03-01-2023,Adults & Health,Bio Luminuex Health Care Ltd,Home Care - Private Contractors Payment,603.54,0,VENDOR
03-01-2023,Adults & Health,Bio Luminuex Health Care Ltd,Daycare - Private Contractors Payment,19.16,0,VENDOR
03-01-2023,Adults & Health,Bio Luminuex Health Care Ltd,Home Care - Private Contractors Payment,301.77,0,VENDOR
03-01-2023,Adults & Health,Bio Luminuex Health Care Ltd,Home Care - Private Contractors Payment,268.24,0,VENDOR
03-01-2023,Adults & Health,Bio Luminuex Health Care Ltd,Home Care - Private Contractors Payment,201.18,0,VENDOR
03-01-2023,Adults & Health,Bio Luminuex Health Care Ltd,Home Care - Private Contractors Payment,335.3,0,VENDOR
03-01-2023,Adults & Health,Bio Luminuex Health Care Ltd,Home Care - Private Contractors Payment,100.59,0,VENDOR
03-01-2023,Adults & Health,Bio Luminuex Health Care Ltd,Home Care - Private Contractors Payment,771.19,0,VENDOR
03-01-2023,Adults & Health,Bio Luminuex Health Care Ltd,Home Care - Private Contractors Payment,134.12,0,VENDOR
03-01-2023,Adults & Health,Bio Luminuex Health Care Ltd,Home Care - Private Contractors Payment,38.32,0,VENDOR
03-01-2023,Adults & Health,Bio Luminuex Health Care Ltd,Home Care - Private Contractors Payment,167.65,0,VENDOR
03-01-2023,Adults & Health,Bio Luminuex Health Care Ltd,Home Care - Private Contractors Payment,814.3,0,VENDOR
03-01-2023,Adults & Health,Bio Luminuex Health Care Ltd,Home Care - Private Contractors Payment,201.18,0,VENDOR
03-01-2023,Adults & Health,Bio Luminuex Health Care Ltd,Home Care - Private Contractors Payment,57.48,0,VENDOR
03-01-2023,Adults & Health,Bio Luminuex Health Care Ltd,Home Care - Private Contractors Payment,234.71,0,VENDOR
03-01-2023,Adults & Health,Bio Luminuex Health Care Ltd,Home Care - Private Contractors Payment,301.77,0,VENDOR
03-01-2023,Adults & Health,Bio Luminuex Health Care Ltd,Home Care - Private Contractors Payment,19.16,0,VENDOR
03-01-2023,Adults & Health,Bio Luminuex Health Care Ltd,Home Care - Private Contractors Payment,38.32,0,VENDOR
03-01-2023,Adults & Health,Bio Luminuex Health Care Ltd,Home Care - Private Contractors Payment,19.16,0,VENDOR
03-01-2023,Adults & Health,Bio Luminuex Health Care Ltd,Home Care - Private Contractors Payment,603.54,0,VENDOR
03-01-2023,Adults & Health,Bio Luminuex Health Care Ltd,Home Care - Private Contractors Payment,301.77,0,VENDOR
03-01-2023,Adults & Health,Bio Luminuex Health Care Ltd,Daycare - Private Contractors Payment,153.28,0,VENDOR
03-01-2023,Adults & Health,Bio Luminuex Health Care Ltd,Home Care - Private Contractors Payment,302.59,0,VENDOR
03-01-2023,Adults & Health,Bio Luminuex Health Care Ltd,Home Care - Private Contractors Payment,143.7,0,VENDOR
03-01-2023,Adults & Health,Bio Luminuex Health Care Ltd,Home Care - Private Contractors Payment,167.65,0,VENDOR
03-01-2023,Adults & Health,Bio Luminuex Health Care Ltd,Home Care - Private Contractors Payment,19.16,0,VENDOR
03-01-2023,Adults & Health,Bio Luminuex Health Care Ltd,Home Care - Private Contractors Payment,234.71,0,VENDOR
03-01-2023,Adults & Health,Bio Luminuex Health Care Ltd,Daycare - Private Contractors Payment,76.64,0,VENDOR
03-01-2023,Adults & Health,Bio Luminuex Health Care Ltd,Home Care - Private Contractors Payment,201.18,0,VENDOR
03-01-2023,Adults & Health,Bio Luminuex Health Care Ltd,Home Care - Private Contractors Payment,301.77,0,VENDOR
03-01-2023,Adults & Health,Bio Luminuex Health Care Ltd,Home Care - Private Contractors Payment,19.16,0,VENDOR
03-01-2023,Adults & Health,Bio Luminuex Health Care Ltd,Home Care - Private Contractors Payment,19.16,0,VENDOR
03-01-2023,Adults & Health,Bio Luminuex Health Care Ltd,Home Care - Private Contractors Payment,134.12,0,VENDOR
03-01-2023,Adults & Health,Bio Luminuex Health Care Ltd,Home Care - Private Contractors Payment,570.01,0,VENDOR
03-01-2023,Adults & Health,Bio Luminuex Health Care Ltd,Home Care - Private Contractors Payment,570.01,0,VENDOR
03-01-2023,Adults & Health,Bio Luminuex Health Care Ltd,Home Care - Private Contractors Payment,201.18,0,VENDOR
03-01-2023,Adults & Health,Bio Luminuex Health Care Ltd,Home Care - Private Contractors Payment,368.83,0,VENDOR
03-01-2023,Adults & Health,Bio Luminuex Health Care Ltd,Home Care - Private Contractors Payment,603.54,0,VENDOR
03-01-2023,Adults & Health,Bio Luminuex Health Care Ltd,Home Care - Private Contractors Payment,201.18,0,VENDOR
03-01-2023,Adults & Health,Bio Luminuex Health Care Ltd,Daycare - Private Contractors Payment,28.74,0,VENDOR
03-01-2023,Adults & Health,Bio Luminuex Health Care Ltd,Home Care - Private Contractors Payment,402.36,0,VENDOR
03-01-2023,Adults & Health,Bio Luminuex Health Care Ltd,Home Care - Private Contractors Payment,19.16,0,VENDOR
03-01-2023,Adults & Health,Bio Luminuex Health Care Ltd,Home Care - Private Contractors Payment,301.77,0,VENDOR
03-01-2023,Adults & Health,Bio Luminuex Health Care Ltd,Home Care - Private Contractors Payment,19.16,0,VENDOR
03-01-2023,Adults & Health,Bio Luminuex Health Care Ltd,Home Care - Private Contractors Payment,134.12,0,VENDOR
03-01-2023,Adults & Health,Bio Luminuex Health Care Ltd,Home Care - Private Contractors Payment,268.24,0,VENDOR
03-01-2023,Adults & Health,Bio Luminuex Health Care Ltd,Daycare - Private Contractors Payment,95.8,0,VENDOR
03-01-2023,Adults & Health,Bio Luminuex Health Care Ltd,Home Care - Private Contractors Payment,234.71,0,VENDOR
03-01-2023,Adults & Health,Bio Luminuex Health Care Ltd,Daycare - Private Contractors Payment,47.9,0,VENDOR
03-01-2023,Adults & Health,Bio Luminuex Health Care Ltd,Home Care - Private Contractors Payment,100.59,0,VENDOR
03-01-2023,Adults & Health,Bio Luminuex Health Care Ltd,Home Care - Private Contractors Payment,368.83,0,VENDOR
03-01-2023,Adults & Health,Bio Luminuex Health Care Ltd,Home Care - Private Contractors Payment,603.54,0,VENDOR
03-01-2023,Adults & Health,Bio Luminuex Health Care Ltd,Daycare - Private Contractors Payment,134.12,0,VENDOR
03-01-2023,Adults & Health,Bio Luminuex Health Care Ltd,Daycare - Private Contractors Payment,498.16,0,VENDOR
03-01-2023,Adults & Health,Bio Luminuex Health Care Ltd,Home Care - Private Contractors Payment,167.65,0,VENDOR
03-01-2023,Adults & Health,Bio Luminuex Health Care Ltd,Home Care - Private Contractors Payment,234.71,0,VENDOR
03-01-2023,Adults & Health,Bio Luminuex Health Care Ltd,Home Care - Private Contractors Payment,234.71,0,VENDOR
03-01-2023,Adults & Health,Bio Luminuex Health Care Ltd,Daycare - Private Contractors Payment,76.64,0,VENDOR
03-01-2023,Adults & Health,Bio Luminuex Health Care Ltd,Home Care - Private Contractors Payment,502.95,0,VENDOR
03-01-2023,Adults & Health,Bio Luminuex Health Care Ltd,Home Care - Private Contractors Payment,100.59,0,VENDOR
03-01-2023,Adults & Health,Bio Luminuex Health Care Ltd,Home Care - Private Contractors Payment,19.16,0,VENDOR
03-01-2023,Adults & Health,Bio Luminuex Health Care Ltd,Home Care - Private Contractors Payment,268.24,0,VENDOR
03-01-2023,Adults & Health,Bio Luminuex Health Care Ltd,Home Care - Private Contractors Payment,28.74,0,VENDOR
03-01-2023,Adults & Health,Bio Luminuex Health Care Ltd,Home Care - Private Contractors Payment,498.16,0,VENDOR
03-01-2023,Adults & Health,Bio Luminuex Health Care Ltd,Home Care - Private Contractors Payment,570.01,0,VENDOR
03-01-2023,Adults & Health,Bio Luminuex Health Care Ltd,Daycare - Private Contractors Payment,19.16,0,VENDOR
03-01-2023,Adults & Health,Bio Luminuex Health Care Ltd,Home Care - Private Contractors Payment,234.71,0,VENDOR
03-01-2023,Adults & Health,Bio Luminuex Health Care Ltd,Home Care - Private Contractors Payment,71.85,0,VENDOR
03-01-2023,Adults & Health,Bio Luminuex Health Care Ltd,Home Care - Private Contractors Payment,129.33,0,VENDOR
03-01-2023,Adults & Health,Bio Luminuex Health Care Ltd,Home Care - Private Contractors Payment,95.8,0,VENDOR
03-01-2023,Adults & Health,Bio Luminuex Health Care Ltd,Home Care - Private Contractors Payment,114.96,0,VENDOR
03-01-2023,Adults & Health,Bio Luminuex Health Care Ltd,Home Care - Private Contractors Payment,95.8,0,VENDOR
03-01-2023,Adults & Health,Bio Luminuex Health Care Ltd,Home Care - Private Contractors Payment,19.16,0,VENDOR
03-01-2023,Adults & Health,Bio Luminuex Health Care Ltd,Home Care - Private Contractors Payment,143.7,0,VENDOR
03-01-2023,Adults & Health,Bio Luminuex Health Care Ltd,Home Care - Private Contractors Payment,402.36,0,VENDOR
03-01-2023,Adults & Health,Bio Luminuex Health Care Ltd,Daycare - Private Contractors Payment,38.32,0,VENDOR
03-01-2023,Adults & Health,Bio Luminuex Health Care Ltd,Home Care - Private Contractors Payment,19.16,0,VENDOR
03-01-2023,Adults & Health,Bio Luminuex Health Care Ltd,Home Care - Private Contractors Payment,67.06,0,VENDOR
03-01-2023,Adults & Health,Bio Luminuex Health Care Ltd,Home Care - Private Contractors Payment,167.65,0,VENDOR
03-01-2023,Adults & Health,Bio Luminuex Health Care Ltd,Home Care - Private Contractors Payment,134.12,0,VENDOR
03-01-2023,Adults & Health,Bio Luminuex Health Care Ltd,Home Care - Private Contractors Payment,234.71,0,VENDOR
03-01-2023,Adults & Health,Bio Luminuex Health Care Ltd,Home Care - Private Contractors Payment,172.44,0,VENDOR
03-01-2023,Adults & Health,Bio Luminuex Health Care Ltd,Home Care - Private Contractors Payment,100.59,0,VENDOR
03-01-2023,Adults & Health,Bio Luminuex Health Care Ltd,Daycare - Private Contractors Payment,67.06,0,VENDOR
03-01-2023,Adults & Health,Bio Luminuex Health Care Ltd,Home Care - Private Contractors Payment,368.83,0,VENDOR
03-01-2023,Adults & Health,Bio Luminuex Health Care Ltd,Home Care - Private Contractors Payment,38.32,0,VENDOR
03-01-2023,Adults & Health,Bio Luminuex Health Care Ltd,Home Care - Private Contractors Payment,19.16,0,VENDOR
03-01-2023,Adults & Health,Bio Luminuex Health Care Ltd,Daycare - Private Contractors Payment,38.32,0,VENDOR
03-01-2023,Adults & Health,Bio Luminuex Health Care Ltd,Daycare - Private Contractors Payment,38.32,0,VENDOR
03-01-2023,Adults & Health,Bio Luminuex Health Care Ltd,Daycare - Private Contractors Payment,95.8,0,VENDOR
03-01-2023,Adults & Health,Bio Luminuex Health Care Ltd,Home Care - Private Contractors Payment,804.72,0,VENDOR
03-01-2023,Adults & Health,Bio Luminuex Health Care Ltd,Home Care - Private Contractors Payment,67.06,0,VENDOR
03-01-2023,Adults & Health,Bio Luminuex Health Care Ltd,Home Care - Private Contractors Payment,100.59,0,VENDOR
03-01-2023,Adults & Health,Bio Luminuex Health Care Ltd,Home Care - Private Contractors Payment,234.71,0,VENDOR
03-01-2023,Adults & Health,Bio Luminuex Health Care Ltd,Home Care - Private Contractors Payment,234.71,0,VENDOR
03-01-2023,Adults & Health,Bio Luminuex Health Care Ltd,Home Care - Private Contractors Payment,172.44,0,VENDOR
03-01-2023,Adults & Health,Bio Luminuex Health Care Ltd,Home Care - Private Contractors Payment,19.16,0,VENDOR
03-01-2023,Adults & Health,Bio Luminuex Health Care Ltd,Home Care - Private Contractors Payment,134.12,0,VENDOR
03-01-2023,Adults & Health,Bio Luminuex Health Care Ltd,Home Care - Private Contractors Payment,201.18,0,VENDOR
03-01-2023,Adults & Health,Bio Luminuex Health Care Ltd,Home Care - Private Contractors Payment,234.71,0,VENDOR
03-01-2023,Adults & Health,Bio Luminuex Health Care Ltd,Home Care - Private Contractors Payment,201.18,0,VENDOR
03-01-2023,Adults & Health,Bio Luminuex Health Care Ltd,Home Care - Private Contractors Payment,19.16,0,VENDOR
03-01-2023,Adults & Health,Bio Luminuex Health Care Ltd,Home Care - Private Contractors Payment,234.71,0,VENDOR
03-01-2023,Adults & Health,Bio Luminuex Health Care Ltd,Home Care - Private Contractors Payment,134.12,0,VENDOR
03-01-2023,Marketing,London Councils,Private Contractors Payment - Other,65788,0,CENTRAL/GOVERNMENT DEPARTMENTS
03-01-2023,Adults & Health,The Renewal Programme,Staff Development And Training,40000,0,VENDOR
03-01-2023,RMS,Glass System Ltd,Building Alterations And Materials,1745.67,0,COMMERCIAL SUPPLIER
